{"text_format":"1","workbook":"xlsx","n_sheets":5,"sheets":["Sheet1","Sheet2","姓名查","工号查","帮助"],"not_rendered":{"charts":0,"images":0,"macros":1,"external_links":0,"defined_names":596,"comments":2,"pivot_tables":0},"unopened":[],"bounds":{"document_bytes":16777216,"sheet_cells":100000,"rows_first":2000,"rows_last":500,"rows_between":2000,"halvings":0,"cell_chars":16384,"cell_head_chars":4096},"cells_cut":0,"cells_raw":0,"read":"whole","date_system":"1900"}

{"sheet":"Sheet1","index":0,"n_rows":52,"n_cols":19,"rows_kept":52,"cut":false,"hidden":false,"merged":[]}
["数据表名","等于","经费使用测试",null,"查看密码","T8O6J3V1BB",null,null,null,null,null,null,null,null,null,null,"d5","大于等",20190101]
["d5","大于等",20190101,null,"上传密码","251H8837772190",null,null,null,null,null,null,null,null,null,null,"d5","小于等",20190514]
["d5","小于等",20190514,null,null,null,null,null,"覆盖上传","是",null,"复制到","A11","手机填写网址",{"$f":"HYPERLINK(J4&\"/index.php/Qwadmin/Udno/addedit.html?sheetname=\"&C1,J4&\"/index.php/Qwadmin/Udno/addedit.html?sheetname=\"&C1)","v":"http://aa.r34.cc/index.php/Qwadmin/Udno/addedit.html?sheetname=经费使用测试"},null,"d1","包含","费用"]
["d1","包含","费用",null,null,null,null,null,"查询网址","http://aa.r34.cc",null,"数据表","sheet1","查看数据",{"$f":"HYPERLINK(CONCATENATE(J4,\"/index.php/Qwadmin/Rwxy/echoteacherdb?conall=;数据表名等于\",C1,\";不显字段等于id,wrpw,data1,data2,ord,rpw,name,pid,custom1,custom2,sheetname;查看密码等于\",F1),CONCATENATE(J4,\"/index.php/Qwadmin/Rwxy/echoteacherdb?conall=;数据表名等于\",C1,\";不显字段等于id,wrpw,data1,data2,ord,rpw,name,pid,custom1,custom2,sheetname;查看密码等于\",F1))","v":"http://aa.r34.cc/index.php/Qwadmin/Rwxy/echoteacherdb?conall=;数据表名等于经费使用测试;不显字段等于id,wrpw,data1,data2,ord,rpw,name,pid,custom1,custom2,sheetname;查看密码等于T8O6J3V1BB"},null,"d2","等于","收入"]
["d2","等于","收入",null,"姓名字段",null,null,null,"分类字段","d5",null,"弹窗提示更新","否","免密码查询",{"$f":"HYPERLINK(J4&\"/index.php/Qwadmin/Rwxy/uniquerydata/rpw/\"&F1&\".html\",J4&\"/index.php/Qwadmin/Rwxy/uniquerydata/rpw/\"&F1&\".html\")","v":"http://aa.r34.cc/index.php/Qwadmin/Rwxy/uniquerydata/rpw/T8O6J3V1BB.html"},null,"d4","非空"]
["d4","非空",null,null,"ID字段",null,null,null,"排序字段",null,null,"文件名命名规则","A","在线修改",{"$f":"HYPERLINK(J4&\"/index.php/Qwadmin/Udno/magrecords/wrpw/\"&F2&\"/sheetname/\"&C1&\".html\",J4&\"/index.php/Qwadmin/Udno/magrecords/wrpw/\"&F2&\"/sheetname/\"&C1&\".html\")","v":"http://aa.r34.cc/index.php/Qwadmin/Udno/magrecords/wrpw/251H8837772190/sheetname/经费使用测试.html"},null,"d1","IN","[12年]315-5003科研项目费用,[13年]328-5101设备费,[13年]328-5109劳务费,[13年]328-5008学术讲座费,[14年]335-5110专家咨询费,[14年]335-5003科研项目费用,[14年]335-5008学术讲座费,"]
["d1","IN","[12年]315-5003科研项目费用,[13年]328-5101设备费,[13年]328-5109劳务费,[13年]328-5008学术讲座费,[14年]335-5110专家咨询费,[14年]335-5003科研项目费用,[14年]335-5008学术讲座费,",null,null,null,null,null,"缩略显示","d5,d2,d4",null,"自动下载文件","否",null,null,null,"显示字段","等于","d1,d2,d3,d4,d5,d6"]
["显示字段","等于","d1,d2,d3,d4,d5,d6",null,null,null,null,null,"提示字段","d1,d2,d4,d5"]
["d1","d2","d3","d4","d5","d6","d7"]
[]
["预算代码","支出数","金额","使用情况","支出时间","经办人","无用字段1"]
["[12年]315-5003科研项目费用","收入",22179.5,"原因1",20190101,"王1","无用字段1"]
["[13年]328-5101设备费","收入",9737,null,20190101,"王2","无用字段1"]
["[13年]328-5109劳务费","收入",10502.1,"原因3",20190101,"王3","无用字段1"]
["[13年]328-5008学术讲座费","收入",2325,null,20190101,"王4","无用字段1"]
["[14年]335-5110专家咨询费","收入",9900,"原因5",20190101,"王5","无用字段1"]
["[14年]335-5003科研项目费用","收入",4216,null,20190101,"王6","无用字段1"]
["[14年]335-5008学术讲座费","收入",18822.62,"原因7",20190101,"王7","无用字段1"]
["[14年]335-5008学术讲座费","支出",3500,null,20190328,"王8","无用字段1"]
["[14年]335-5003科研项目费用","收入",3500,"原因9",20190328,"王1","无用字段1"]
["[14年]335-5008学术讲座费","支出",3550,"原因10",20190329,"王2","无用字段1"]
["[14年]335-5008学术讲座费","支出",3550,"原因11",20190329,"王3","无用字段1"]
["[14年]335-5003科研项目费用","支出",1856.5,"原因12",20190329,"王4","无用字段1"]
["[14年]335-5003科研项目费用","支出",638.5,"原因13",20190410,"王5","无用字段1"]
["[14年]335-5003科研项目费用","支出",1138,"原因14",20190412,"王6","无用字段1"]
["[14年]335-5003科研项目费用","支出",401,"原因15",20190412,"王7","无用字段1"]
["[14年]335-5003科研项目费用","支出",799,"原因16",20190412,"王8","无用字段1"]
["[12年]315-5003科研项目费用","支出",540.5,"原因17",20190418,"王1","无用字段1"]
["[12年]315-5003科研项目费用","支出",465.7,"原因18",20190422,"王2","无用字段1"]
["[12年]315-5003科研项目费用","支出",785,"原因19",20190423,"王3","无用字段1"]
["[12年]315-5003科研项目费用","支出",579,"原因20",20190424,"王4","无用字段1"]
["[14年]335-5008学术讲座费","支出",3550,"原因21",20190426,"王5","无用字段1"]
["[14年]335-5008学术讲座费","支出",3550,"原因22",20190426,"王6","无用字段1"]
["[14年]335-5003科研项目费用","支出",539.91999999999996,"原因23",20190429,"王7","无用字段1"]
["[14年]335-5110专家咨询费","支出",2925,"原因24",20190430,"王8","无用字段1"]
["[12年]315-5003科研项目费用","支出",2500,"原因25",20190430,"王1","无用字段1"]
["[12年]315-5003科研项目费用","支出",822,"原因26",20190508,"王2","无用字段1"]
["[14年]335-5003科研项目费用","支出",2120,"原因27",20190507,"王3","无用字段1"]
["[12年]315-5003科研项目费用","支出",16487.3,"原因28",20190514,"王4","无用字段1"]
["[12年]315-5101设备费","收入",16487.3,"原因29",20190514,"王5","无用字段1"]
["[13年]328-5101设备费","收入",8185.6,"原因30",20190514,"王6","无用字段1"]
["[13年]328-5109劳务费","支出",10502.1,"原因31",20190514,"王7","无用字段1"]
["[13年]328-5008学术讲座费","收入",2316.5,"原因32",20190514,"王8","无用字段1"]
["[14年]335-5008学术讲座费","收入",3605,"原因33",20190426,"王1","无用字段1"]
["[14年]335-5110专家咨询费","支出",3382,"原因34",20190426,"王2","无用字段1"]
["[14年]335-5003科研项目费用","支出",223,"原因35",20190426,"王3","无用字段1"]
["[14年]335-5008学术讲座费","支出",3550,"原因36",20190426,"王4","无用字段1"]
["[14年]335-5110专家咨询费","支出",3592.86,"原因37",20190426,"王5","无用字段1"]
["[13年]328-5101设备费","支出",8910,"原因38",20190508,"王6","无用字段1"]
["[12年]315-5101设备费","支出",null,"原因39",20190514,"王7","无用字段1"]
["[13年]328-5101设备费","支出",null,"原因40",20190514,"王8","无用字段1"]
["[12年]315-5101设备费","支出",null,"原因41",20190514,"王8","无用字段1"]

{"sheet":"Sheet2","index":1,"n_rows":19,"n_cols":15,"rows_kept":19,"cut":false,"hidden":false,"merged":[]}
["数据表名","等于","经费使用测试汇总",null,"查看密码","T8O6J3V1BB"]
[null,null,null,null,"上传密码","251H8837772190"]
[null,null,null,null,null,null,null,null,"覆盖上传","是",null,"复制到","A11","手机填写网址",{"$f":"HYPERLINK(J4&\"/index.php/Qwadmin/Udno/addedit.html?sheetname=\"&C1,J4&\"/index.php/Qwadmin/Udno/addedit.html?sheetname=\"&C1)","v":"http://aa.r34.cc/index.php/Qwadmin/Udno/addedit.html?sheetname=经费使用测试汇总"}]
[null,null,null,null,null,null,null,null,"查询网址","http://aa.r34.cc",null,"数据表","sheet1","查看数据",{"$f":"HYPERLINK(CONCATENATE(J4,\"/index.php/Qwadmin/Rwxy/echoteacherdb?conall=;数据表名等于\",C1,\";不显字段等于id,wrpw,data1,data2,ord,rpw,name,pid,custom1,custom2,sheetname;查看密码等于\",F1),CONCATENATE(J4,\"/index.php/Qwadmin/Rwxy/echoteacherdb?conall=;数据表名等于\",C1,\";不显字段等于id,wrpw,data1,data2,ord,rpw,name,pid,custom1,custom2,sheetname;查看密码等于\",F1))","v":"http://aa.r34.cc/index.php/Qwadmin/Rwxy/echoteacherdb?conall=;数据表名等于经费使用测试汇总;不显字段等于id,wrpw,data1,data2,ord,rpw,name,pid,custom1,custom2,sheetname;查看密码等于T8O6J3V1BB"}]
[null,null,null,null,"姓名字段","d2",null,null,"分类字段","d5",null,"弹窗提示更新","否","免密码查询",{"$f":"HYPERLINK(J4&\"/index.php/Qwadmin/Rwxy/uniquerydata/rpw/\"&F1&\".html\",J4&\"/index.php/Qwadmin/Rwxy/uniquerydata/rpw/\"&F1&\".html\")","v":"http://aa.r34.cc/index.php/Qwadmin/Rwxy/uniquerydata/rpw/T8O6J3V1BB.html"}]
[null,null,null,null,"ID字段","d3",null,null,"排序字段",null,null,"文件名命名规则","A","在线修改",{"$f":"HYPERLINK(J4&\"/index.php/Qwadmin/Udno/magrecords/wrpw/\"&F2&\"/sheetname/\"&C1&\".html\",J4&\"/index.php/Qwadmin/Udno/magrecords/wrpw/\"&F2&\"/sheetname/\"&C1&\".html\")","v":"http://aa.r34.cc/index.php/Qwadmin/Udno/magrecords/wrpw/251H8837772190/sheetname/经费使用测试汇总.html"}]
[null,null,null,null,null,null,null,null,"缩略显示",null,null,"自动下载文件","是"]
["不显字段","等于","id,wrpw,data1,data2,ord,rpw,name,pid,custom1,custom2,sheetname"]
["d1","d2","d3","d4","d5","d6","d7"]
[]
["项目类型","余额"]
["[12年]315-5003科研项目费用",{"$f":"SUMIFS(Sheet1!C:C,Sheet1!A:A,Sheet2!A12,Sheet1!B:B,\"收入\")-SUMIFS(Sheet1!C:C,Sheet1!A:A,Sheet2!A12,Sheet1!B:B,\"支出\")","v":0}]
["[13年]328-5101设备费",{"$f":"SUMIFS(Sheet1!C:C,Sheet1!A:A,Sheet2!A13,Sheet1!B:B,\"收入\")-SUMIFS(Sheet1!C:C,Sheet1!A:A,Sheet2!A13,Sheet1!B:B,\"支出\")","v":9012.5999999999985}]
["[13年]328-5109劳务费",{"$f":"SUMIFS(Sheet1!C:C,Sheet1!A:A,Sheet2!A14,Sheet1!B:B,\"收入\")-SUMIFS(Sheet1!C:C,Sheet1!A:A,Sheet2!A14,Sheet1!B:B,\"支出\")","v":0}]
["[13年]328-5008学术讲座费",{"$f":"SUMIFS(Sheet1!C:C,Sheet1!A:A,Sheet2!A15,Sheet1!B:B,\"收入\")-SUMIFS(Sheet1!C:C,Sheet1!A:A,Sheet2!A15,Sheet1!B:B,\"支出\")","v":4641.5}]
["[14年]335-5110专家咨询费",{"$f":"SUMIFS(Sheet1!C:C,Sheet1!A:A,Sheet2!A16,Sheet1!B:B,\"收入\")-SUMIFS(Sheet1!C:C,Sheet1!A:A,Sheet2!A16,Sheet1!B:B,\"支出\")","v":0.13999999999941792}]
["[14年]335-5003科研项目费用",{"$f":"SUMIFS(Sheet1!C:C,Sheet1!A:A,Sheet2!A17,Sheet1!B:B,\"收入\")-SUMIFS(Sheet1!C:C,Sheet1!A:A,Sheet2!A17,Sheet1!B:B,\"支出\")","v":7.999999999992724E-2}]
["[14年]335-5008学术讲座费",{"$f":"SUMIFS(Sheet1!C:C,Sheet1!A:A,Sheet2!A18,Sheet1!B:B,\"收入\")-SUMIFS(Sheet1!C:C,Sheet1!A:A,Sheet2!A18,Sheet1!B:B,\"支出\")","v":1177.619999999999}]
["[12年]315-5101设备费",{"$f":"SUMIFS(Sheet1!C:C,Sheet1!A:A,Sheet2!A19,Sheet1!B:B,\"收入\")-SUMIFS(Sheet1!C:C,Sheet1!A:A,Sheet2!A19,Sheet1!B:B,\"支出\")","v":16487.3}]

{"sheet":"姓名查","index":2,"n_rows":14,"n_cols":27,"rows_kept":14,"cut":false,"hidden":false,"merged":[]}
["请先在sheet1中指定","姓名","列"]
["姓名",{"$f":"INDIRECT(\"sheet1!\"&\"A11\")","v":"预算代码"},{"$f":"INDIRECT(\"sheet1!\"&\"B11\")","v":"支出数"},{"$f":"INDIRECT(\"sheet1!\"&\"C11\")","v":"金额"},{"$f":"INDIRECT(\"sheet1!\"&\"D11\")","v":"使用情况"},{"$f":"INDIRECT(\"sheet1!\"&\"E11\")","v":"支出时间"},{"$f":"INDIRECT(\"sheet1!\"&\"F11\")","v":"经办人"},{"$f":"INDIRECT(\"sheet1!\"&\"G11\")","v":"无用字段1"},{"$f":"INDIRECT(\"sheet1!\"&\"H11\")","v":0},{"$f":"INDIRECT(\"sheet1!\"&\"I11\")","v":0},{"$f":"INDIRECT(\"sheet1!\"&\"J11\")","v":0},{"$f":"INDIRECT(\"sheet1!\"&\"K11\")","v":0},{"$f":"INDIRECT(\"sheet1!\"&\"L11\")","v":0},{"$f":"INDIRECT(\"sheet1!\"&\"M11\")","v":0},{"$f":"INDIRECT(\"sheet1!\"&\"N11\")","v":0},{"$f":"INDIRECT(\"sheet1!\"&\"O11\")","v":0},{"$f":"INDIRECT(\"sheet1!\"&\"P11\")","v":0},{"$f":"INDIRECT(\"sheet1!\"&\"Q11\")","v":0},{"$f":"INDIRECT(\"sheet1!\"&\"R11\")","v":0},{"$f":"INDIRECT(\"sheet1!\"&\"S11\")","v":0},{"$f":"INDIRECT(\"sheet1!\"&\"T11\")","v":0},{"$f":"INDIRECT(\"sheet1!\"&\"U11\")","v":0},{"$f":"INDIRECT(\"sheet1!\"&\"V11\")","v":0},{"$f":"INDIRECT(\"sheet1!\"&\"W11\")","v":0},{"$f":"INDIRECT(\"sheet1!\"&\"X11\")","v":0},{"$f":"INDIRECT(\"sheet1!\"&\"Y11\")","v":0},{"$f":"INDIRECT(\"sheet1!\"&\"Z11\")","v":0}]
["方艺某",{"$f":"INDEX(Sheet1!A:A,MATCH(姓名查!$A3,INDIRECT(\"sheet1!\"&VLOOKUP(Sheet1!$F$5,帮助!$BR:$BS,2,FALSE)&\":\"&VLOOKUP(Sheet1!$F$5,帮助!$BR:$BS,2,FALSE)),0))","v":{"$error":"#N/A"}},{"$f":"INDEX(Sheet1!B:B,MATCH(姓名查!$A3,INDIRECT(\"sheet1!\"&VLOOKUP(Sheet1!$F$5,帮助!$BR:$BS,2,FALSE)&\":\"&VLOOKUP(Sheet1!$F$5,帮助!$BR:$BS,2,FALSE)),0))","v":{"$error":"#N/A"}},{"$f":"INDEX(Sheet1!C:C,MATCH(姓名查!$A3,INDIRECT(\"sheet1!\"&VLOOKUP(Sheet1!$F$5,帮助!$BR:$BS,2,FALSE)&\":\"&VLOOKUP(Sheet1!$F$5,帮助!$BR:$BS,2,FALSE)),0))","v":{"$error":"#N/A"}},{"$f":"INDEX(Sheet1!D:D,MATCH(姓名查!$A3,INDIRECT(\"sheet1!\"&VLOOKUP(Sheet1!$F$5,帮助!$BR:$BS,2,FALSE)&\":\"&VLOOKUP(Sheet1!$F$5,帮助!$BR:$BS,2,FALSE)),0))","v":{"$error":"#N/A"}},{"$f":"INDEX(Sheet1!E:E,MATCH(姓名查!$A3,INDIRECT(\"sheet1!\"&VLOOKUP(Sheet1!$F$5,帮助!$BR:$BS,2,FALSE)&\":\"&VLOOKUP(Sheet1!$F$5,帮助!$BR:$BS,2,FALSE)),0))","v":{"$error":"#N/A"}},{"$f":"INDEX(Sheet1!F:F,MATCH(姓名查!$A3,INDIRECT(\"sheet1!\"&VLOOKUP(Sheet1!$F$5,帮助!$BR:$BS,2,FALSE)&\":\"&VLOOKUP(Sheet1!$F$5,帮助!$BR:$BS,2,FALSE)),0))","v":{"$error":"#N/A"}},{"$f":"INDEX(Sheet1!G:G,MATCH(姓名查!$A3,INDIRECT(\"sheet1!\"&VLOOKUP(Sheet1!$F$5,帮助!$BR:$BS,2,FALSE)&\":\"&VLOOKUP(Sheet1!$F$5,帮助!$BR:$BS,2,FALSE)),0))","v":{"$error":"#N/A"}},{"$f":"INDEX(Sheet1!H:H,MATCH(姓名查!$A3,INDIRECT(\"sheet1!\"&VLOOKUP(Sheet1!$F$5,帮助!$BR:$BS,2,FALSE)&\":\"&VLOOKUP(Sheet1!$F$5,帮助!$BR:$BS,2,FALSE)),0))","v":{"$error":"#N/A"}},{"$f":"INDEX(Sheet1!I:I,MATCH(姓名查!$A3,INDIRECT(\"sheet1!\"&VLOOKUP(Sheet1!$F$5,帮助!$BR:$BS,2,FALSE)&\":\"&VLOOKUP(Sheet1!$F$5,帮助!$BR:$BS,2,FALSE)),0))","v":{"$error":"#N/A"}},{"$f":"INDEX(Sheet1!J:J,MATCH(姓名查!$A3,INDIRECT(\"sheet1!\"&VLOOKUP(Sheet1!$F$5,帮助!$BR:$BS,2,FALSE)&\":\"&VLOOKUP(Sheet1!$F$5,帮助!$BR:$BS,2,FALSE)),0))","v":{"$error":"#N/A"}},{"$f":"INDEX(Sheet1!K:K,MATCH(姓名查!$A3,INDIRECT(\"sheet1!\"&VLOOKUP(Sheet1!$F$5,帮助!$BR:$BS,2,FALSE)&\":\"&VLOOKUP(Sheet1!$F$5,帮助!$BR:$BS,2,FALSE)),0))","v":{"$error":"#N/A"}},{"$f":"INDEX(Sheet1!L:L,MATCH(姓名查!$A3,INDIRECT(\"sheet1!\"&VLOOKUP(Sheet1!$F$5,帮助!$BR:$BS,2,FALSE)&\":\"&VLOOKUP(Sheet1!$F$5,帮助!$BR:$BS,2,FALSE)),0))","v":{"$error":"#N/A"}},{"$f":"INDEX(Sheet1!M:M,MATCH(姓名查!$A3,INDIRECT(\"sheet1!\"&VLOOKUP(Sheet1!$F$5,帮助!$BR:$BS,2,FALSE)&\":\"&VLOOKUP(Sheet1!$F$5,帮助!$BR:$BS,2,FALSE)),0))","v":{"$error":"#N/A"}},{"$f":"INDEX(Sheet1!N:N,MATCH(姓名查!$A3,INDIRECT(\"sheet1!\"&VLOOKUP(Sheet1!$F$5,帮助!$BR:$BS,2,FALSE)&\":\"&VLOOKUP(Sheet1!$F$5,帮助!$BR:$BS,2,FALSE)),0))","v":{"$error":"#N/A"}},{"$f":"INDEX(Sheet1!O:O,MATCH(姓名查!$A3,INDIRECT(\"sheet1!\"&VLOOKUP(Sheet1!$F$5,帮助!$BR:$BS,2,FALSE)&\":\"&VLOOKUP(Sheet1!$F$5,帮助!$BR:$BS,2,FALSE)),0))","v":{"$error":"#N/A"}},{"$f":"INDEX(Sheet1!P:P,MATCH(姓名查!$A3,INDIRECT(\"sheet1!\"&VLOOKUP(Sheet1!$F$5,帮助!$BR:$BS,2,FALSE)&\":\"&VLOOKUP(Sheet1!$F$5,帮助!$BR:$BS,2,FALSE)),0))","v":{"$error":"#N/A"}},{"$f":"INDEX(Sheet1!Q:Q,MATCH(姓名查!$A3,INDIRECT(\"sheet1!\"&VLOOKUP(Sheet1!$F$5,帮助!$BR:$BS,2,FALSE)&\":\"&VLOOKUP(Sheet1!$F$5,帮助!$BR:$BS,2,FALSE)),0))","v":{"$error":"#N/A"}}]
["王进1",{"$f":"INDEX(Sheet1!A:A,MATCH(姓名查!$A4,INDIRECT(\"sheet1!\"&VLOOKUP(Sheet1!$F$5,帮助!$BR:$BS,2,FALSE)&\":\"&VLOOKUP(Sheet1!$F$5,帮助!$BR:$BS,2,FALSE)),0))","v":{"$error":"#N/A"}},{"$f":"INDEX(Sheet1!B:B,MATCH(姓名查!$A4,INDIRECT(\"sheet1!\"&VLOOKUP(Sheet1!$F$5,帮助!$BR:$BS,2,FALSE)&\":\"&VLOOKUP(Sheet1!$F$5,帮助!$BR:$BS,2,FALSE)),0))","v":{"$error":"#N/A"}},{"$f":"INDEX(Sheet1!C:C,MATCH(姓名查!$A4,INDIRECT(\"sheet1!\"&VLOOKUP(Sheet1!$F$5,帮助!$BR:$BS,2,FALSE)&\":\"&VLOOKUP(Sheet1!$F$5,帮助!$BR:$BS,2,FALSE)),0))","v":{"$error":"#N/A"}},{"$f":"INDEX(Sheet1!D:D,MATCH(姓名查!$A4,INDIRECT(\"sheet1!\"&VLOOKUP(Sheet1!$F$5,帮助!$BR:$BS,2,FALSE)&\":\"&VLOOKUP(Sheet1!$F$5,帮助!$BR:$BS,2,FALSE)),0))","v":{"$error":"#N/A"}},{"$f":"INDEX(Sheet1!E:E,MATCH(姓名查!$A4,INDIRECT(\"sheet1!\"&VLOOKUP(Sheet1!$F$5,帮助!$BR:$BS,2,FALSE)&\":\"&VLOOKUP(Sheet1!$F$5,帮助!$BR:$BS,2,FALSE)),0))","v":{"$error":"#N/A"}},{"$f":"INDEX(Sheet1!F:F,MATCH(姓名查!$A4,INDIRECT(\"sheet1!\"&VLOOKUP(Sheet1!$F$5,帮助!$BR:$BS,2,FALSE)&\":\"&VLOOKUP(Sheet1!$F$5,帮助!$BR:$BS,2,FALSE)),0))","v":{"$error":"#N/A"}},{"$f":"INDEX(Sheet1!G:G,MATCH(姓名查!$A4,INDIRECT(\"sheet1!\"&VLOOKUP(Sheet1!$F$5,帮助!$BR:$BS,2,FALSE)&\":\"&VLOOKUP(Sheet1!$F$5,帮助!$BR:$BS,2,FALSE)),0))","v":{"$error":"#N/A"}},{"$f":"INDEX(Sheet1!H:H,MATCH(姓名查!$A4,INDIRECT(\"sheet1!\"&VLOOKUP(Sheet1!$F$5,帮助!$BR:$BS,2,FALSE)&\":\"&VLOOKUP(Sheet1!$F$5,帮助!$BR:$BS,2,FALSE)),0))","v":{"$error":"#N/A"}},{"$f":"INDEX(Sheet1!I:I,MATCH(姓名查!$A4,INDIRECT(\"sheet1!\"&VLOOKUP(Sheet1!$F$5,帮助!$BR:$BS,2,FALSE)&\":\"&VLOOKUP(Sheet1!$F$5,帮助!$BR:$BS,2,FALSE)),0))","v":{"$error":"#N/A"}},{"$f":"INDEX(Sheet1!J:J,MATCH(姓名查!$A4,INDIRECT(\"sheet1!\"&VLOOKUP(Sheet1!$F$5,帮助!$BR:$BS,2,FALSE)&\":\"&VLOOKUP(Sheet1!$F$5,帮助!$BR:$BS,2,FALSE)),0))","v":{"$error":"#N/A"}},{"$f":"INDEX(Sheet1!K:K,MATCH(姓名查!$A4,INDIRECT(\"sheet1!\"&VLOOKUP(Sheet1!$F$5,帮助!$BR:$BS,2,FALSE)&\":\"&VLOOKUP(Sheet1!$F$5,帮助!$BR:$BS,2,FALSE)),0))","v":{"$error":"#N/A"}},{"$f":"INDEX(Sheet1!L:L,MATCH(姓名查!$A4,INDIRECT(\"sheet1!\"&VLOOKUP(Sheet1!$F$5,帮助!$BR:$BS,2,FALSE)&\":\"&VLOOKUP(Sheet1!$F$5,帮助!$BR:$BS,2,FALSE)),0))","v":{"$error":"#N/A"}},{"$f":"INDEX(Sheet1!M:M,MATCH(姓名查!$A4,INDIRECT(\"sheet1!\"&VLOOKUP(Sheet1!$F$5,帮助!$BR:$BS,2,FALSE)&\":\"&VLOOKUP(Sheet1!$F$5,帮助!$BR:$BS,2,FALSE)),0))","v":{"$error":"#N/A"}},{"$f":"INDEX(Sheet1!N:N,MATCH(姓名查!$A4,INDIRECT(\"sheet1!\"&VLOOKUP(Sheet1!$F$5,帮助!$BR:$BS,2,FALSE)&\":\"&VLOOKUP(Sheet1!$F$5,帮助!$BR:$BS,2,FALSE)),0))","v":{"$error":"#N/A"}},{"$f":"INDEX(Sheet1!O:O,MATCH(姓名查!$A4,INDIRECT(\"sheet1!\"&VLOOKUP(Sheet1!$F$5,帮助!$BR:$BS,2,FALSE)&\":\"&VLOOKUP(Sheet1!$F$5,帮助!$BR:$BS,2,FALSE)),0))","v":{"$error":"#N/A"}},{"$f":"INDEX(Sheet1!P:P,MATCH(姓名查!$A4,INDIRECT(\"sheet1!\"&VLOOKUP(Sheet1!$F$5,帮助!$BR:$BS,2,FALSE)&\":\"&VLOOKUP(Sheet1!$F$5,帮助!$BR:$BS,2,FALSE)),0))","v":{"$error":"#N/A"}},{"$f":"INDEX(Sheet1!Q:Q,MATCH(姓名查!$A4,INDIRECT(\"sheet1!\"&VLOOKUP(Sheet1!$F$5,帮助!$BR:$BS,2,FALSE)&\":\"&VLOOKUP(Sheet1!$F$5,帮助!$BR:$BS,2,FALSE)),0))","v":{"$error":"#N/A"}}]
["林世峰",{"$f":"INDEX(Sheet1!A:A,MATCH(姓名查!$A5,INDIRECT(\"sheet1!\"&VLOOKUP(Sheet1!$F$5,帮助!$BR:$BS,2,FALSE)&\":\"&VLOOKUP(Sheet1!$F$5,帮助!$BR:$BS,2,FALSE)),0))","v":{"$error":"#N/A"}},{"$f":"INDEX(Sheet1!B:B,MATCH(姓名查!$A5,INDIRECT(\"sheet1!\"&VLOOKUP(Sheet1!$F$5,帮助!$BR:$BS,2,FALSE)&\":\"&VLOOKUP(Sheet1!$F$5,帮助!$BR:$BS,2,FALSE)),0))","v":{"$error":"#N/A"}},{"$f":"INDEX(Sheet1!C:C,MATCH(姓名查!$A5,INDIRECT(\"sheet1!\"&VLOOKUP(Sheet1!$F$5,帮助!$BR:$BS,2,FALSE)&\":\"&VLOOKUP(Sheet1!$F$5,帮助!$BR:$BS,2,FALSE)),0))","v":{"$error":"#N/A"}},{"$f":"INDEX(Sheet1!D:D,MATCH(姓名查!$A5,INDIRECT(\"sheet1!\"&VLOOKUP(Sheet1!$F$5,帮助!$BR:$BS,2,FALSE)&\":\"&VLOOKUP(Sheet1!$F$5,帮助!$BR:$BS,2,FALSE)),0))","v":{"$error":"#N/A"}},{"$f":"INDEX(Sheet1!E:E,MATCH(姓名查!$A5,INDIRECT(\"sheet1!\"&VLOOKUP(Sheet1!$F$5,帮助!$BR:$BS,2,FALSE)&\":\"&VLOOKUP(Sheet1!$F$5,帮助!$BR:$BS,2,FALSE)),0))","v":{"$error":"#N/A"}},{"$f":"INDEX(Sheet1!F:F,MATCH(姓名查!$A5,INDIRECT(\"sheet1!\"&VLOOKUP(Sheet1!$F$5,帮助!$BR:$BS,2,FALSE)&\":\"&VLOOKUP(Sheet1!$F$5,帮助!$BR:$BS,2,FALSE)),0))","v":{"$error":"#N/A"}},{"$f":"INDEX(Sheet1!G:G,MATCH(姓名查!$A5,INDIRECT(\"sheet1!\"&VLOOKUP(Sheet1!$F$5,帮助!$BR:$BS,2,FALSE)&\":\"&VLOOKUP(Sheet1!$F$5,帮助!$BR:$BS,2,FALSE)),0))","v":{"$error":"#N/A"}},{"$f":"INDEX(Sheet1!H:H,MATCH(姓名查!$A5,INDIRECT(\"sheet1!\"&VLOOKUP(Sheet1!$F$5,帮助!$BR:$BS,2,FALSE)&\":\"&VLOOKUP(Sheet1!$F$5,帮助!$BR:$BS,2,FALSE)),0))","v":{"$error":"#N/A"}},{"$f":"INDEX(Sheet1!I:I,MATCH(姓名查!$A5,INDIRECT(\"sheet1!\"&VLOOKUP(Sheet1!$F$5,帮助!$BR:$BS,2,FALSE)&\":\"&VLOOKUP(Sheet1!$F$5,帮助!$BR:$BS,2,FALSE)),0))","v":{"$error":"#N/A"}},{"$f":"INDEX(Sheet1!J:J,MATCH(姓名查!$A5,INDIRECT(\"sheet1!\"&VLOOKUP(Sheet1!$F$5,帮助!$BR:$BS,2,FALSE)&\":\"&VLOOKUP(Sheet1!$F$5,帮助!$BR:$BS,2,FALSE)),0))","v":{"$error":"#N/A"}},{"$f":"INDEX(Sheet1!K:K,MATCH(姓名查!$A5,INDIRECT(\"sheet1!\"&VLOOKUP(Sheet1!$F$5,帮助!$BR:$BS,2,FALSE)&\":\"&VLOOKUP(Sheet1!$F$5,帮助!$BR:$BS,2,FALSE)),0))","v":{"$error":"#N/A"}},{"$f":"INDEX(Sheet1!L:L,MATCH(姓名查!$A5,INDIRECT(\"sheet1!\"&VLOOKUP(Sheet1!$F$5,帮助!$BR:$BS,2,FALSE)&\":\"&VLOOKUP(Sheet1!$F$5,帮助!$BR:$BS,2,FALSE)),0))","v":{"$error":"#N/A"}},{"$f":"INDEX(Sheet1!M:M,MATCH(姓名查!$A5,INDIRECT(\"sheet1!\"&VLOOKUP(Sheet1!$F$5,帮助!$BR:$BS,2,FALSE)&\":\"&VLOOKUP(Sheet1!$F$5,帮助!$BR:$BS,2,FALSE)),0))","v":{"$error":"#N/A"}},{"$f":"INDEX(Sheet1!N:N,MATCH(姓名查!$A5,INDIRECT(\"sheet1!\"&VLOOKUP(Sheet1!$F$5,帮助!$BR:$BS,2,FALSE)&\":\"&VLOOKUP(Sheet1!$F$5,帮助!$BR:$BS,2,FALSE)),0))","v":{"$error":"#N/A"}},{"$f":"INDEX(Sheet1!O:O,MATCH(姓名查!$A5,INDIRECT(\"sheet1!\"&VLOOKUP(Sheet1!$F$5,帮助!$BR:$BS,2,FALSE)&\":\"&VLOOKUP(Sheet1!$F$5,帮助!$BR:$BS,2,FALSE)),0))","v":{"$error":"#N/A"}},{"$f":"INDEX(Sheet1!P:P,MATCH(姓名查!$A5,INDIRECT(\"sheet1!\"&VLOOKUP(Sheet1!$F$5,帮助!$BR:$BS,2,FALSE)&\":\"&VLOOKUP(Sheet1!$F$5,帮助!$BR:$BS,2,FALSE)),0))","v":{"$error":"#N/A"}},{"$f":"INDEX(Sheet1!Q:Q,MATCH(姓名查!$A5,INDIRECT(\"sheet1!\"&VLOOKUP(Sheet1!$F$5,帮助!$BR:$BS,2,FALSE)&\":\"&VLOOKUP(Sheet1!$F$5,帮助!$BR:$BS,2,FALSE)),0))","v":{"$error":"#N/A"}}]
["王进9",{"$f":"INDEX(Sheet1!A:A,MATCH(姓名查!$A6,INDIRECT(\"sheet1!\"&VLOOKUP(Sheet1!$F$5,帮助!$BR:$BS,2,FALSE)&\":\"&VLOOKUP(Sheet1!$F$5,帮助!$BR:$BS,2,FALSE)),0))","v":{"$error":"#N/A"}},{"$f":"INDEX(Sheet1!B:B,MATCH(姓名查!$A6,INDIRECT(\"sheet1!\"&VLOOKUP(Sheet1!$F$5,帮助!$BR:$BS,2,FALSE)&\":\"&VLOOKUP(Sheet1!$F$5,帮助!$BR:$BS,2,FALSE)),0))","v":{"$error":"#N/A"}},{"$f":"INDEX(Sheet1!C:C,MATCH(姓名查!$A6,INDIRECT(\"sheet1!\"&VLOOKUP(Sheet1!$F$5,帮助!$BR:$BS,2,FALSE)&\":\"&VLOOKUP(Sheet1!$F$5,帮助!$BR:$BS,2,FALSE)),0))","v":{"$error":"#N/A"}},{"$f":"INDEX(Sheet1!D:D,MATCH(姓名查!$A6,INDIRECT(\"sheet1!\"&VLOOKUP(Sheet1!$F$5,帮助!$BR:$BS,2,FALSE)&\":\"&VLOOKUP(Sheet1!$F$5,帮助!$BR:$BS,2,FALSE)),0))","v":{"$error":"#N/A"}},{"$f":"INDEX(Sheet1!E:E,MATCH(姓名查!$A6,INDIRECT(\"sheet1!\"&VLOOKUP(Sheet1!$F$5,帮助!$BR:$BS,2,FALSE)&\":\"&VLOOKUP(Sheet1!$F$5,帮助!$BR:$BS,2,FALSE)),0))","v":{"$error":"#N/A"}},{"$f":"INDEX(Sheet1!F:F,MATCH(姓名查!$A6,INDIRECT(\"sheet1!\"&VLOOKUP(Sheet1!$F$5,帮助!$BR:$BS,2,FALSE)&\":\"&VLOOKUP(Sheet1!$F$5,帮助!$BR:$BS,2,FALSE)),0))","v":{"$error":"#N/A"}},{"$f":"INDEX(Sheet1!G:G,MATCH(姓名查!$A6,INDIRECT(\"sheet1!\"&VLOOKUP(Sheet1!$F$5,帮助!$BR:$BS,2,FALSE)&\":\"&VLOOKUP(Sheet1!$F$5,帮助!$BR:$BS,2,FALSE)),0))","v":{"$error":"#N/A"}},{"$f":"INDEX(Sheet1!H:H,MATCH(姓名查!$A6,INDIRECT(\"sheet1!\"&VLOOKUP(Sheet1!$F$5,帮助!$BR:$BS,2,FALSE)&\":\"&VLOOKUP(Sheet1!$F$5,帮助!$BR:$BS,2,FALSE)),0))","v":{"$error":"#N/A"}},{"$f":"INDEX(Sheet1!I:I,MATCH(姓名查!$A6,INDIRECT(\"sheet1!\"&VLOOKUP(Sheet1!$F$5,帮助!$BR:$BS,2,FALSE)&\":\"&VLOOKUP(Sheet1!$F$5,帮助!$BR:$BS,2,FALSE)),0))","v":{"$error":"#N/A"}},{"$f":"INDEX(Sheet1!J:J,MATCH(姓名查!$A6,INDIRECT(\"sheet1!\"&VLOOKUP(Sheet1!$F$5,帮助!$BR:$BS,2,FALSE)&\":\"&VLOOKUP(Sheet1!$F$5,帮助!$BR:$BS,2,FALSE)),0))","v":{"$error":"#N/A"}},{"$f":"INDEX(Sheet1!K:K,MATCH(姓名查!$A6,INDIRECT(\"sheet1!\"&VLOOKUP(Sheet1!$F$5,帮助!$BR:$BS,2,FALSE)&\":\"&VLOOKUP(Sheet1!$F$5,帮助!$BR:$BS,2,FALSE)),0))","v":{"$error":"#N/A"}},{"$f":"INDEX(Sheet1!L:L,MATCH(姓名查!$A6,INDIRECT(\"sheet1!\"&VLOOKUP(Sheet1!$F$5,帮助!$BR:$BS,2,FALSE)&\":\"&VLOOKUP(Sheet1!$F$5,帮助!$BR:$BS,2,FALSE)),0))","v":{"$error":"#N/A"}},{"$f":"INDEX(Sheet1!M:M,MATCH(姓名查!$A6,INDIRECT(\"sheet1!\"&VLOOKUP(Sheet1!$F$5,帮助!$BR:$BS,2,FALSE)&\":\"&VLOOKUP(Sheet1!$F$5,帮助!$BR:$BS,2,FALSE)),0))","v":{"$error":"#N/A"}},{"$f":"INDEX(Sheet1!N:N,MATCH(姓名查!$A6,INDIRECT(\"sheet1!\"&VLOOKUP(Sheet1!$F$5,帮助!$BR:$BS,2,FALSE)&\":\"&VLOOKUP(Sheet1!$F$5,帮助!$BR:$BS,2,FALSE)),0))","v":{"$error":"#N/A"}},{"$f":"INDEX(Sheet1!O:O,MATCH(姓名查!$A6,INDIRECT(\"sheet1!\"&VLOOKUP(Sheet1!$F$5,帮助!$BR:$BS,2,FALSE)&\":\"&VLOOKUP(Sheet1!$F$5,帮助!$BR:$BS,2,FALSE)),0))","v":{"$error":"#N/A"}},{"$f":"INDEX(Sheet1!P:P,MATCH(姓名查!$A6,INDIRECT(\"sheet1!\"&VLOOKUP(Sheet1!$F$5,帮助!$BR:$BS,2,FALSE)&\":\"&VLOOKUP(Sheet1!$F$5,帮助!$BR:$BS,2,FALSE)),0))","v":{"$error":"#N/A"}},{"$f":"INDEX(Sheet1!Q:Q,MATCH(姓名查!$A6,INDIRECT(\"sheet1!\"&VLOOKUP(Sheet1!$F$5,帮助!$BR:$BS,2,FALSE)&\":\"&VLOOKUP(Sheet1!$F$5,帮助!$BR:$BS,2,FALSE)),0))","v":{"$error":"#N/A"}}]
[null,{"$f":"INDEX(Sheet1!A:A,MATCH(姓名查!$A7,INDIRECT(\"sheet1!\"&VLOOKUP(Sheet1!$F$5,帮助!$BR:$BS,2,FALSE)&\":\"&VLOOKUP(Sheet1!$F$5,帮助!$BR:$BS,2,FALSE)),0))","v":{"$error":"#N/A"}},{"$f":"INDEX(Sheet1!B:B,MATCH(姓名查!$A7,INDIRECT(\"sheet1!\"&VLOOKUP(Sheet1!$F$5,帮助!$BR:$BS,2,FALSE)&\":\"&VLOOKUP(Sheet1!$F$5,帮助!$BR:$BS,2,FALSE)),0))","v":{"$error":"#N/A"}},{"$f":"INDEX(Sheet1!C:C,MATCH(姓名查!$A7,INDIRECT(\"sheet1!\"&VLOOKUP(Sheet1!$F$5,帮助!$BR:$BS,2,FALSE)&\":\"&VLOOKUP(Sheet1!$F$5,帮助!$BR:$BS,2,FALSE)),0))","v":{"$error":"#N/A"}},{"$f":"INDEX(Sheet1!D:D,MATCH(姓名查!$A7,INDIRECT(\"sheet1!\"&VLOOKUP(Sheet1!$F$5,帮助!$BR:$BS,2,FALSE)&\":\"&VLOOKUP(Sheet1!$F$5,帮助!$BR:$BS,2,FALSE)),0))","v":{"$error":"#N/A"}},{"$f":"INDEX(Sheet1!E:E,MATCH(姓名查!$A7,INDIRECT(\"sheet1!\"&VLOOKUP(Sheet1!$F$5,帮助!$BR:$BS,2,FALSE)&\":\"&VLOOKUP(Sheet1!$F$5,帮助!$BR:$BS,2,FALSE)),0))","v":{"$error":"#N/A"}},{"$f":"INDEX(Sheet1!F:F,MATCH(姓名查!$A7,INDIRECT(\"sheet1!\"&VLOOKUP(Sheet1!$F$5,帮助!$BR:$BS,2,FALSE)&\":\"&VLOOKUP(Sheet1!$F$5,帮助!$BR:$BS,2,FALSE)),0))","v":{"$error":"#N/A"}},{"$f":"INDEX(Sheet1!G:G,MATCH(姓名查!$A7,INDIRECT(\"sheet1!\"&VLOOKUP(Sheet1!$F$5,帮助!$BR:$BS,2,FALSE)&\":\"&VLOOKUP(Sheet1!$F$5,帮助!$BR:$BS,2,FALSE)),0))","v":{"$error":"#N/A"}},{"$f":"INDEX(Sheet1!H:H,MATCH(姓名查!$A7,INDIRECT(\"sheet1!\"&VLOOKUP(Sheet1!$F$5,帮助!$BR:$BS,2,FALSE)&\":\"&VLOOKUP(Sheet1!$F$5,帮助!$BR:$BS,2,FALSE)),0))","v":{"$error":"#N/A"}},{"$f":"INDEX(Sheet1!I:I,MATCH(姓名查!$A7,INDIRECT(\"sheet1!\"&VLOOKUP(Sheet1!$F$5,帮助!$BR:$BS,2,FALSE)&\":\"&VLOOKUP(Sheet1!$F$5,帮助!$BR:$BS,2,FALSE)),0))","v":{"$error":"#N/A"}},{"$f":"INDEX(Sheet1!J:J,MATCH(姓名查!$A7,INDIRECT(\"sheet1!\"&VLOOKUP(Sheet1!$F$5,帮助!$BR:$BS,2,FALSE)&\":\"&VLOOKUP(Sheet1!$F$5,帮助!$BR:$BS,2,FALSE)),0))","v":{"$error":"#N/A"}},{"$f":"INDEX(Sheet1!K:K,MATCH(姓名查!$A7,INDIRECT(\"sheet1!\"&VLOOKUP(Sheet1!$F$5,帮助!$BR:$BS,2,FALSE)&\":\"&VLOOKUP(Sheet1!$F$5,帮助!$BR:$BS,2,FALSE)),0))","v":{"$error":"#N/A"}},{"$f":"INDEX(Sheet1!L:L,MATCH(姓名查!$A7,INDIRECT(\"sheet1!\"&VLOOKUP(Sheet1!$F$5,帮助!$BR:$BS,2,FALSE)&\":\"&VLOOKUP(Sheet1!$F$5,帮助!$BR:$BS,2,FALSE)),0))","v":{"$error":"#N/A"}},{"$f":"INDEX(Sheet1!M:M,MATCH(姓名查!$A7,INDIRECT(\"sheet1!\"&VLOOKUP(Sheet1!$F$5,帮助!$BR:$BS,2,FALSE)&\":\"&VLOOKUP(Sheet1!$F$5,帮助!$BR:$BS,2,FALSE)),0))","v":{"$error":"#N/A"}},{"$f":"INDEX(Sheet1!N:N,MATCH(姓名查!$A7,INDIRECT(\"sheet1!\"&VLOOKUP(Sheet1!$F$5,帮助!$BR:$BS,2,FALSE)&\":\"&VLOOKUP(Sheet1!$F$5,帮助!$BR:$BS,2,FALSE)),0))","v":{"$error":"#N/A"}},{"$f":"INDEX(Sheet1!O:O,MATCH(姓名查!$A7,INDIRECT(\"sheet1!\"&VLOOKUP(Sheet1!$F$5,帮助!$BR:$BS,2,FALSE)&\":\"&VLOOKUP(Sheet1!$F$5,帮助!$BR:$BS,2,FALSE)),0))","v":{"$error":"#N/A"}},{"$f":"INDEX(Sheet1!P:P,MATCH(姓名查!$A7,INDIRECT(\"sheet1!\"&VLOOKUP(Sheet1!$F$5,帮助!$BR:$BS,2,FALSE)&\":\"&VLOOKUP(Sheet1!$F$5,帮助!$BR:$BS,2,FALSE)),0))","v":{"$error":"#N/A"}},{"$f":"INDEX(Sheet1!Q:Q,MATCH(姓名查!$A7,INDIRECT(\"sheet1!\"&VLOOKUP(Sheet1!$F$5,帮助!$BR:$BS,2,FALSE)&\":\"&VLOOKUP(Sheet1!$F$5,帮助!$BR:$BS,2,FALSE)),0))","v":{"$error":"#N/A"}}]
[null,{"$f":"INDEX(Sheet1!A:A,MATCH(姓名查!$A8,INDIRECT(\"sheet1!\"&VLOOKUP(Sheet1!$F$5,帮助!$BR:$BS,2,FALSE)&\":\"&VLOOKUP(Sheet1!$F$5,帮助!$BR:$BS,2,FALSE)),0))","v":{"$error":"#N/A"}},{"$f":"INDEX(Sheet1!B:B,MATCH(姓名查!$A8,INDIRECT(\"sheet1!\"&VLOOKUP(Sheet1!$F$5,帮助!$BR:$BS,2,FALSE)&\":\"&VLOOKUP(Sheet1!$F$5,帮助!$BR:$BS,2,FALSE)),0))","v":{"$error":"#N/A"}},{"$f":"INDEX(Sheet1!C:C,MATCH(姓名查!$A8,INDIRECT(\"sheet1!\"&VLOOKUP(Sheet1!$F$5,帮助!$BR:$BS,2,FALSE)&\":\"&VLOOKUP(Sheet1!$F$5,帮助!$BR:$BS,2,FALSE)),0))","v":{"$error":"#N/A"}},{"$f":"INDEX(Sheet1!D:D,MATCH(姓名查!$A8,INDIRECT(\"sheet1!\"&VLOOKUP(Sheet1!$F$5,帮助!$BR:$BS,2,FALSE)&\":\"&VLOOKUP(Sheet1!$F$5,帮助!$BR:$BS,2,FALSE)),0))","v":{"$error":"#N/A"}},{"$f":"INDEX(Sheet1!E:E,MATCH(姓名查!$A8,INDIRECT(\"sheet1!\"&VLOOKUP(Sheet1!$F$5,帮助!$BR:$BS,2,FALSE)&\":\"&VLOOKUP(Sheet1!$F$5,帮助!$BR:$BS,2,FALSE)),0))","v":{"$error":"#N/A"}},{"$f":"INDEX(Sheet1!F:F,MATCH(姓名查!$A8,INDIRECT(\"sheet1!\"&VLOOKUP(Sheet1!$F$5,帮助!$BR:$BS,2,FALSE)&\":\"&VLOOKUP(Sheet1!$F$5,帮助!$BR:$BS,2,FALSE)),0))","v":{"$error":"#N/A"}},{"$f":"INDEX(Sheet1!G:G,MATCH(姓名查!$A8,INDIRECT(\"sheet1!\"&VLOOKUP(Sheet1!$F$5,帮助!$BR:$BS,2,FALSE)&\":\"&VLOOKUP(Sheet1!$F$5,帮助!$BR:$BS,2,FALSE)),0))","v":{"$error":"#N/A"}},{"$f":"INDEX(Sheet1!H:H,MATCH(姓名查!$A8,INDIRECT(\"sheet1!\"&VLOOKUP(Sheet1!$F$5,帮助!$BR:$BS,2,FALSE)&\":\"&VLOOKUP(Sheet1!$F$5,帮助!$BR:$BS,2,FALSE)),0))","v":{"$error":"#N/A"}},{"$f":"INDEX(Sheet1!I:I,MATCH(姓名查!$A8,INDIRECT(\"sheet1!\"&VLOOKUP(Sheet1!$F$5,帮助!$BR:$BS,2,FALSE)&\":\"&VLOOKUP(Sheet1!$F$5,帮助!$BR:$BS,2,FALSE)),0))","v":{"$error":"#N/A"}},{"$f":"INDEX(Sheet1!J:J,MATCH(姓名查!$A8,INDIRECT(\"sheet1!\"&VLOOKUP(Sheet1!$F$5,帮助!$BR:$BS,2,FALSE)&\":\"&VLOOKUP(Sheet1!$F$5,帮助!$BR:$BS,2,FALSE)),0))","v":{"$error":"#N/A"}},{"$f":"INDEX(Sheet1!K:K,MATCH(姓名查!$A8,INDIRECT(\"sheet1!\"&VLOOKUP(Sheet1!$F$5,帮助!$BR:$BS,2,FALSE)&\":\"&VLOOKUP(Sheet1!$F$5,帮助!$BR:$BS,2,FALSE)),0))","v":{"$error":"#N/A"}},{"$f":"INDEX(Sheet1!L:L,MATCH(姓名查!$A8,INDIRECT(\"sheet1!\"&VLOOKUP(Sheet1!$F$5,帮助!$BR:$BS,2,FALSE)&\":\"&VLOOKUP(Sheet1!$F$5,帮助!$BR:$BS,2,FALSE)),0))","v":{"$error":"#N/A"}},{"$f":"INDEX(Sheet1!M:M,MATCH(姓名查!$A8,INDIRECT(\"sheet1!\"&VLOOKUP(Sheet1!$F$5,帮助!$BR:$BS,2,FALSE)&\":\"&VLOOKUP(Sheet1!$F$5,帮助!$BR:$BS,2,FALSE)),0))","v":{"$error":"#N/A"}},{"$f":"INDEX(Sheet1!N:N,MATCH(姓名查!$A8,INDIRECT(\"sheet1!\"&VLOOKUP(Sheet1!$F$5,帮助!$BR:$BS,2,FALSE)&\":\"&VLOOKUP(Sheet1!$F$5,帮助!$BR:$BS,2,FALSE)),0))","v":{"$error":"#N/A"}},{"$f":"INDEX(Sheet1!O:O,MATCH(姓名查!$A8,INDIRECT(\"sheet1!\"&VLOOKUP(Sheet1!$F$5,帮助!$BR:$BS,2,FALSE)&\":\"&VLOOKUP(Sheet1!$F$5,帮助!$BR:$BS,2,FALSE)),0))","v":{"$error":"#N/A"}},{"$f":"INDEX(Sheet1!P:P,MATCH(姓名查!$A8,INDIRECT(\"sheet1!\"&VLOOKUP(Sheet1!$F$5,帮助!$BR:$BS,2,FALSE)&\":\"&VLOOKUP(Sheet1!$F$5,帮助!$BR:$BS,2,FALSE)),0))","v":{"$error":"#N/A"}},{"$f":"INDEX(Sheet1!Q:Q,MATCH(姓名查!$A8,INDIRECT(\"sheet1!\"&VLOOKUP(Sheet1!$F$5,帮助!$BR:$BS,2,FALSE)&\":\"&VLOOKUP(Sheet1!$F$5,帮助!$BR:$BS,2,FALSE)),0))","v":{"$error":"#N/A"}}]
[null,{"$f":"INDEX(Sheet1!A:A,MATCH(姓名查!$A9,INDIRECT(\"sheet1!\"&VLOOKUP(Sheet1!$F$5,帮助!$BR:$BS,2,FALSE)&\":\"&VLOOKUP(Sheet1!$F$5,帮助!$BR:$BS,2,FALSE)),0))","v":{"$error":"#N/A"}},{"$f":"INDEX(Sheet1!B:B,MATCH(姓名查!$A9,INDIRECT(\"sheet1!\"&VLOOKUP(Sheet1!$F$5,帮助!$BR:$BS,2,FALSE)&\":\"&VLOOKUP(Sheet1!$F$5,帮助!$BR:$BS,2,FALSE)),0))","v":{"$error":"#N/A"}},{"$f":"INDEX(Sheet1!C:C,MATCH(姓名查!$A9,INDIRECT(\"sheet1!\"&VLOOKUP(Sheet1!$F$5,帮助!$BR:$BS,2,FALSE)&\":\"&VLOOKUP(Sheet1!$F$5,帮助!$BR:$BS,2,FALSE)),0))","v":{"$error":"#N/A"}},{"$f":"INDEX(Sheet1!D:D,MATCH(姓名查!$A9,INDIRECT(\"sheet1!\"&VLOOKUP(Sheet1!$F$5,帮助!$BR:$BS,2,FALSE)&\":\"&VLOOKUP(Sheet1!$F$5,帮助!$BR:$BS,2,FALSE)),0))","v":{"$error":"#N/A"}},{"$f":"INDEX(Sheet1!E:E,MATCH(姓名查!$A9,INDIRECT(\"sheet1!\"&VLOOKUP(Sheet1!$F$5,帮助!$BR:$BS,2,FALSE)&\":\"&VLOOKUP(Sheet1!$F$5,帮助!$BR:$BS,2,FALSE)),0))","v":{"$error":"#N/A"}},{"$f":"INDEX(Sheet1!F:F,MATCH(姓名查!$A9,INDIRECT(\"sheet1!\"&VLOOKUP(Sheet1!$F$5,帮助!$BR:$BS,2,FALSE)&\":\"&VLOOKUP(Sheet1!$F$5,帮助!$BR:$BS,2,FALSE)),0))","v":{"$error":"#N/A"}},{"$f":"INDEX(Sheet1!G:G,MATCH(姓名查!$A9,INDIRECT(\"sheet1!\"&VLOOKUP(Sheet1!$F$5,帮助!$BR:$BS,2,FALSE)&\":\"&VLOOKUP(Sheet1!$F$5,帮助!$BR:$BS,2,FALSE)),0))","v":{"$error":"#N/A"}},{"$f":"INDEX(Sheet1!H:H,MATCH(姓名查!$A9,INDIRECT(\"sheet1!\"&VLOOKUP(Sheet1!$F$5,帮助!$BR:$BS,2,FALSE)&\":\"&VLOOKUP(Sheet1!$F$5,帮助!$BR:$BS,2,FALSE)),0))","v":{"$error":"#N/A"}},{"$f":"INDEX(Sheet1!I:I,MATCH(姓名查!$A9,INDIRECT(\"sheet1!\"&VLOOKUP(Sheet1!$F$5,帮助!$BR:$BS,2,FALSE)&\":\"&VLOOKUP(Sheet1!$F$5,帮助!$BR:$BS,2,FALSE)),0))","v":{"$error":"#N/A"}},{"$f":"INDEX(Sheet1!J:J,MATCH(姓名查!$A9,INDIRECT(\"sheet1!\"&VLOOKUP(Sheet1!$F$5,帮助!$BR:$BS,2,FALSE)&\":\"&VLOOKUP(Sheet1!$F$5,帮助!$BR:$BS,2,FALSE)),0))","v":{"$error":"#N/A"}},{"$f":"INDEX(Sheet1!K:K,MATCH(姓名查!$A9,INDIRECT(\"sheet1!\"&VLOOKUP(Sheet1!$F$5,帮助!$BR:$BS,2,FALSE)&\":\"&VLOOKUP(Sheet1!$F$5,帮助!$BR:$BS,2,FALSE)),0))","v":{"$error":"#N/A"}},{"$f":"INDEX(Sheet1!L:L,MATCH(姓名查!$A9,INDIRECT(\"sheet1!\"&VLOOKUP(Sheet1!$F$5,帮助!$BR:$BS,2,FALSE)&\":\"&VLOOKUP(Sheet1!$F$5,帮助!$BR:$BS,2,FALSE)),0))","v":{"$error":"#N/A"}},{"$f":"INDEX(Sheet1!M:M,MATCH(姓名查!$A9,INDIRECT(\"sheet1!\"&VLOOKUP(Sheet1!$F$5,帮助!$BR:$BS,2,FALSE)&\":\"&VLOOKUP(Sheet1!$F$5,帮助!$BR:$BS,2,FALSE)),0))","v":{"$error":"#N/A"}},{"$f":"INDEX(Sheet1!N:N,MATCH(姓名查!$A9,INDIRECT(\"sheet1!\"&VLOOKUP(Sheet1!$F$5,帮助!$BR:$BS,2,FALSE)&\":\"&VLOOKUP(Sheet1!$F$5,帮助!$BR:$BS,2,FALSE)),0))","v":{"$error":"#N/A"}},{"$f":"INDEX(Sheet1!O:O,MATCH(姓名查!$A9,INDIRECT(\"sheet1!\"&VLOOKUP(Sheet1!$F$5,帮助!$BR:$BS,2,FALSE)&\":\"&VLOOKUP(Sheet1!$F$5,帮助!$BR:$BS,2,FALSE)),0))","v":{"$error":"#N/A"}},{"$f":"INDEX(Sheet1!P:P,MATCH(姓名查!$A9,INDIRECT(\"sheet1!\"&VLOOKUP(Sheet1!$F$5,帮助!$BR:$BS,2,FALSE)&\":\"&VLOOKUP(Sheet1!$F$5,帮助!$BR:$BS,2,FALSE)),0))","v":{"$error":"#N/A"}},{"$f":"INDEX(Sheet1!Q:Q,MATCH(姓名查!$A9,INDIRECT(\"sheet1!\"&VLOOKUP(Sheet1!$F$5,帮助!$BR:$BS,2,FALSE)&\":\"&VLOOKUP(Sheet1!$F$5,帮助!$BR:$BS,2,FALSE)),0))","v":{"$error":"#N/A"}}]
[null,{"$f":"INDEX(Sheet1!A:A,MATCH(姓名查!$A10,INDIRECT(\"sheet1!\"&VLOOKUP(Sheet1!$F$5,帮助!$BR:$BS,2,FALSE)&\":\"&VLOOKUP(Sheet1!$F$5,帮助!$BR:$BS,2,FALSE)),0))","v":{"$error":"#N/A"}},{"$f":"INDEX(Sheet1!B:B,MATCH(姓名查!$A10,INDIRECT(\"sheet1!\"&VLOOKUP(Sheet1!$F$5,帮助!$BR:$BS,2,FALSE)&\":\"&VLOOKUP(Sheet1!$F$5,帮助!$BR:$BS,2,FALSE)),0))","v":{"$error":"#N/A"}},{"$f":"INDEX(Sheet1!C:C,MATCH(姓名查!$A10,INDIRECT(\"sheet1!\"&VLOOKUP(Sheet1!$F$5,帮助!$BR:$BS,2,FALSE)&\":\"&VLOOKUP(Sheet1!$F$5,帮助!$BR:$BS,2,FALSE)),0))","v":{"$error":"#N/A"}},{"$f":"INDEX(Sheet1!D:D,MATCH(姓名查!$A10,INDIRECT(\"sheet1!\"&VLOOKUP(Sheet1!$F$5,帮助!$BR:$BS,2,FALSE)&\":\"&VLOOKUP(Sheet1!$F$5,帮助!$BR:$BS,2,FALSE)),0))","v":{"$error":"#N/A"}},{"$f":"INDEX(Sheet1!E:E,MATCH(姓名查!$A10,INDIRECT(\"sheet1!\"&VLOOKUP(Sheet1!$F$5,帮助!$BR:$BS,2,FALSE)&\":\"&VLOOKUP(Sheet1!$F$5,帮助!$BR:$BS,2,FALSE)),0))","v":{"$error":"#N/A"}},{"$f":"INDEX(Sheet1!F:F,MATCH(姓名查!$A10,INDIRECT(\"sheet1!\"&VLOOKUP(Sheet1!$F$5,帮助!$BR:$BS,2,FALSE)&\":\"&VLOOKUP(Sheet1!$F$5,帮助!$BR:$BS,2,FALSE)),0))","v":{"$error":"#N/A"}},{"$f":"INDEX(Sheet1!G:G,MATCH(姓名查!$A10,INDIRECT(\"sheet1!\"&VLOOKUP(Sheet1!$F$5,帮助!$BR:$BS,2,FALSE)&\":\"&VLOOKUP(Sheet1!$F$5,帮助!$BR:$BS,2,FALSE)),0))","v":{"$error":"#N/A"}},{"$f":"INDEX(Sheet1!H:H,MATCH(姓名查!$A10,INDIRECT(\"sheet1!\"&VLOOKUP(Sheet1!$F$5,帮助!$BR:$BS,2,FALSE)&\":\"&VLOOKUP(Sheet1!$F$5,帮助!$BR:$BS,2,FALSE)),0))","v":{"$error":"#N/A"}},{"$f":"INDEX(Sheet1!I:I,MATCH(姓名查!$A10,INDIRECT(\"sheet1!\"&VLOOKUP(Sheet1!$F$5,帮助!$BR:$BS,2,FALSE)&\":\"&VLOOKUP(Sheet1!$F$5,帮助!$BR:$BS,2,FALSE)),0))","v":{"$error":"#N/A"}},{"$f":"INDEX(Sheet1!J:J,MATCH(姓名查!$A10,INDIRECT(\"sheet1!\"&VLOOKUP(Sheet1!$F$5,帮助!$BR:$BS,2,FALSE)&\":\"&VLOOKUP(Sheet1!$F$5,帮助!$BR:$BS,2,FALSE)),0))","v":{"$error":"#N/A"}},{"$f":"INDEX(Sheet1!K:K,MATCH(姓名查!$A10,INDIRECT(\"sheet1!\"&VLOOKUP(Sheet1!$F$5,帮助!$BR:$BS,2,FALSE)&\":\"&VLOOKUP(Sheet1!$F$5,帮助!$BR:$BS,2,FALSE)),0))","v":{"$error":"#N/A"}},{"$f":"INDEX(Sheet1!L:L,MATCH(姓名查!$A10,INDIRECT(\"sheet1!\"&VLOOKUP(Sheet1!$F$5,帮助!$BR:$BS,2,FALSE)&\":\"&VLOOKUP(Sheet1!$F$5,帮助!$BR:$BS,2,FALSE)),0))","v":{"$error":"#N/A"}},{"$f":"INDEX(Sheet1!M:M,MATCH(姓名查!$A10,INDIRECT(\"sheet1!\"&VLOOKUP(Sheet1!$F$5,帮助!$BR:$BS,2,FALSE)&\":\"&VLOOKUP(Sheet1!$F$5,帮助!$BR:$BS,2,FALSE)),0))","v":{"$error":"#N/A"}},{"$f":"INDEX(Sheet1!N:N,MATCH(姓名查!$A10,INDIRECT(\"sheet1!\"&VLOOKUP(Sheet1!$F$5,帮助!$BR:$BS,2,FALSE)&\":\"&VLOOKUP(Sheet1!$F$5,帮助!$BR:$BS,2,FALSE)),0))","v":{"$error":"#N/A"}},{"$f":"INDEX(Sheet1!O:O,MATCH(姓名查!$A10,INDIRECT(\"sheet1!\"&VLOOKUP(Sheet1!$F$5,帮助!$BR:$BS,2,FALSE)&\":\"&VLOOKUP(Sheet1!$F$5,帮助!$BR:$BS,2,FALSE)),0))","v":{"$error":"#N/A"}},{"$f":"INDEX(Sheet1!P:P,MATCH(姓名查!$A10,INDIRECT(\"sheet1!\"&VLOOKUP(Sheet1!$F$5,帮助!$BR:$BS,2,FALSE)&\":\"&VLOOKUP(Sheet1!$F$5,帮助!$BR:$BS,2,FALSE)),0))","v":{"$error":"#N/A"}},{"$f":"INDEX(Sheet1!Q:Q,MATCH(姓名查!$A10,INDIRECT(\"sheet1!\"&VLOOKUP(Sheet1!$F$5,帮助!$BR:$BS,2,FALSE)&\":\"&VLOOKUP(Sheet1!$F$5,帮助!$BR:$BS,2,FALSE)),0))","v":{"$error":"#N/A"}}]
[null,{"$f":"INDEX(Sheet1!A:A,MATCH(姓名查!$A11,INDIRECT(\"sheet1!\"&VLOOKUP(Sheet1!$F$5,帮助!$BR:$BS,2,FALSE)&\":\"&VLOOKUP(Sheet1!$F$5,帮助!$BR:$BS,2,FALSE)),0))","v":{"$error":"#N/A"}},{"$f":"INDEX(Sheet1!B:B,MATCH(姓名查!$A11,INDIRECT(\"sheet1!\"&VLOOKUP(Sheet1!$F$5,帮助!$BR:$BS,2,FALSE)&\":\"&VLOOKUP(Sheet1!$F$5,帮助!$BR:$BS,2,FALSE)),0))","v":{"$error":"#N/A"}},{"$f":"INDEX(Sheet1!C:C,MATCH(姓名查!$A11,INDIRECT(\"sheet1!\"&VLOOKUP(Sheet1!$F$5,帮助!$BR:$BS,2,FALSE)&\":\"&VLOOKUP(Sheet1!$F$5,帮助!$BR:$BS,2,FALSE)),0))","v":{"$error":"#N/A"}},{"$f":"INDEX(Sheet1!D:D,MATCH(姓名查!$A11,INDIRECT(\"sheet1!\"&VLOOKUP(Sheet1!$F$5,帮助!$BR:$BS,2,FALSE)&\":\"&VLOOKUP(Sheet1!$F$5,帮助!$BR:$BS,2,FALSE)),0))","v":{"$error":"#N/A"}},{"$f":"INDEX(Sheet1!E:E,MATCH(姓名查!$A11,INDIRECT(\"sheet1!\"&VLOOKUP(Sheet1!$F$5,帮助!$BR:$BS,2,FALSE)&\":\"&VLOOKUP(Sheet1!$F$5,帮助!$BR:$BS,2,FALSE)),0))","v":{"$error":"#N/A"}},{"$f":"INDEX(Sheet1!F:F,MATCH(姓名查!$A11,INDIRECT(\"sheet1!\"&VLOOKUP(Sheet1!$F$5,帮助!$BR:$BS,2,FALSE)&\":\"&VLOOKUP(Sheet1!$F$5,帮助!$BR:$BS,2,FALSE)),0))","v":{"$error":"#N/A"}},{"$f":"INDEX(Sheet1!G:G,MATCH(姓名查!$A11,INDIRECT(\"sheet1!\"&VLOOKUP(Sheet1!$F$5,帮助!$BR:$BS,2,FALSE)&\":\"&VLOOKUP(Sheet1!$F$5,帮助!$BR:$BS,2,FALSE)),0))","v":{"$error":"#N/A"}},{"$f":"INDEX(Sheet1!H:H,MATCH(姓名查!$A11,INDIRECT(\"sheet1!\"&VLOOKUP(Sheet1!$F$5,帮助!$BR:$BS,2,FALSE)&\":\"&VLOOKUP(Sheet1!$F$5,帮助!$BR:$BS,2,FALSE)),0))","v":{"$error":"#N/A"}},{"$f":"INDEX(Sheet1!I:I,MATCH(姓名查!$A11,INDIRECT(\"sheet1!\"&VLOOKUP(Sheet1!$F$5,帮助!$BR:$BS,2,FALSE)&\":\"&VLOOKUP(Sheet1!$F$5,帮助!$BR:$BS,2,FALSE)),0))","v":{"$error":"#N/A"}},{"$f":"INDEX(Sheet1!J:J,MATCH(姓名查!$A11,INDIRECT(\"sheet1!\"&VLOOKUP(Sheet1!$F$5,帮助!$BR:$BS,2,FALSE)&\":\"&VLOOKUP(Sheet1!$F$5,帮助!$BR:$BS,2,FALSE)),0))","v":{"$error":"#N/A"}},{"$f":"INDEX(Sheet1!K:K,MATCH(姓名查!$A11,INDIRECT(\"sheet1!\"&VLOOKUP(Sheet1!$F$5,帮助!$BR:$BS,2,FALSE)&\":\"&VLOOKUP(Sheet1!$F$5,帮助!$BR:$BS,2,FALSE)),0))","v":{"$error":"#N/A"}},{"$f":"INDEX(Sheet1!L:L,MATCH(姓名查!$A11,INDIRECT(\"sheet1!\"&VLOOKUP(Sheet1!$F$5,帮助!$BR:$BS,2,FALSE)&\":\"&VLOOKUP(Sheet1!$F$5,帮助!$BR:$BS,2,FALSE)),0))","v":{"$error":"#N/A"}},{"$f":"INDEX(Sheet1!M:M,MATCH(姓名查!$A11,INDIRECT(\"sheet1!\"&VLOOKUP(Sheet1!$F$5,帮助!$BR:$BS,2,FALSE)&\":\"&VLOOKUP(Sheet1!$F$5,帮助!$BR:$BS,2,FALSE)),0))","v":{"$error":"#N/A"}},{"$f":"INDEX(Sheet1!N:N,MATCH(姓名查!$A11,INDIRECT(\"sheet1!\"&VLOOKUP(Sheet1!$F$5,帮助!$BR:$BS,2,FALSE)&\":\"&VLOOKUP(Sheet1!$F$5,帮助!$BR:$BS,2,FALSE)),0))","v":{"$error":"#N/A"}},{"$f":"INDEX(Sheet1!O:O,MATCH(姓名查!$A11,INDIRECT(\"sheet1!\"&VLOOKUP(Sheet1!$F$5,帮助!$BR:$BS,2,FALSE)&\":\"&VLOOKUP(Sheet1!$F$5,帮助!$BR:$BS,2,FALSE)),0))","v":{"$error":"#N/A"}},{"$f":"INDEX(Sheet1!P:P,MATCH(姓名查!$A11,INDIRECT(\"sheet1!\"&VLOOKUP(Sheet1!$F$5,帮助!$BR:$BS,2,FALSE)&\":\"&VLOOKUP(Sheet1!$F$5,帮助!$BR:$BS,2,FALSE)),0))","v":{"$error":"#N/A"}},{"$f":"INDEX(Sheet1!Q:Q,MATCH(姓名查!$A11,INDIRECT(\"sheet1!\"&VLOOKUP(Sheet1!$F$5,帮助!$BR:$BS,2,FALSE)&\":\"&VLOOKUP(Sheet1!$F$5,帮助!$BR:$BS,2,FALSE)),0))","v":{"$error":"#N/A"}}]
[null,{"$f":"INDEX(Sheet1!A:A,MATCH(姓名查!$A12,INDIRECT(\"sheet1!\"&VLOOKUP(Sheet1!$F$5,帮助!$BR:$BS,2,FALSE)&\":\"&VLOOKUP(Sheet1!$F$5,帮助!$BR:$BS,2,FALSE)),0))","v":{"$error":"#N/A"}},{"$f":"INDEX(Sheet1!B:B,MATCH(姓名查!$A12,INDIRECT(\"sheet1!\"&VLOOKUP(Sheet1!$F$5,帮助!$BR:$BS,2,FALSE)&\":\"&VLOOKUP(Sheet1!$F$5,帮助!$BR:$BS,2,FALSE)),0))","v":{"$error":"#N/A"}},{"$f":"INDEX(Sheet1!C:C,MATCH(姓名查!$A12,INDIRECT(\"sheet1!\"&VLOOKUP(Sheet1!$F$5,帮助!$BR:$BS,2,FALSE)&\":\"&VLOOKUP(Sheet1!$F$5,帮助!$BR:$BS,2,FALSE)),0))","v":{"$error":"#N/A"}},{"$f":"INDEX(Sheet1!D:D,MATCH(姓名查!$A12,INDIRECT(\"sheet1!\"&VLOOKUP(Sheet1!$F$5,帮助!$BR:$BS,2,FALSE)&\":\"&VLOOKUP(Sheet1!$F$5,帮助!$BR:$BS,2,FALSE)),0))","v":{"$error":"#N/A"}},{"$f":"INDEX(Sheet1!E:E,MATCH(姓名查!$A12,INDIRECT(\"sheet1!\"&VLOOKUP(Sheet1!$F$5,帮助!$BR:$BS,2,FALSE)&\":\"&VLOOKUP(Sheet1!$F$5,帮助!$BR:$BS,2,FALSE)),0))","v":{"$error":"#N/A"}},{"$f":"INDEX(Sheet1!F:F,MATCH(姓名查!$A12,INDIRECT(\"sheet1!\"&VLOOKUP(Sheet1!$F$5,帮助!$BR:$BS,2,FALSE)&\":\"&VLOOKUP(Sheet1!$F$5,帮助!$BR:$BS,2,FALSE)),0))","v":{"$error":"#N/A"}},{"$f":"INDEX(Sheet1!G:G,MATCH(姓名查!$A12,INDIRECT(\"sheet1!\"&VLOOKUP(Sheet1!$F$5,帮助!$BR:$BS,2,FALSE)&\":\"&VLOOKUP(Sheet1!$F$5,帮助!$BR:$BS,2,FALSE)),0))","v":{"$error":"#N/A"}},{"$f":"INDEX(Sheet1!H:H,MATCH(姓名查!$A12,INDIRECT(\"sheet1!\"&VLOOKUP(Sheet1!$F$5,帮助!$BR:$BS,2,FALSE)&\":\"&VLOOKUP(Sheet1!$F$5,帮助!$BR:$BS,2,FALSE)),0))","v":{"$error":"#N/A"}},{"$f":"INDEX(Sheet1!I:I,MATCH(姓名查!$A12,INDIRECT(\"sheet1!\"&VLOOKUP(Sheet1!$F$5,帮助!$BR:$BS,2,FALSE)&\":\"&VLOOKUP(Sheet1!$F$5,帮助!$BR:$BS,2,FALSE)),0))","v":{"$error":"#N/A"}},{"$f":"INDEX(Sheet1!J:J,MATCH(姓名查!$A12,INDIRECT(\"sheet1!\"&VLOOKUP(Sheet1!$F$5,帮助!$BR:$BS,2,FALSE)&\":\"&VLOOKUP(Sheet1!$F$5,帮助!$BR:$BS,2,FALSE)),0))","v":{"$error":"#N/A"}},{"$f":"INDEX(Sheet1!K:K,MATCH(姓名查!$A12,INDIRECT(\"sheet1!\"&VLOOKUP(Sheet1!$F$5,帮助!$BR:$BS,2,FALSE)&\":\"&VLOOKUP(Sheet1!$F$5,帮助!$BR:$BS,2,FALSE)),0))","v":{"$error":"#N/A"}},{"$f":"INDEX(Sheet1!L:L,MATCH(姓名查!$A12,INDIRECT(\"sheet1!\"&VLOOKUP(Sheet1!$F$5,帮助!$BR:$BS,2,FALSE)&\":\"&VLOOKUP(Sheet1!$F$5,帮助!$BR:$BS,2,FALSE)),0))","v":{"$error":"#N/A"}},{"$f":"INDEX(Sheet1!M:M,MATCH(姓名查!$A12,INDIRECT(\"sheet1!\"&VLOOKUP(Sheet1!$F$5,帮助!$BR:$BS,2,FALSE)&\":\"&VLOOKUP(Sheet1!$F$5,帮助!$BR:$BS,2,FALSE)),0))","v":{"$error":"#N/A"}},{"$f":"INDEX(Sheet1!N:N,MATCH(姓名查!$A12,INDIRECT(\"sheet1!\"&VLOOKUP(Sheet1!$F$5,帮助!$BR:$BS,2,FALSE)&\":\"&VLOOKUP(Sheet1!$F$5,帮助!$BR:$BS,2,FALSE)),0))","v":{"$error":"#N/A"}},{"$f":"INDEX(Sheet1!O:O,MATCH(姓名查!$A12,INDIRECT(\"sheet1!\"&VLOOKUP(Sheet1!$F$5,帮助!$BR:$BS,2,FALSE)&\":\"&VLOOKUP(Sheet1!$F$5,帮助!$BR:$BS,2,FALSE)),0))","v":{"$error":"#N/A"}},{"$f":"INDEX(Sheet1!P:P,MATCH(姓名查!$A12,INDIRECT(\"sheet1!\"&VLOOKUP(Sheet1!$F$5,帮助!$BR:$BS,2,FALSE)&\":\"&VLOOKUP(Sheet1!$F$5,帮助!$BR:$BS,2,FALSE)),0))","v":{"$error":"#N/A"}},{"$f":"INDEX(Sheet1!Q:Q,MATCH(姓名查!$A12,INDIRECT(\"sheet1!\"&VLOOKUP(Sheet1!$F$5,帮助!$BR:$BS,2,FALSE)&\":\"&VLOOKUP(Sheet1!$F$5,帮助!$BR:$BS,2,FALSE)),0))","v":{"$error":"#N/A"}}]
[null,{"$f":"INDEX(Sheet1!A:A,MATCH(姓名查!$A13,INDIRECT(\"sheet1!\"&VLOOKUP(Sheet1!$F$5,帮助!$BR:$BS,2,FALSE)&\":\"&VLOOKUP(Sheet1!$F$5,帮助!$BR:$BS,2,FALSE)),0))","v":{"$error":"#N/A"}},{"$f":"INDEX(Sheet1!B:B,MATCH(姓名查!$A13,INDIRECT(\"sheet1!\"&VLOOKUP(Sheet1!$F$5,帮助!$BR:$BS,2,FALSE)&\":\"&VLOOKUP(Sheet1!$F$5,帮助!$BR:$BS,2,FALSE)),0))","v":{"$error":"#N/A"}},{"$f":"INDEX(Sheet1!C:C,MATCH(姓名查!$A13,INDIRECT(\"sheet1!\"&VLOOKUP(Sheet1!$F$5,帮助!$BR:$BS,2,FALSE)&\":\"&VLOOKUP(Sheet1!$F$5,帮助!$BR:$BS,2,FALSE)),0))","v":{"$error":"#N/A"}},{"$f":"INDEX(Sheet1!D:D,MATCH(姓名查!$A13,INDIRECT(\"sheet1!\"&VLOOKUP(Sheet1!$F$5,帮助!$BR:$BS,2,FALSE)&\":\"&VLOOKUP(Sheet1!$F$5,帮助!$BR:$BS,2,FALSE)),0))","v":{"$error":"#N/A"}},{"$f":"INDEX(Sheet1!E:E,MATCH(姓名查!$A13,INDIRECT(\"sheet1!\"&VLOOKUP(Sheet1!$F$5,帮助!$BR:$BS,2,FALSE)&\":\"&VLOOKUP(Sheet1!$F$5,帮助!$BR:$BS,2,FALSE)),0))","v":{"$error":"#N/A"}},{"$f":"INDEX(Sheet1!F:F,MATCH(姓名查!$A13,INDIRECT(\"sheet1!\"&VLOOKUP(Sheet1!$F$5,帮助!$BR:$BS,2,FALSE)&\":\"&VLOOKUP(Sheet1!$F$5,帮助!$BR:$BS,2,FALSE)),0))","v":{"$error":"#N/A"}},{"$f":"INDEX(Sheet1!G:G,MATCH(姓名查!$A13,INDIRECT(\"sheet1!\"&VLOOKUP(Sheet1!$F$5,帮助!$BR:$BS,2,FALSE)&\":\"&VLOOKUP(Sheet1!$F$5,帮助!$BR:$BS,2,FALSE)),0))","v":{"$error":"#N/A"}},{"$f":"INDEX(Sheet1!H:H,MATCH(姓名查!$A13,INDIRECT(\"sheet1!\"&VLOOKUP(Sheet1!$F$5,帮助!$BR:$BS,2,FALSE)&\":\"&VLOOKUP(Sheet1!$F$5,帮助!$BR:$BS,2,FALSE)),0))","v":{"$error":"#N/A"}},{"$f":"INDEX(Sheet1!I:I,MATCH(姓名查!$A13,INDIRECT(\"sheet1!\"&VLOOKUP(Sheet1!$F$5,帮助!$BR:$BS,2,FALSE)&\":\"&VLOOKUP(Sheet1!$F$5,帮助!$BR:$BS,2,FALSE)),0))","v":{"$error":"#N/A"}},{"$f":"INDEX(Sheet1!J:J,MATCH(姓名查!$A13,INDIRECT(\"sheet1!\"&VLOOKUP(Sheet1!$F$5,帮助!$BR:$BS,2,FALSE)&\":\"&VLOOKUP(Sheet1!$F$5,帮助!$BR:$BS,2,FALSE)),0))","v":{"$error":"#N/A"}},{"$f":"INDEX(Sheet1!K:K,MATCH(姓名查!$A13,INDIRECT(\"sheet1!\"&VLOOKUP(Sheet1!$F$5,帮助!$BR:$BS,2,FALSE)&\":\"&VLOOKUP(Sheet1!$F$5,帮助!$BR:$BS,2,FALSE)),0))","v":{"$error":"#N/A"}},{"$f":"INDEX(Sheet1!L:L,MATCH(姓名查!$A13,INDIRECT(\"sheet1!\"&VLOOKUP(Sheet1!$F$5,帮助!$BR:$BS,2,FALSE)&\":\"&VLOOKUP(Sheet1!$F$5,帮助!$BR:$BS,2,FALSE)),0))","v":{"$error":"#N/A"}},{"$f":"INDEX(Sheet1!M:M,MATCH(姓名查!$A13,INDIRECT(\"sheet1!\"&VLOOKUP(Sheet1!$F$5,帮助!$BR:$BS,2,FALSE)&\":\"&VLOOKUP(Sheet1!$F$5,帮助!$BR:$BS,2,FALSE)),0))","v":{"$error":"#N/A"}},{"$f":"INDEX(Sheet1!N:N,MATCH(姓名查!$A13,INDIRECT(\"sheet1!\"&VLOOKUP(Sheet1!$F$5,帮助!$BR:$BS,2,FALSE)&\":\"&VLOOKUP(Sheet1!$F$5,帮助!$BR:$BS,2,FALSE)),0))","v":{"$error":"#N/A"}},{"$f":"INDEX(Sheet1!O:O,MATCH(姓名查!$A13,INDIRECT(\"sheet1!\"&VLOOKUP(Sheet1!$F$5,帮助!$BR:$BS,2,FALSE)&\":\"&VLOOKUP(Sheet1!$F$5,帮助!$BR:$BS,2,FALSE)),0))","v":{"$error":"#N/A"}},{"$f":"INDEX(Sheet1!P:P,MATCH(姓名查!$A13,INDIRECT(\"sheet1!\"&VLOOKUP(Sheet1!$F$5,帮助!$BR:$BS,2,FALSE)&\":\"&VLOOKUP(Sheet1!$F$5,帮助!$BR:$BS,2,FALSE)),0))","v":{"$error":"#N/A"}},{"$f":"INDEX(Sheet1!Q:Q,MATCH(姓名查!$A13,INDIRECT(\"sheet1!\"&VLOOKUP(Sheet1!$F$5,帮助!$BR:$BS,2,FALSE)&\":\"&VLOOKUP(Sheet1!$F$5,帮助!$BR:$BS,2,FALSE)),0))","v":{"$error":"#N/A"}}]
[null,{"$f":"INDEX(Sheet1!A:A,MATCH(姓名查!$A14,INDIRECT(\"sheet1!\"&VLOOKUP(Sheet1!$F$5,帮助!$BR:$BS,2,FALSE)&\":\"&VLOOKUP(Sheet1!$F$5,帮助!$BR:$BS,2,FALSE)),0))","v":{"$error":"#N/A"}},{"$f":"INDEX(Sheet1!B:B,MATCH(姓名查!$A14,INDIRECT(\"sheet1!\"&VLOOKUP(Sheet1!$F$5,帮助!$BR:$BS,2,FALSE)&\":\"&VLOOKUP(Sheet1!$F$5,帮助!$BR:$BS,2,FALSE)),0))","v":{"$error":"#N/A"}},{"$f":"INDEX(Sheet1!C:C,MATCH(姓名查!$A14,INDIRECT(\"sheet1!\"&VLOOKUP(Sheet1!$F$5,帮助!$BR:$BS,2,FALSE)&\":\"&VLOOKUP(Sheet1!$F$5,帮助!$BR:$BS,2,FALSE)),0))","v":{"$error":"#N/A"}},{"$f":"INDEX(Sheet1!D:D,MATCH(姓名查!$A14,INDIRECT(\"sheet1!\"&VLOOKUP(Sheet1!$F$5,帮助!$BR:$BS,2,FALSE)&\":\"&VLOOKUP(Sheet1!$F$5,帮助!$BR:$BS,2,FALSE)),0))","v":{"$error":"#N/A"}},{"$f":"INDEX(Sheet1!E:E,MATCH(姓名查!$A14,INDIRECT(\"sheet1!\"&VLOOKUP(Sheet1!$F$5,帮助!$BR:$BS,2,FALSE)&\":\"&VLOOKUP(Sheet1!$F$5,帮助!$BR:$BS,2,FALSE)),0))","v":{"$error":"#N/A"}},{"$f":"INDEX(Sheet1!F:F,MATCH(姓名查!$A14,INDIRECT(\"sheet1!\"&VLOOKUP(Sheet1!$F$5,帮助!$BR:$BS,2,FALSE)&\":\"&VLOOKUP(Sheet1!$F$5,帮助!$BR:$BS,2,FALSE)),0))","v":{"$error":"#N/A"}},{"$f":"INDEX(Sheet1!G:G,MATCH(姓名查!$A14,INDIRECT(\"sheet1!\"&VLOOKUP(Sheet1!$F$5,帮助!$BR:$BS,2,FALSE)&\":\"&VLOOKUP(Sheet1!$F$5,帮助!$BR:$BS,2,FALSE)),0))","v":{"$error":"#N/A"}},{"$f":"INDEX(Sheet1!H:H,MATCH(姓名查!$A14,INDIRECT(\"sheet1!\"&VLOOKUP(Sheet1!$F$5,帮助!$BR:$BS,2,FALSE)&\":\"&VLOOKUP(Sheet1!$F$5,帮助!$BR:$BS,2,FALSE)),0))","v":{"$error":"#N/A"}},{"$f":"INDEX(Sheet1!I:I,MATCH(姓名查!$A14,INDIRECT(\"sheet1!\"&VLOOKUP(Sheet1!$F$5,帮助!$BR:$BS,2,FALSE)&\":\"&VLOOKUP(Sheet1!$F$5,帮助!$BR:$BS,2,FALSE)),0))","v":{"$error":"#N/A"}},{"$f":"INDEX(Sheet1!J:J,MATCH(姓名查!$A14,INDIRECT(\"sheet1!\"&VLOOKUP(Sheet1!$F$5,帮助!$BR:$BS,2,FALSE)&\":\"&VLOOKUP(Sheet1!$F$5,帮助!$BR:$BS,2,FALSE)),0))","v":{"$error":"#N/A"}},{"$f":"INDEX(Sheet1!K:K,MATCH(姓名查!$A14,INDIRECT(\"sheet1!\"&VLOOKUP(Sheet1!$F$5,帮助!$BR:$BS,2,FALSE)&\":\"&VLOOKUP(Sheet1!$F$5,帮助!$BR:$BS,2,FALSE)),0))","v":{"$error":"#N/A"}},{"$f":"INDEX(Sheet1!L:L,MATCH(姓名查!$A14,INDIRECT(\"sheet1!\"&VLOOKUP(Sheet1!$F$5,帮助!$BR:$BS,2,FALSE)&\":\"&VLOOKUP(Sheet1!$F$5,帮助!$BR:$BS,2,FALSE)),0))","v":{"$error":"#N/A"}},{"$f":"INDEX(Sheet1!M:M,MATCH(姓名查!$A14,INDIRECT(\"sheet1!\"&VLOOKUP(Sheet1!$F$5,帮助!$BR:$BS,2,FALSE)&\":\"&VLOOKUP(Sheet1!$F$5,帮助!$BR:$BS,2,FALSE)),0))","v":{"$error":"#N/A"}},{"$f":"INDEX(Sheet1!N:N,MATCH(姓名查!$A14,INDIRECT(\"sheet1!\"&VLOOKUP(Sheet1!$F$5,帮助!$BR:$BS,2,FALSE)&\":\"&VLOOKUP(Sheet1!$F$5,帮助!$BR:$BS,2,FALSE)),0))","v":{"$error":"#N/A"}},{"$f":"INDEX(Sheet1!O:O,MATCH(姓名查!$A14,INDIRECT(\"sheet1!\"&VLOOKUP(Sheet1!$F$5,帮助!$BR:$BS,2,FALSE)&\":\"&VLOOKUP(Sheet1!$F$5,帮助!$BR:$BS,2,FALSE)),0))","v":{"$error":"#N/A"}},{"$f":"INDEX(Sheet1!P:P,MATCH(姓名查!$A14,INDIRECT(\"sheet1!\"&VLOOKUP(Sheet1!$F$5,帮助!$BR:$BS,2,FALSE)&\":\"&VLOOKUP(Sheet1!$F$5,帮助!$BR:$BS,2,FALSE)),0))","v":{"$error":"#N/A"}},{"$f":"INDEX(Sheet1!Q:Q,MATCH(姓名查!$A14,INDIRECT(\"sheet1!\"&VLOOKUP(Sheet1!$F$5,帮助!$BR:$BS,2,FALSE)&\":\"&VLOOKUP(Sheet1!$F$5,帮助!$BR:$BS,2,FALSE)),0))","v":{"$error":"#N/A"}}]

{"sheet":"工号查","index":3,"n_rows":16,"n_cols":21,"rows_kept":16,"cut":false,"hidden":true,"merged":[]}
[null,"必须要先设定",null,"工号","所在的列才能查"]
["工号",{"$f":"Sheet1!#REF!","v":{"$error":"#REF!"}},{"$f":"Sheet1!#REF!","v":{"$error":"#REF!"}},{"$f":"Sheet1!#REF!","v":{"$error":"#REF!"}},{"$f":"Sheet1!#REF!","v":{"$error":"#REF!"}},{"$f":"Sheet1!#REF!","v":{"$error":"#REF!"}},{"$f":"Sheet1!B11","v":"支出数"},{"$f":"Sheet1!A11","v":"预算代码"},{"$f":"Sheet1!#REF!","v":{"$error":"#REF!"}},{"$f":"Sheet1!#REF!","v":{"$error":"#REF!"}},{"$f":"Sheet1!#REF!","v":{"$error":"#REF!"}},{"$f":"Sheet1!E11","v":"支出时间"},{"$f":"Sheet1!F11","v":"经办人"},{"$f":"Sheet1!G11","v":"无用字段1"},{"$f":"Sheet1!H11","v":0},{"$f":"Sheet1!I11","v":0},{"$f":"Sheet1!J11","v":0},{"$f":"Sheet1!K11","v":0},{"$f":"Sheet1!L11","v":0},{"$f":"Sheet1!M11","v":0},{"$f":"Sheet1!N11","v":0}]
[1426089308,{"$f":"INDEX(Sheet1!A:A,MATCH(姓名查!$A3,INDIRECT(\"sheet1!\"&VLOOKUP(Sheet1!$F$5,帮助!$BR:$BS,2,FALSE)&\":\"&VLOOKUP(Sheet1!$F$5,帮助!$BR:$BS,2,FALSE)),0))","v":{"$error":"#N/A"}},{"$f":"INDEX(Sheet1!B:B,MATCH(姓名查!$A3,INDIRECT(\"sheet1!\"&VLOOKUP(Sheet1!$F$5,帮助!$BR:$BS,2,FALSE)&\":\"&VLOOKUP(Sheet1!$F$5,帮助!$BR:$BS,2,FALSE)),0))","v":{"$error":"#N/A"}},{"$f":"INDEX(Sheet1!C:C,MATCH(姓名查!$A3,INDIRECT(\"sheet1!\"&VLOOKUP(Sheet1!$F$5,帮助!$BR:$BS,2,FALSE)&\":\"&VLOOKUP(Sheet1!$F$5,帮助!$BR:$BS,2,FALSE)),0))","v":{"$error":"#N/A"}},{"$f":"INDEX(Sheet1!D:D,MATCH(姓名查!$A3,INDIRECT(\"sheet1!\"&VLOOKUP(Sheet1!$F$5,帮助!$BR:$BS,2,FALSE)&\":\"&VLOOKUP(Sheet1!$F$5,帮助!$BR:$BS,2,FALSE)),0))","v":{"$error":"#N/A"}},{"$f":"INDEX(Sheet1!E:E,MATCH(姓名查!$A3,INDIRECT(\"sheet1!\"&VLOOKUP(Sheet1!$F$5,帮助!$BR:$BS,2,FALSE)&\":\"&VLOOKUP(Sheet1!$F$5,帮助!$BR:$BS,2,FALSE)),0))","v":{"$error":"#N/A"}},{"$f":"INDEX(Sheet1!F:F,MATCH(姓名查!$A3,INDIRECT(\"sheet1!\"&VLOOKUP(Sheet1!$F$5,帮助!$BR:$BS,2,FALSE)&\":\"&VLOOKUP(Sheet1!$F$5,帮助!$BR:$BS,2,FALSE)),0))","v":{"$error":"#N/A"}},{"$f":"INDEX(Sheet1!G:G,MATCH(姓名查!$A3,INDIRECT(\"sheet1!\"&VLOOKUP(Sheet1!$F$5,帮助!$BR:$BS,2,FALSE)&\":\"&VLOOKUP(Sheet1!$F$5,帮助!$BR:$BS,2,FALSE)),0))","v":{"$error":"#N/A"}},{"$f":"INDEX(Sheet1!H:H,MATCH(姓名查!$A3,INDIRECT(\"sheet1!\"&VLOOKUP(Sheet1!$F$5,帮助!$BR:$BS,2,FALSE)&\":\"&VLOOKUP(Sheet1!$F$5,帮助!$BR:$BS,2,FALSE)),0))","v":{"$error":"#N/A"}},{"$f":"INDEX(Sheet1!I:I,MATCH(姓名查!$A3,INDIRECT(\"sheet1!\"&VLOOKUP(Sheet1!$F$5,帮助!$BR:$BS,2,FALSE)&\":\"&VLOOKUP(Sheet1!$F$5,帮助!$BR:$BS,2,FALSE)),0))","v":{"$error":"#N/A"}},{"$f":"INDEX(Sheet1!J:J,MATCH(姓名查!$A3,INDIRECT(\"sheet1!\"&VLOOKUP(Sheet1!$F$5,帮助!$BR:$BS,2,FALSE)&\":\"&VLOOKUP(Sheet1!$F$5,帮助!$BR:$BS,2,FALSE)),0))","v":{"$error":"#N/A"}},{"$f":"INDEX(Sheet1!K:K,MATCH(姓名查!$A3,INDIRECT(\"sheet1!\"&VLOOKUP(Sheet1!$F$5,帮助!$BR:$BS,2,FALSE)&\":\"&VLOOKUP(Sheet1!$F$5,帮助!$BR:$BS,2,FALSE)),0))","v":{"$error":"#N/A"}},{"$f":"INDEX(Sheet1!L:L,MATCH(姓名查!$A3,INDIRECT(\"sheet1!\"&VLOOKUP(Sheet1!$F$5,帮助!$BR:$BS,2,FALSE)&\":\"&VLOOKUP(Sheet1!$F$5,帮助!$BR:$BS,2,FALSE)),0))","v":{"$error":"#N/A"}},{"$f":"INDEX(Sheet1!M:M,MATCH(姓名查!$A3,INDIRECT(\"sheet1!\"&VLOOKUP(Sheet1!$F$5,帮助!$BR:$BS,2,FALSE)&\":\"&VLOOKUP(Sheet1!$F$5,帮助!$BR:$BS,2,FALSE)),0))","v":{"$error":"#N/A"}},{"$f":"INDEX(Sheet1!N:N,MATCH(姓名查!$A3,INDIRECT(\"sheet1!\"&VLOOKUP(Sheet1!$F$5,帮助!$BR:$BS,2,FALSE)&\":\"&VLOOKUP(Sheet1!$F$5,帮助!$BR:$BS,2,FALSE)),0))","v":{"$error":"#N/A"}},{"$f":"INDEX(Sheet1!O:O,MATCH(姓名查!$A3,INDIRECT(\"sheet1!\"&VLOOKUP(Sheet1!$F$5,帮助!$BR:$BS,2,FALSE)&\":\"&VLOOKUP(Sheet1!$F$5,帮助!$BR:$BS,2,FALSE)),0))","v":{"$error":"#N/A"}},{"$f":"INDEX(Sheet1!P:P,MATCH(姓名查!$A3,INDIRECT(\"sheet1!\"&VLOOKUP(Sheet1!$F$5,帮助!$BR:$BS,2,FALSE)&\":\"&VLOOKUP(Sheet1!$F$5,帮助!$BR:$BS,2,FALSE)),0))","v":{"$error":"#N/A"}},{"$f":"INDEX(Sheet1!Q:Q,MATCH(姓名查!$A3,INDIRECT(\"sheet1!\"&VLOOKUP(Sheet1!$F$5,帮助!$BR:$BS,2,FALSE)&\":\"&VLOOKUP(Sheet1!$F$5,帮助!$BR:$BS,2,FALSE)),0))","v":{"$error":"#N/A"}},{"$f":"INDEX(Sheet1!R:R,MATCH(姓名查!$A3,INDIRECT(\"sheet1!\"&VLOOKUP(Sheet1!$F$5,帮助!$BR:$BS,2,FALSE)&\":\"&VLOOKUP(Sheet1!$F$5,帮助!$BR:$BS,2,FALSE)),0))","v":{"$error":"#N/A"}},{"$f":"INDEX(Sheet1!S:S,MATCH(姓名查!$A3,INDIRECT(\"sheet1!\"&VLOOKUP(Sheet1!$F$5,帮助!$BR:$BS,2,FALSE)&\":\"&VLOOKUP(Sheet1!$F$5,帮助!$BR:$BS,2,FALSE)),0))","v":{"$error":"#N/A"}},{"$f":"INDEX(Sheet1!T:T,MATCH(姓名查!$A3,INDIRECT(\"sheet1!\"&VLOOKUP(Sheet1!$F$5,帮助!$BR:$BS,2,FALSE)&\":\"&VLOOKUP(Sheet1!$F$5,帮助!$BR:$BS,2,FALSE)),0))","v":{"$error":"#N/A"}}]
[null,{"$f":"INDEX(Sheet1!A:A,MATCH(姓名查!$A4,INDIRECT(\"sheet1!\"&VLOOKUP(Sheet1!$F$5,帮助!$BR:$BS,2,FALSE)&\":\"&VLOOKUP(Sheet1!$F$5,帮助!$BR:$BS,2,FALSE)),0))","v":{"$error":"#N/A"}},{"$f":"INDEX(Sheet1!B:B,MATCH(姓名查!$A4,INDIRECT(\"sheet1!\"&VLOOKUP(Sheet1!$F$5,帮助!$BR:$BS,2,FALSE)&\":\"&VLOOKUP(Sheet1!$F$5,帮助!$BR:$BS,2,FALSE)),0))","v":{"$error":"#N/A"}},{"$f":"INDEX(Sheet1!C:C,MATCH(姓名查!$A4,INDIRECT(\"sheet1!\"&VLOOKUP(Sheet1!$F$5,帮助!$BR:$BS,2,FALSE)&\":\"&VLOOKUP(Sheet1!$F$5,帮助!$BR:$BS,2,FALSE)),0))","v":{"$error":"#N/A"}},{"$f":"INDEX(Sheet1!D:D,MATCH(姓名查!$A4,INDIRECT(\"sheet1!\"&VLOOKUP(Sheet1!$F$5,帮助!$BR:$BS,2,FALSE)&\":\"&VLOOKUP(Sheet1!$F$5,帮助!$BR:$BS,2,FALSE)),0))","v":{"$error":"#N/A"}},{"$f":"INDEX(Sheet1!E:E,MATCH(姓名查!$A4,INDIRECT(\"sheet1!\"&VLOOKUP(Sheet1!$F$5,帮助!$BR:$BS,2,FALSE)&\":\"&VLOOKUP(Sheet1!$F$5,帮助!$BR:$BS,2,FALSE)),0))","v":{"$error":"#N/A"}},{"$f":"INDEX(Sheet1!F:F,MATCH(姓名查!$A4,INDIRECT(\"sheet1!\"&VLOOKUP(Sheet1!$F$5,帮助!$BR:$BS,2,FALSE)&\":\"&VLOOKUP(Sheet1!$F$5,帮助!$BR:$BS,2,FALSE)),0))","v":{"$error":"#N/A"}},{"$f":"INDEX(Sheet1!G:G,MATCH(姓名查!$A4,INDIRECT(\"sheet1!\"&VLOOKUP(Sheet1!$F$5,帮助!$BR:$BS,2,FALSE)&\":\"&VLOOKUP(Sheet1!$F$5,帮助!$BR:$BS,2,FALSE)),0))","v":{"$error":"#N/A"}},{"$f":"INDEX(Sheet1!H:H,MATCH(姓名查!$A4,INDIRECT(\"sheet1!\"&VLOOKUP(Sheet1!$F$5,帮助!$BR:$BS,2,FALSE)&\":\"&VLOOKUP(Sheet1!$F$5,帮助!$BR:$BS,2,FALSE)),0))","v":{"$error":"#N/A"}},{"$f":"INDEX(Sheet1!I:I,MATCH(姓名查!$A4,INDIRECT(\"sheet1!\"&VLOOKUP(Sheet1!$F$5,帮助!$BR:$BS,2,FALSE)&\":\"&VLOOKUP(Sheet1!$F$5,帮助!$BR:$BS,2,FALSE)),0))","v":{"$error":"#N/A"}},{"$f":"INDEX(Sheet1!J:J,MATCH(姓名查!$A4,INDIRECT(\"sheet1!\"&VLOOKUP(Sheet1!$F$5,帮助!$BR:$BS,2,FALSE)&\":\"&VLOOKUP(Sheet1!$F$5,帮助!$BR:$BS,2,FALSE)),0))","v":{"$error":"#N/A"}},{"$f":"INDEX(Sheet1!K:K,MATCH(姓名查!$A4,INDIRECT(\"sheet1!\"&VLOOKUP(Sheet1!$F$5,帮助!$BR:$BS,2,FALSE)&\":\"&VLOOKUP(Sheet1!$F$5,帮助!$BR:$BS,2,FALSE)),0))","v":{"$error":"#N/A"}},{"$f":"INDEX(Sheet1!L:L,MATCH(姓名查!$A4,INDIRECT(\"sheet1!\"&VLOOKUP(Sheet1!$F$5,帮助!$BR:$BS,2,FALSE)&\":\"&VLOOKUP(Sheet1!$F$5,帮助!$BR:$BS,2,FALSE)),0))","v":{"$error":"#N/A"}},{"$f":"INDEX(Sheet1!M:M,MATCH(姓名查!$A4,INDIRECT(\"sheet1!\"&VLOOKUP(Sheet1!$F$5,帮助!$BR:$BS,2,FALSE)&\":\"&VLOOKUP(Sheet1!$F$5,帮助!$BR:$BS,2,FALSE)),0))","v":{"$error":"#N/A"}},{"$f":"INDEX(Sheet1!N:N,MATCH(姓名查!$A4,INDIRECT(\"sheet1!\"&VLOOKUP(Sheet1!$F$5,帮助!$BR:$BS,2,FALSE)&\":\"&VLOOKUP(Sheet1!$F$5,帮助!$BR:$BS,2,FALSE)),0))","v":{"$error":"#N/A"}},{"$f":"INDEX(Sheet1!O:O,MATCH(姓名查!$A4,INDIRECT(\"sheet1!\"&VLOOKUP(Sheet1!$F$5,帮助!$BR:$BS,2,FALSE)&\":\"&VLOOKUP(Sheet1!$F$5,帮助!$BR:$BS,2,FALSE)),0))","v":{"$error":"#N/A"}},{"$f":"INDEX(Sheet1!P:P,MATCH(姓名查!$A4,INDIRECT(\"sheet1!\"&VLOOKUP(Sheet1!$F$5,帮助!$BR:$BS,2,FALSE)&\":\"&VLOOKUP(Sheet1!$F$5,帮助!$BR:$BS,2,FALSE)),0))","v":{"$error":"#N/A"}},{"$f":"INDEX(Sheet1!Q:Q,MATCH(姓名查!$A4,INDIRECT(\"sheet1!\"&VLOOKUP(Sheet1!$F$5,帮助!$BR:$BS,2,FALSE)&\":\"&VLOOKUP(Sheet1!$F$5,帮助!$BR:$BS,2,FALSE)),0))","v":{"$error":"#N/A"}},{"$f":"INDEX(Sheet1!R:R,MATCH(姓名查!$A4,INDIRECT(\"sheet1!\"&VLOOKUP(Sheet1!$F$5,帮助!$BR:$BS,2,FALSE)&\":\"&VLOOKUP(Sheet1!$F$5,帮助!$BR:$BS,2,FALSE)),0))","v":{"$error":"#N/A"}},{"$f":"INDEX(Sheet1!S:S,MATCH(姓名查!$A4,INDIRECT(\"sheet1!\"&VLOOKUP(Sheet1!$F$5,帮助!$BR:$BS,2,FALSE)&\":\"&VLOOKUP(Sheet1!$F$5,帮助!$BR:$BS,2,FALSE)),0))","v":{"$error":"#N/A"}},{"$f":"INDEX(Sheet1!T:T,MATCH(姓名查!$A4,INDIRECT(\"sheet1!\"&VLOOKUP(Sheet1!$F$5,帮助!$BR:$BS,2,FALSE)&\":\"&VLOOKUP(Sheet1!$F$5,帮助!$BR:$BS,2,FALSE)),0))","v":{"$error":"#N/A"}}]
[null,{"$f":"INDEX(Sheet1!A:A,MATCH(姓名查!$A5,INDIRECT(\"sheet1!\"&VLOOKUP(Sheet1!$F$5,帮助!$BR:$BS,2,FALSE)&\":\"&VLOOKUP(Sheet1!$F$5,帮助!$BR:$BS,2,FALSE)),0))","v":{"$error":"#N/A"}},{"$f":"INDEX(Sheet1!B:B,MATCH(姓名查!$A5,INDIRECT(\"sheet1!\"&VLOOKUP(Sheet1!$F$5,帮助!$BR:$BS,2,FALSE)&\":\"&VLOOKUP(Sheet1!$F$5,帮助!$BR:$BS,2,FALSE)),0))","v":{"$error":"#N/A"}},{"$f":"INDEX(Sheet1!C:C,MATCH(姓名查!$A5,INDIRECT(\"sheet1!\"&VLOOKUP(Sheet1!$F$5,帮助!$BR:$BS,2,FALSE)&\":\"&VLOOKUP(Sheet1!$F$5,帮助!$BR:$BS,2,FALSE)),0))","v":{"$error":"#N/A"}},{"$f":"INDEX(Sheet1!D:D,MATCH(姓名查!$A5,INDIRECT(\"sheet1!\"&VLOOKUP(Sheet1!$F$5,帮助!$BR:$BS,2,FALSE)&\":\"&VLOOKUP(Sheet1!$F$5,帮助!$BR:$BS,2,FALSE)),0))","v":{"$error":"#N/A"}},{"$f":"INDEX(Sheet1!E:E,MATCH(姓名查!$A5,INDIRECT(\"sheet1!\"&VLOOKUP(Sheet1!$F$5,帮助!$BR:$BS,2,FALSE)&\":\"&VLOOKUP(Sheet1!$F$5,帮助!$BR:$BS,2,FALSE)),0))","v":{"$error":"#N/A"}},{"$f":"INDEX(Sheet1!F:F,MATCH(姓名查!$A5,INDIRECT(\"sheet1!\"&VLOOKUP(Sheet1!$F$5,帮助!$BR:$BS,2,FALSE)&\":\"&VLOOKUP(Sheet1!$F$5,帮助!$BR:$BS,2,FALSE)),0))","v":{"$error":"#N/A"}},{"$f":"INDEX(Sheet1!G:G,MATCH(姓名查!$A5,INDIRECT(\"sheet1!\"&VLOOKUP(Sheet1!$F$5,帮助!$BR:$BS,2,FALSE)&\":\"&VLOOKUP(Sheet1!$F$5,帮助!$BR:$BS,2,FALSE)),0))","v":{"$error":"#N/A"}},{"$f":"INDEX(Sheet1!H:H,MATCH(姓名查!$A5,INDIRECT(\"sheet1!\"&VLOOKUP(Sheet1!$F$5,帮助!$BR:$BS,2,FALSE)&\":\"&VLOOKUP(Sheet1!$F$5,帮助!$BR:$BS,2,FALSE)),0))","v":{"$error":"#N/A"}},{"$f":"INDEX(Sheet1!I:I,MATCH(姓名查!$A5,INDIRECT(\"sheet1!\"&VLOOKUP(Sheet1!$F$5,帮助!$BR:$BS,2,FALSE)&\":\"&VLOOKUP(Sheet1!$F$5,帮助!$BR:$BS,2,FALSE)),0))","v":{"$error":"#N/A"}},{"$f":"INDEX(Sheet1!J:J,MATCH(姓名查!$A5,INDIRECT(\"sheet1!\"&VLOOKUP(Sheet1!$F$5,帮助!$BR:$BS,2,FALSE)&\":\"&VLOOKUP(Sheet1!$F$5,帮助!$BR:$BS,2,FALSE)),0))","v":{"$error":"#N/A"}},{"$f":"INDEX(Sheet1!K:K,MATCH(姓名查!$A5,INDIRECT(\"sheet1!\"&VLOOKUP(Sheet1!$F$5,帮助!$BR:$BS,2,FALSE)&\":\"&VLOOKUP(Sheet1!$F$5,帮助!$BR:$BS,2,FALSE)),0))","v":{"$error":"#N/A"}},{"$f":"INDEX(Sheet1!L:L,MATCH(姓名查!$A5,INDIRECT(\"sheet1!\"&VLOOKUP(Sheet1!$F$5,帮助!$BR:$BS,2,FALSE)&\":\"&VLOOKUP(Sheet1!$F$5,帮助!$BR:$BS,2,FALSE)),0))","v":{"$error":"#N/A"}},{"$f":"INDEX(Sheet1!M:M,MATCH(姓名查!$A5,INDIRECT(\"sheet1!\"&VLOOKUP(Sheet1!$F$5,帮助!$BR:$BS,2,FALSE)&\":\"&VLOOKUP(Sheet1!$F$5,帮助!$BR:$BS,2,FALSE)),0))","v":{"$error":"#N/A"}},{"$f":"INDEX(Sheet1!N:N,MATCH(姓名查!$A5,INDIRECT(\"sheet1!\"&VLOOKUP(Sheet1!$F$5,帮助!$BR:$BS,2,FALSE)&\":\"&VLOOKUP(Sheet1!$F$5,帮助!$BR:$BS,2,FALSE)),0))","v":{"$error":"#N/A"}},{"$f":"INDEX(Sheet1!O:O,MATCH(姓名查!$A5,INDIRECT(\"sheet1!\"&VLOOKUP(Sheet1!$F$5,帮助!$BR:$BS,2,FALSE)&\":\"&VLOOKUP(Sheet1!$F$5,帮助!$BR:$BS,2,FALSE)),0))","v":{"$error":"#N/A"}},{"$f":"INDEX(Sheet1!P:P,MATCH(姓名查!$A5,INDIRECT(\"sheet1!\"&VLOOKUP(Sheet1!$F$5,帮助!$BR:$BS,2,FALSE)&\":\"&VLOOKUP(Sheet1!$F$5,帮助!$BR:$BS,2,FALSE)),0))","v":{"$error":"#N/A"}},{"$f":"INDEX(Sheet1!Q:Q,MATCH(姓名查!$A5,INDIRECT(\"sheet1!\"&VLOOKUP(Sheet1!$F$5,帮助!$BR:$BS,2,FALSE)&\":\"&VLOOKUP(Sheet1!$F$5,帮助!$BR:$BS,2,FALSE)),0))","v":{"$error":"#N/A"}},{"$f":"INDEX(Sheet1!R:R,MATCH(姓名查!$A5,INDIRECT(\"sheet1!\"&VLOOKUP(Sheet1!$F$5,帮助!$BR:$BS,2,FALSE)&\":\"&VLOOKUP(Sheet1!$F$5,帮助!$BR:$BS,2,FALSE)),0))","v":{"$error":"#N/A"}},{"$f":"INDEX(Sheet1!S:S,MATCH(姓名查!$A5,INDIRECT(\"sheet1!\"&VLOOKUP(Sheet1!$F$5,帮助!$BR:$BS,2,FALSE)&\":\"&VLOOKUP(Sheet1!$F$5,帮助!$BR:$BS,2,FALSE)),0))","v":{"$error":"#N/A"}},{"$f":"INDEX(Sheet1!T:T,MATCH(姓名查!$A5,INDIRECT(\"sheet1!\"&VLOOKUP(Sheet1!$F$5,帮助!$BR:$BS,2,FALSE)&\":\"&VLOOKUP(Sheet1!$F$5,帮助!$BR:$BS,2,FALSE)),0))","v":{"$error":"#N/A"}}]
[null,{"$f":"INDEX(Sheet1!A:A,MATCH(姓名查!$A6,INDIRECT(\"sheet1!\"&VLOOKUP(Sheet1!$F$5,帮助!$BR:$BS,2,FALSE)&\":\"&VLOOKUP(Sheet1!$F$5,帮助!$BR:$BS,2,FALSE)),0))","v":{"$error":"#N/A"}},{"$f":"INDEX(Sheet1!B:B,MATCH(姓名查!$A6,INDIRECT(\"sheet1!\"&VLOOKUP(Sheet1!$F$5,帮助!$BR:$BS,2,FALSE)&\":\"&VLOOKUP(Sheet1!$F$5,帮助!$BR:$BS,2,FALSE)),0))","v":{"$error":"#N/A"}},{"$f":"INDEX(Sheet1!C:C,MATCH(姓名查!$A6,INDIRECT(\"sheet1!\"&VLOOKUP(Sheet1!$F$5,帮助!$BR:$BS,2,FALSE)&\":\"&VLOOKUP(Sheet1!$F$5,帮助!$BR:$BS,2,FALSE)),0))","v":{"$error":"#N/A"}},{"$f":"INDEX(Sheet1!D:D,MATCH(姓名查!$A6,INDIRECT(\"sheet1!\"&VLOOKUP(Sheet1!$F$5,帮助!$BR:$BS,2,FALSE)&\":\"&VLOOKUP(Sheet1!$F$5,帮助!$BR:$BS,2,FALSE)),0))","v":{"$error":"#N/A"}},{"$f":"INDEX(Sheet1!E:E,MATCH(姓名查!$A6,INDIRECT(\"sheet1!\"&VLOOKUP(Sheet1!$F$5,帮助!$BR:$BS,2,FALSE)&\":\"&VLOOKUP(Sheet1!$F$5,帮助!$BR:$BS,2,FALSE)),0))","v":{"$error":"#N/A"}},{"$f":"INDEX(Sheet1!F:F,MATCH(姓名查!$A6,INDIRECT(\"sheet1!\"&VLOOKUP(Sheet1!$F$5,帮助!$BR:$BS,2,FALSE)&\":\"&VLOOKUP(Sheet1!$F$5,帮助!$BR:$BS,2,FALSE)),0))","v":{"$error":"#N/A"}},{"$f":"INDEX(Sheet1!G:G,MATCH(姓名查!$A6,INDIRECT(\"sheet1!\"&VLOOKUP(Sheet1!$F$5,帮助!$BR:$BS,2,FALSE)&\":\"&VLOOKUP(Sheet1!$F$5,帮助!$BR:$BS,2,FALSE)),0))","v":{"$error":"#N/A"}},{"$f":"INDEX(Sheet1!H:H,MATCH(姓名查!$A6,INDIRECT(\"sheet1!\"&VLOOKUP(Sheet1!$F$5,帮助!$BR:$BS,2,FALSE)&\":\"&VLOOKUP(Sheet1!$F$5,帮助!$BR:$BS,2,FALSE)),0))","v":{"$error":"#N/A"}},{"$f":"INDEX(Sheet1!I:I,MATCH(姓名查!$A6,INDIRECT(\"sheet1!\"&VLOOKUP(Sheet1!$F$5,帮助!$BR:$BS,2,FALSE)&\":\"&VLOOKUP(Sheet1!$F$5,帮助!$BR:$BS,2,FALSE)),0))","v":{"$error":"#N/A"}},{"$f":"INDEX(Sheet1!J:J,MATCH(姓名查!$A6,INDIRECT(\"sheet1!\"&VLOOKUP(Sheet1!$F$5,帮助!$BR:$BS,2,FALSE)&\":\"&VLOOKUP(Sheet1!$F$5,帮助!$BR:$BS,2,FALSE)),0))","v":{"$error":"#N/A"}},{"$f":"INDEX(Sheet1!K:K,MATCH(姓名查!$A6,INDIRECT(\"sheet1!\"&VLOOKUP(Sheet1!$F$5,帮助!$BR:$BS,2,FALSE)&\":\"&VLOOKUP(Sheet1!$F$5,帮助!$BR:$BS,2,FALSE)),0))","v":{"$error":"#N/A"}},{"$f":"INDEX(Sheet1!L:L,MATCH(姓名查!$A6,INDIRECT(\"sheet1!\"&VLOOKUP(Sheet1!$F$5,帮助!$BR:$BS,2,FALSE)&\":\"&VLOOKUP(Sheet1!$F$5,帮助!$BR:$BS,2,FALSE)),0))","v":{"$error":"#N/A"}},{"$f":"INDEX(Sheet1!M:M,MATCH(姓名查!$A6,INDIRECT(\"sheet1!\"&VLOOKUP(Sheet1!$F$5,帮助!$BR:$BS,2,FALSE)&\":\"&VLOOKUP(Sheet1!$F$5,帮助!$BR:$BS,2,FALSE)),0))","v":{"$error":"#N/A"}},{"$f":"INDEX(Sheet1!N:N,MATCH(姓名查!$A6,INDIRECT(\"sheet1!\"&VLOOKUP(Sheet1!$F$5,帮助!$BR:$BS,2,FALSE)&\":\"&VLOOKUP(Sheet1!$F$5,帮助!$BR:$BS,2,FALSE)),0))","v":{"$error":"#N/A"}},{"$f":"INDEX(Sheet1!O:O,MATCH(姓名查!$A6,INDIRECT(\"sheet1!\"&VLOOKUP(Sheet1!$F$5,帮助!$BR:$BS,2,FALSE)&\":\"&VLOOKUP(Sheet1!$F$5,帮助!$BR:$BS,2,FALSE)),0))","v":{"$error":"#N/A"}},{"$f":"INDEX(Sheet1!P:P,MATCH(姓名查!$A6,INDIRECT(\"sheet1!\"&VLOOKUP(Sheet1!$F$5,帮助!$BR:$BS,2,FALSE)&\":\"&VLOOKUP(Sheet1!$F$5,帮助!$BR:$BS,2,FALSE)),0))","v":{"$error":"#N/A"}},{"$f":"INDEX(Sheet1!Q:Q,MATCH(姓名查!$A6,INDIRECT(\"sheet1!\"&VLOOKUP(Sheet1!$F$5,帮助!$BR:$BS,2,FALSE)&\":\"&VLOOKUP(Sheet1!$F$5,帮助!$BR:$BS,2,FALSE)),0))","v":{"$error":"#N/A"}},{"$f":"INDEX(Sheet1!R:R,MATCH(姓名查!$A6,INDIRECT(\"sheet1!\"&VLOOKUP(Sheet1!$F$5,帮助!$BR:$BS,2,FALSE)&\":\"&VLOOKUP(Sheet1!$F$5,帮助!$BR:$BS,2,FALSE)),0))","v":{"$error":"#N/A"}},{"$f":"INDEX(Sheet1!S:S,MATCH(姓名查!$A6,INDIRECT(\"sheet1!\"&VLOOKUP(Sheet1!$F$5,帮助!$BR:$BS,2,FALSE)&\":\"&VLOOKUP(Sheet1!$F$5,帮助!$BR:$BS,2,FALSE)),0))","v":{"$error":"#N/A"}},{"$f":"INDEX(Sheet1!T:T,MATCH(姓名查!$A6,INDIRECT(\"sheet1!\"&VLOOKUP(Sheet1!$F$5,帮助!$BR:$BS,2,FALSE)&\":\"&VLOOKUP(Sheet1!$F$5,帮助!$BR:$BS,2,FALSE)),0))","v":{"$error":"#N/A"}}]
[null,{"$f":"INDEX(Sheet1!A:A,MATCH(姓名查!$A7,INDIRECT(\"sheet1!\"&VLOOKUP(Sheet1!$F$5,帮助!$BR:$BS,2,FALSE)&\":\"&VLOOKUP(Sheet1!$F$5,帮助!$BR:$BS,2,FALSE)),0))","v":{"$error":"#N/A"}},{"$f":"INDEX(Sheet1!B:B,MATCH(姓名查!$A7,INDIRECT(\"sheet1!\"&VLOOKUP(Sheet1!$F$5,帮助!$BR:$BS,2,FALSE)&\":\"&VLOOKUP(Sheet1!$F$5,帮助!$BR:$BS,2,FALSE)),0))","v":{"$error":"#N/A"}},{"$f":"INDEX(Sheet1!C:C,MATCH(姓名查!$A7,INDIRECT(\"sheet1!\"&VLOOKUP(Sheet1!$F$5,帮助!$BR:$BS,2,FALSE)&\":\"&VLOOKUP(Sheet1!$F$5,帮助!$BR:$BS,2,FALSE)),0))","v":{"$error":"#N/A"}},{"$f":"INDEX(Sheet1!D:D,MATCH(姓名查!$A7,INDIRECT(\"sheet1!\"&VLOOKUP(Sheet1!$F$5,帮助!$BR:$BS,2,FALSE)&\":\"&VLOOKUP(Sheet1!$F$5,帮助!$BR:$BS,2,FALSE)),0))","v":{"$error":"#N/A"}},{"$f":"INDEX(Sheet1!E:E,MATCH(姓名查!$A7,INDIRECT(\"sheet1!\"&VLOOKUP(Sheet1!$F$5,帮助!$BR:$BS,2,FALSE)&\":\"&VLOOKUP(Sheet1!$F$5,帮助!$BR:$BS,2,FALSE)),0))","v":{"$error":"#N/A"}},{"$f":"INDEX(Sheet1!F:F,MATCH(姓名查!$A7,INDIRECT(\"sheet1!\"&VLOOKUP(Sheet1!$F$5,帮助!$BR:$BS,2,FALSE)&\":\"&VLOOKUP(Sheet1!$F$5,帮助!$BR:$BS,2,FALSE)),0))","v":{"$error":"#N/A"}},{"$f":"INDEX(Sheet1!G:G,MATCH(姓名查!$A7,INDIRECT(\"sheet1!\"&VLOOKUP(Sheet1!$F$5,帮助!$BR:$BS,2,FALSE)&\":\"&VLOOKUP(Sheet1!$F$5,帮助!$BR:$BS,2,FALSE)),0))","v":{"$error":"#N/A"}},{"$f":"INDEX(Sheet1!H:H,MATCH(姓名查!$A7,INDIRECT(\"sheet1!\"&VLOOKUP(Sheet1!$F$5,帮助!$BR:$BS,2,FALSE)&\":\"&VLOOKUP(Sheet1!$F$5,帮助!$BR:$BS,2,FALSE)),0))","v":{"$error":"#N/A"}},{"$f":"INDEX(Sheet1!I:I,MATCH(姓名查!$A7,INDIRECT(\"sheet1!\"&VLOOKUP(Sheet1!$F$5,帮助!$BR:$BS,2,FALSE)&\":\"&VLOOKUP(Sheet1!$F$5,帮助!$BR:$BS,2,FALSE)),0))","v":{"$error":"#N/A"}},{"$f":"INDEX(Sheet1!J:J,MATCH(姓名查!$A7,INDIRECT(\"sheet1!\"&VLOOKUP(Sheet1!$F$5,帮助!$BR:$BS,2,FALSE)&\":\"&VLOOKUP(Sheet1!$F$5,帮助!$BR:$BS,2,FALSE)),0))","v":{"$error":"#N/A"}},{"$f":"INDEX(Sheet1!K:K,MATCH(姓名查!$A7,INDIRECT(\"sheet1!\"&VLOOKUP(Sheet1!$F$5,帮助!$BR:$BS,2,FALSE)&\":\"&VLOOKUP(Sheet1!$F$5,帮助!$BR:$BS,2,FALSE)),0))","v":{"$error":"#N/A"}},{"$f":"INDEX(Sheet1!L:L,MATCH(姓名查!$A7,INDIRECT(\"sheet1!\"&VLOOKUP(Sheet1!$F$5,帮助!$BR:$BS,2,FALSE)&\":\"&VLOOKUP(Sheet1!$F$5,帮助!$BR:$BS,2,FALSE)),0))","v":{"$error":"#N/A"}},{"$f":"INDEX(Sheet1!M:M,MATCH(姓名查!$A7,INDIRECT(\"sheet1!\"&VLOOKUP(Sheet1!$F$5,帮助!$BR:$BS,2,FALSE)&\":\"&VLOOKUP(Sheet1!$F$5,帮助!$BR:$BS,2,FALSE)),0))","v":{"$error":"#N/A"}},{"$f":"INDEX(Sheet1!N:N,MATCH(姓名查!$A7,INDIRECT(\"sheet1!\"&VLOOKUP(Sheet1!$F$5,帮助!$BR:$BS,2,FALSE)&\":\"&VLOOKUP(Sheet1!$F$5,帮助!$BR:$BS,2,FALSE)),0))","v":{"$error":"#N/A"}},{"$f":"INDEX(Sheet1!O:O,MATCH(姓名查!$A7,INDIRECT(\"sheet1!\"&VLOOKUP(Sheet1!$F$5,帮助!$BR:$BS,2,FALSE)&\":\"&VLOOKUP(Sheet1!$F$5,帮助!$BR:$BS,2,FALSE)),0))","v":{"$error":"#N/A"}},{"$f":"INDEX(Sheet1!P:P,MATCH(姓名查!$A7,INDIRECT(\"sheet1!\"&VLOOKUP(Sheet1!$F$5,帮助!$BR:$BS,2,FALSE)&\":\"&VLOOKUP(Sheet1!$F$5,帮助!$BR:$BS,2,FALSE)),0))","v":{"$error":"#N/A"}},{"$f":"INDEX(Sheet1!Q:Q,MATCH(姓名查!$A7,INDIRECT(\"sheet1!\"&VLOOKUP(Sheet1!$F$5,帮助!$BR:$BS,2,FALSE)&\":\"&VLOOKUP(Sheet1!$F$5,帮助!$BR:$BS,2,FALSE)),0))","v":{"$error":"#N/A"}},{"$f":"INDEX(Sheet1!R:R,MATCH(姓名查!$A7,INDIRECT(\"sheet1!\"&VLOOKUP(Sheet1!$F$5,帮助!$BR:$BS,2,FALSE)&\":\"&VLOOKUP(Sheet1!$F$5,帮助!$BR:$BS,2,FALSE)),0))","v":{"$error":"#N/A"}},{"$f":"INDEX(Sheet1!S:S,MATCH(姓名查!$A7,INDIRECT(\"sheet1!\"&VLOOKUP(Sheet1!$F$5,帮助!$BR:$BS,2,FALSE)&\":\"&VLOOKUP(Sheet1!$F$5,帮助!$BR:$BS,2,FALSE)),0))","v":{"$error":"#N/A"}},{"$f":"INDEX(Sheet1!T:T,MATCH(姓名查!$A7,INDIRECT(\"sheet1!\"&VLOOKUP(Sheet1!$F$5,帮助!$BR:$BS,2,FALSE)&\":\"&VLOOKUP(Sheet1!$F$5,帮助!$BR:$BS,2,FALSE)),0))","v":{"$error":"#N/A"}}]
[null,{"$f":"INDEX(Sheet1!A:A,MATCH(姓名查!$A8,INDIRECT(\"sheet1!\"&VLOOKUP(Sheet1!$F$5,帮助!$BR:$BS,2,FALSE)&\":\"&VLOOKUP(Sheet1!$F$5,帮助!$BR:$BS,2,FALSE)),0))","v":{"$error":"#N/A"}},{"$f":"INDEX(Sheet1!B:B,MATCH(姓名查!$A8,INDIRECT(\"sheet1!\"&VLOOKUP(Sheet1!$F$5,帮助!$BR:$BS,2,FALSE)&\":\"&VLOOKUP(Sheet1!$F$5,帮助!$BR:$BS,2,FALSE)),0))","v":{"$error":"#N/A"}},{"$f":"INDEX(Sheet1!C:C,MATCH(姓名查!$A8,INDIRECT(\"sheet1!\"&VLOOKUP(Sheet1!$F$5,帮助!$BR:$BS,2,FALSE)&\":\"&VLOOKUP(Sheet1!$F$5,帮助!$BR:$BS,2,FALSE)),0))","v":{"$error":"#N/A"}},{"$f":"INDEX(Sheet1!D:D,MATCH(姓名查!$A8,INDIRECT(\"sheet1!\"&VLOOKUP(Sheet1!$F$5,帮助!$BR:$BS,2,FALSE)&\":\"&VLOOKUP(Sheet1!$F$5,帮助!$BR:$BS,2,FALSE)),0))","v":{"$error":"#N/A"}},{"$f":"INDEX(Sheet1!E:E,MATCH(姓名查!$A8,INDIRECT(\"sheet1!\"&VLOOKUP(Sheet1!$F$5,帮助!$BR:$BS,2,FALSE)&\":\"&VLOOKUP(Sheet1!$F$5,帮助!$BR:$BS,2,FALSE)),0))","v":{"$error":"#N/A"}},{"$f":"INDEX(Sheet1!F:F,MATCH(姓名查!$A8,INDIRECT(\"sheet1!\"&VLOOKUP(Sheet1!$F$5,帮助!$BR:$BS,2,FALSE)&\":\"&VLOOKUP(Sheet1!$F$5,帮助!$BR:$BS,2,FALSE)),0))","v":{"$error":"#N/A"}},{"$f":"INDEX(Sheet1!G:G,MATCH(姓名查!$A8,INDIRECT(\"sheet1!\"&VLOOKUP(Sheet1!$F$5,帮助!$BR:$BS,2,FALSE)&\":\"&VLOOKUP(Sheet1!$F$5,帮助!$BR:$BS,2,FALSE)),0))","v":{"$error":"#N/A"}},{"$f":"INDEX(Sheet1!H:H,MATCH(姓名查!$A8,INDIRECT(\"sheet1!\"&VLOOKUP(Sheet1!$F$5,帮助!$BR:$BS,2,FALSE)&\":\"&VLOOKUP(Sheet1!$F$5,帮助!$BR:$BS,2,FALSE)),0))","v":{"$error":"#N/A"}},{"$f":"INDEX(Sheet1!I:I,MATCH(姓名查!$A8,INDIRECT(\"sheet1!\"&VLOOKUP(Sheet1!$F$5,帮助!$BR:$BS,2,FALSE)&\":\"&VLOOKUP(Sheet1!$F$5,帮助!$BR:$BS,2,FALSE)),0))","v":{"$error":"#N/A"}},{"$f":"INDEX(Sheet1!J:J,MATCH(姓名查!$A8,INDIRECT(\"sheet1!\"&VLOOKUP(Sheet1!$F$5,帮助!$BR:$BS,2,FALSE)&\":\"&VLOOKUP(Sheet1!$F$5,帮助!$BR:$BS,2,FALSE)),0))","v":{"$error":"#N/A"}},{"$f":"INDEX(Sheet1!K:K,MATCH(姓名查!$A8,INDIRECT(\"sheet1!\"&VLOOKUP(Sheet1!$F$5,帮助!$BR:$BS,2,FALSE)&\":\"&VLOOKUP(Sheet1!$F$5,帮助!$BR:$BS,2,FALSE)),0))","v":{"$error":"#N/A"}},{"$f":"INDEX(Sheet1!L:L,MATCH(姓名查!$A8,INDIRECT(\"sheet1!\"&VLOOKUP(Sheet1!$F$5,帮助!$BR:$BS,2,FALSE)&\":\"&VLOOKUP(Sheet1!$F$5,帮助!$BR:$BS,2,FALSE)),0))","v":{"$error":"#N/A"}},{"$f":"INDEX(Sheet1!M:M,MATCH(姓名查!$A8,INDIRECT(\"sheet1!\"&VLOOKUP(Sheet1!$F$5,帮助!$BR:$BS,2,FALSE)&\":\"&VLOOKUP(Sheet1!$F$5,帮助!$BR:$BS,2,FALSE)),0))","v":{"$error":"#N/A"}},{"$f":"INDEX(Sheet1!N:N,MATCH(姓名查!$A8,INDIRECT(\"sheet1!\"&VLOOKUP(Sheet1!$F$5,帮助!$BR:$BS,2,FALSE)&\":\"&VLOOKUP(Sheet1!$F$5,帮助!$BR:$BS,2,FALSE)),0))","v":{"$error":"#N/A"}},{"$f":"INDEX(Sheet1!O:O,MATCH(姓名查!$A8,INDIRECT(\"sheet1!\"&VLOOKUP(Sheet1!$F$5,帮助!$BR:$BS,2,FALSE)&\":\"&VLOOKUP(Sheet1!$F$5,帮助!$BR:$BS,2,FALSE)),0))","v":{"$error":"#N/A"}},{"$f":"INDEX(Sheet1!P:P,MATCH(姓名查!$A8,INDIRECT(\"sheet1!\"&VLOOKUP(Sheet1!$F$5,帮助!$BR:$BS,2,FALSE)&\":\"&VLOOKUP(Sheet1!$F$5,帮助!$BR:$BS,2,FALSE)),0))","v":{"$error":"#N/A"}},{"$f":"INDEX(Sheet1!Q:Q,MATCH(姓名查!$A8,INDIRECT(\"sheet1!\"&VLOOKUP(Sheet1!$F$5,帮助!$BR:$BS,2,FALSE)&\":\"&VLOOKUP(Sheet1!$F$5,帮助!$BR:$BS,2,FALSE)),0))","v":{"$error":"#N/A"}},{"$f":"INDEX(Sheet1!R:R,MATCH(姓名查!$A8,INDIRECT(\"sheet1!\"&VLOOKUP(Sheet1!$F$5,帮助!$BR:$BS,2,FALSE)&\":\"&VLOOKUP(Sheet1!$F$5,帮助!$BR:$BS,2,FALSE)),0))","v":{"$error":"#N/A"}},{"$f":"INDEX(Sheet1!S:S,MATCH(姓名查!$A8,INDIRECT(\"sheet1!\"&VLOOKUP(Sheet1!$F$5,帮助!$BR:$BS,2,FALSE)&\":\"&VLOOKUP(Sheet1!$F$5,帮助!$BR:$BS,2,FALSE)),0))","v":{"$error":"#N/A"}},{"$f":"INDEX(Sheet1!T:T,MATCH(姓名查!$A8,INDIRECT(\"sheet1!\"&VLOOKUP(Sheet1!$F$5,帮助!$BR:$BS,2,FALSE)&\":\"&VLOOKUP(Sheet1!$F$5,帮助!$BR:$BS,2,FALSE)),0))","v":{"$error":"#N/A"}}]
[null,{"$f":"INDEX(Sheet1!A:A,MATCH(姓名查!$A9,INDIRECT(\"sheet1!\"&VLOOKUP(Sheet1!$F$5,帮助!$BR:$BS,2,FALSE)&\":\"&VLOOKUP(Sheet1!$F$5,帮助!$BR:$BS,2,FALSE)),0))","v":{"$error":"#N/A"}},{"$f":"INDEX(Sheet1!B:B,MATCH(姓名查!$A9,INDIRECT(\"sheet1!\"&VLOOKUP(Sheet1!$F$5,帮助!$BR:$BS,2,FALSE)&\":\"&VLOOKUP(Sheet1!$F$5,帮助!$BR:$BS,2,FALSE)),0))","v":{"$error":"#N/A"}},{"$f":"INDEX(Sheet1!C:C,MATCH(姓名查!$A9,INDIRECT(\"sheet1!\"&VLOOKUP(Sheet1!$F$5,帮助!$BR:$BS,2,FALSE)&\":\"&VLOOKUP(Sheet1!$F$5,帮助!$BR:$BS,2,FALSE)),0))","v":{"$error":"#N/A"}},{"$f":"INDEX(Sheet1!D:D,MATCH(姓名查!$A9,INDIRECT(\"sheet1!\"&VLOOKUP(Sheet1!$F$5,帮助!$BR:$BS,2,FALSE)&\":\"&VLOOKUP(Sheet1!$F$5,帮助!$BR:$BS,2,FALSE)),0))","v":{"$error":"#N/A"}},{"$f":"INDEX(Sheet1!E:E,MATCH(姓名查!$A9,INDIRECT(\"sheet1!\"&VLOOKUP(Sheet1!$F$5,帮助!$BR:$BS,2,FALSE)&\":\"&VLOOKUP(Sheet1!$F$5,帮助!$BR:$BS,2,FALSE)),0))","v":{"$error":"#N/A"}},{"$f":"INDEX(Sheet1!F:F,MATCH(姓名查!$A9,INDIRECT(\"sheet1!\"&VLOOKUP(Sheet1!$F$5,帮助!$BR:$BS,2,FALSE)&\":\"&VLOOKUP(Sheet1!$F$5,帮助!$BR:$BS,2,FALSE)),0))","v":{"$error":"#N/A"}},{"$f":"INDEX(Sheet1!G:G,MATCH(姓名查!$A9,INDIRECT(\"sheet1!\"&VLOOKUP(Sheet1!$F$5,帮助!$BR:$BS,2,FALSE)&\":\"&VLOOKUP(Sheet1!$F$5,帮助!$BR:$BS,2,FALSE)),0))","v":{"$error":"#N/A"}},{"$f":"INDEX(Sheet1!H:H,MATCH(姓名查!$A9,INDIRECT(\"sheet1!\"&VLOOKUP(Sheet1!$F$5,帮助!$BR:$BS,2,FALSE)&\":\"&VLOOKUP(Sheet1!$F$5,帮助!$BR:$BS,2,FALSE)),0))","v":{"$error":"#N/A"}},{"$f":"INDEX(Sheet1!I:I,MATCH(姓名查!$A9,INDIRECT(\"sheet1!\"&VLOOKUP(Sheet1!$F$5,帮助!$BR:$BS,2,FALSE)&\":\"&VLOOKUP(Sheet1!$F$5,帮助!$BR:$BS,2,FALSE)),0))","v":{"$error":"#N/A"}},{"$f":"INDEX(Sheet1!J:J,MATCH(姓名查!$A9,INDIRECT(\"sheet1!\"&VLOOKUP(Sheet1!$F$5,帮助!$BR:$BS,2,FALSE)&\":\"&VLOOKUP(Sheet1!$F$5,帮助!$BR:$BS,2,FALSE)),0))","v":{"$error":"#N/A"}},{"$f":"INDEX(Sheet1!K:K,MATCH(姓名查!$A9,INDIRECT(\"sheet1!\"&VLOOKUP(Sheet1!$F$5,帮助!$BR:$BS,2,FALSE)&\":\"&VLOOKUP(Sheet1!$F$5,帮助!$BR:$BS,2,FALSE)),0))","v":{"$error":"#N/A"}},{"$f":"INDEX(Sheet1!L:L,MATCH(姓名查!$A9,INDIRECT(\"sheet1!\"&VLOOKUP(Sheet1!$F$5,帮助!$BR:$BS,2,FALSE)&\":\"&VLOOKUP(Sheet1!$F$5,帮助!$BR:$BS,2,FALSE)),0))","v":{"$error":"#N/A"}},{"$f":"INDEX(Sheet1!M:M,MATCH(姓名查!$A9,INDIRECT(\"sheet1!\"&VLOOKUP(Sheet1!$F$5,帮助!$BR:$BS,2,FALSE)&\":\"&VLOOKUP(Sheet1!$F$5,帮助!$BR:$BS,2,FALSE)),0))","v":{"$error":"#N/A"}},{"$f":"INDEX(Sheet1!N:N,MATCH(姓名查!$A9,INDIRECT(\"sheet1!\"&VLOOKUP(Sheet1!$F$5,帮助!$BR:$BS,2,FALSE)&\":\"&VLOOKUP(Sheet1!$F$5,帮助!$BR:$BS,2,FALSE)),0))","v":{"$error":"#N/A"}},{"$f":"INDEX(Sheet1!O:O,MATCH(姓名查!$A9,INDIRECT(\"sheet1!\"&VLOOKUP(Sheet1!$F$5,帮助!$BR:$BS,2,FALSE)&\":\"&VLOOKUP(Sheet1!$F$5,帮助!$BR:$BS,2,FALSE)),0))","v":{"$error":"#N/A"}},{"$f":"INDEX(Sheet1!P:P,MATCH(姓名查!$A9,INDIRECT(\"sheet1!\"&VLOOKUP(Sheet1!$F$5,帮助!$BR:$BS,2,FALSE)&\":\"&VLOOKUP(Sheet1!$F$5,帮助!$BR:$BS,2,FALSE)),0))","v":{"$error":"#N/A"}},{"$f":"INDEX(Sheet1!Q:Q,MATCH(姓名查!$A9,INDIRECT(\"sheet1!\"&VLOOKUP(Sheet1!$F$5,帮助!$BR:$BS,2,FALSE)&\":\"&VLOOKUP(Sheet1!$F$5,帮助!$BR:$BS,2,FALSE)),0))","v":{"$error":"#N/A"}},{"$f":"INDEX(Sheet1!R:R,MATCH(姓名查!$A9,INDIRECT(\"sheet1!\"&VLOOKUP(Sheet1!$F$5,帮助!$BR:$BS,2,FALSE)&\":\"&VLOOKUP(Sheet1!$F$5,帮助!$BR:$BS,2,FALSE)),0))","v":{"$error":"#N/A"}},{"$f":"INDEX(Sheet1!S:S,MATCH(姓名查!$A9,INDIRECT(\"sheet1!\"&VLOOKUP(Sheet1!$F$5,帮助!$BR:$BS,2,FALSE)&\":\"&VLOOKUP(Sheet1!$F$5,帮助!$BR:$BS,2,FALSE)),0))","v":{"$error":"#N/A"}},{"$f":"INDEX(Sheet1!T:T,MATCH(姓名查!$A9,INDIRECT(\"sheet1!\"&VLOOKUP(Sheet1!$F$5,帮助!$BR:$BS,2,FALSE)&\":\"&VLOOKUP(Sheet1!$F$5,帮助!$BR:$BS,2,FALSE)),0))","v":{"$error":"#N/A"}}]
[null,{"$f":"INDEX(Sheet1!A:A,MATCH(姓名查!$A10,INDIRECT(\"sheet1!\"&VLOOKUP(Sheet1!$F$5,帮助!$BR:$BS,2,FALSE)&\":\"&VLOOKUP(Sheet1!$F$5,帮助!$BR:$BS,2,FALSE)),0))","v":{"$error":"#N/A"}},{"$f":"INDEX(Sheet1!B:B,MATCH(姓名查!$A10,INDIRECT(\"sheet1!\"&VLOOKUP(Sheet1!$F$5,帮助!$BR:$BS,2,FALSE)&\":\"&VLOOKUP(Sheet1!$F$5,帮助!$BR:$BS,2,FALSE)),0))","v":{"$error":"#N/A"}},{"$f":"INDEX(Sheet1!C:C,MATCH(姓名查!$A10,INDIRECT(\"sheet1!\"&VLOOKUP(Sheet1!$F$5,帮助!$BR:$BS,2,FALSE)&\":\"&VLOOKUP(Sheet1!$F$5,帮助!$BR:$BS,2,FALSE)),0))","v":{"$error":"#N/A"}},{"$f":"INDEX(Sheet1!D:D,MATCH(姓名查!$A10,INDIRECT(\"sheet1!\"&VLOOKUP(Sheet1!$F$5,帮助!$BR:$BS,2,FALSE)&\":\"&VLOOKUP(Sheet1!$F$5,帮助!$BR:$BS,2,FALSE)),0))","v":{"$error":"#N/A"}},{"$f":"INDEX(Sheet1!E:E,MATCH(姓名查!$A10,INDIRECT(\"sheet1!\"&VLOOKUP(Sheet1!$F$5,帮助!$BR:$BS,2,FALSE)&\":\"&VLOOKUP(Sheet1!$F$5,帮助!$BR:$BS,2,FALSE)),0))","v":{"$error":"#N/A"}},{"$f":"INDEX(Sheet1!F:F,MATCH(姓名查!$A10,INDIRECT(\"sheet1!\"&VLOOKUP(Sheet1!$F$5,帮助!$BR:$BS,2,FALSE)&\":\"&VLOOKUP(Sheet1!$F$5,帮助!$BR:$BS,2,FALSE)),0))","v":{"$error":"#N/A"}},{"$f":"INDEX(Sheet1!G:G,MATCH(姓名查!$A10,INDIRECT(\"sheet1!\"&VLOOKUP(Sheet1!$F$5,帮助!$BR:$BS,2,FALSE)&\":\"&VLOOKUP(Sheet1!$F$5,帮助!$BR:$BS,2,FALSE)),0))","v":{"$error":"#N/A"}},{"$f":"INDEX(Sheet1!H:H,MATCH(姓名查!$A10,INDIRECT(\"sheet1!\"&VLOOKUP(Sheet1!$F$5,帮助!$BR:$BS,2,FALSE)&\":\"&VLOOKUP(Sheet1!$F$5,帮助!$BR:$BS,2,FALSE)),0))","v":{"$error":"#N/A"}},{"$f":"INDEX(Sheet1!I:I,MATCH(姓名查!$A10,INDIRECT(\"sheet1!\"&VLOOKUP(Sheet1!$F$5,帮助!$BR:$BS,2,FALSE)&\":\"&VLOOKUP(Sheet1!$F$5,帮助!$BR:$BS,2,FALSE)),0))","v":{"$error":"#N/A"}},{"$f":"INDEX(Sheet1!J:J,MATCH(姓名查!$A10,INDIRECT(\"sheet1!\"&VLOOKUP(Sheet1!$F$5,帮助!$BR:$BS,2,FALSE)&\":\"&VLOOKUP(Sheet1!$F$5,帮助!$BR:$BS,2,FALSE)),0))","v":{"$error":"#N/A"}},{"$f":"INDEX(Sheet1!K:K,MATCH(姓名查!$A10,INDIRECT(\"sheet1!\"&VLOOKUP(Sheet1!$F$5,帮助!$BR:$BS,2,FALSE)&\":\"&VLOOKUP(Sheet1!$F$5,帮助!$BR:$BS,2,FALSE)),0))","v":{"$error":"#N/A"}},{"$f":"INDEX(Sheet1!L:L,MATCH(姓名查!$A10,INDIRECT(\"sheet1!\"&VLOOKUP(Sheet1!$F$5,帮助!$BR:$BS,2,FALSE)&\":\"&VLOOKUP(Sheet1!$F$5,帮助!$BR:$BS,2,FALSE)),0))","v":{"$error":"#N/A"}},{"$f":"INDEX(Sheet1!M:M,MATCH(姓名查!$A10,INDIRECT(\"sheet1!\"&VLOOKUP(Sheet1!$F$5,帮助!$BR:$BS,2,FALSE)&\":\"&VLOOKUP(Sheet1!$F$5,帮助!$BR:$BS,2,FALSE)),0))","v":{"$error":"#N/A"}},{"$f":"INDEX(Sheet1!N:N,MATCH(姓名查!$A10,INDIRECT(\"sheet1!\"&VLOOKUP(Sheet1!$F$5,帮助!$BR:$BS,2,FALSE)&\":\"&VLOOKUP(Sheet1!$F$5,帮助!$BR:$BS,2,FALSE)),0))","v":{"$error":"#N/A"}},{"$f":"INDEX(Sheet1!O:O,MATCH(姓名查!$A10,INDIRECT(\"sheet1!\"&VLOOKUP(Sheet1!$F$5,帮助!$BR:$BS,2,FALSE)&\":\"&VLOOKUP(Sheet1!$F$5,帮助!$BR:$BS,2,FALSE)),0))","v":{"$error":"#N/A"}},{"$f":"INDEX(Sheet1!P:P,MATCH(姓名查!$A10,INDIRECT(\"sheet1!\"&VLOOKUP(Sheet1!$F$5,帮助!$BR:$BS,2,FALSE)&\":\"&VLOOKUP(Sheet1!$F$5,帮助!$BR:$BS,2,FALSE)),0))","v":{"$error":"#N/A"}},{"$f":"INDEX(Sheet1!Q:Q,MATCH(姓名查!$A10,INDIRECT(\"sheet1!\"&VLOOKUP(Sheet1!$F$5,帮助!$BR:$BS,2,FALSE)&\":\"&VLOOKUP(Sheet1!$F$5,帮助!$BR:$BS,2,FALSE)),0))","v":{"$error":"#N/A"}},{"$f":"INDEX(Sheet1!R:R,MATCH(姓名查!$A10,INDIRECT(\"sheet1!\"&VLOOKUP(Sheet1!$F$5,帮助!$BR:$BS,2,FALSE)&\":\"&VLOOKUP(Sheet1!$F$5,帮助!$BR:$BS,2,FALSE)),0))","v":{"$error":"#N/A"}},{"$f":"INDEX(Sheet1!S:S,MATCH(姓名查!$A10,INDIRECT(\"sheet1!\"&VLOOKUP(Sheet1!$F$5,帮助!$BR:$BS,2,FALSE)&\":\"&VLOOKUP(Sheet1!$F$5,帮助!$BR:$BS,2,FALSE)),0))","v":{"$error":"#N/A"}},{"$f":"INDEX(Sheet1!T:T,MATCH(姓名查!$A10,INDIRECT(\"sheet1!\"&VLOOKUP(Sheet1!$F$5,帮助!$BR:$BS,2,FALSE)&\":\"&VLOOKUP(Sheet1!$F$5,帮助!$BR:$BS,2,FALSE)),0))","v":{"$error":"#N/A"}}]
[null,{"$f":"INDEX(Sheet1!A:A,MATCH(姓名查!$A11,INDIRECT(\"sheet1!\"&VLOOKUP(Sheet1!$F$5,帮助!$BR:$BS,2,FALSE)&\":\"&VLOOKUP(Sheet1!$F$5,帮助!$BR:$BS,2,FALSE)),0))","v":{"$error":"#N/A"}},{"$f":"INDEX(Sheet1!B:B,MATCH(姓名查!$A11,INDIRECT(\"sheet1!\"&VLOOKUP(Sheet1!$F$5,帮助!$BR:$BS,2,FALSE)&\":\"&VLOOKUP(Sheet1!$F$5,帮助!$BR:$BS,2,FALSE)),0))","v":{"$error":"#N/A"}},{"$f":"INDEX(Sheet1!C:C,MATCH(姓名查!$A11,INDIRECT(\"sheet1!\"&VLOOKUP(Sheet1!$F$5,帮助!$BR:$BS,2,FALSE)&\":\"&VLOOKUP(Sheet1!$F$5,帮助!$BR:$BS,2,FALSE)),0))","v":{"$error":"#N/A"}},{"$f":"INDEX(Sheet1!D:D,MATCH(姓名查!$A11,INDIRECT(\"sheet1!\"&VLOOKUP(Sheet1!$F$5,帮助!$BR:$BS,2,FALSE)&\":\"&VLOOKUP(Sheet1!$F$5,帮助!$BR:$BS,2,FALSE)),0))","v":{"$error":"#N/A"}},{"$f":"INDEX(Sheet1!E:E,MATCH(姓名查!$A11,INDIRECT(\"sheet1!\"&VLOOKUP(Sheet1!$F$5,帮助!$BR:$BS,2,FALSE)&\":\"&VLOOKUP(Sheet1!$F$5,帮助!$BR:$BS,2,FALSE)),0))","v":{"$error":"#N/A"}},{"$f":"INDEX(Sheet1!F:F,MATCH(姓名查!$A11,INDIRECT(\"sheet1!\"&VLOOKUP(Sheet1!$F$5,帮助!$BR:$BS,2,FALSE)&\":\"&VLOOKUP(Sheet1!$F$5,帮助!$BR:$BS,2,FALSE)),0))","v":{"$error":"#N/A"}},{"$f":"INDEX(Sheet1!G:G,MATCH(姓名查!$A11,INDIRECT(\"sheet1!\"&VLOOKUP(Sheet1!$F$5,帮助!$BR:$BS,2,FALSE)&\":\"&VLOOKUP(Sheet1!$F$5,帮助!$BR:$BS,2,FALSE)),0))","v":{"$error":"#N/A"}},{"$f":"INDEX(Sheet1!H:H,MATCH(姓名查!$A11,INDIRECT(\"sheet1!\"&VLOOKUP(Sheet1!$F$5,帮助!$BR:$BS,2,FALSE)&\":\"&VLOOKUP(Sheet1!$F$5,帮助!$BR:$BS,2,FALSE)),0))","v":{"$error":"#N/A"}},{"$f":"INDEX(Sheet1!I:I,MATCH(姓名查!$A11,INDIRECT(\"sheet1!\"&VLOOKUP(Sheet1!$F$5,帮助!$BR:$BS,2,FALSE)&\":\"&VLOOKUP(Sheet1!$F$5,帮助!$BR:$BS,2,FALSE)),0))","v":{"$error":"#N/A"}},{"$f":"INDEX(Sheet1!J:J,MATCH(姓名查!$A11,INDIRECT(\"sheet1!\"&VLOOKUP(Sheet1!$F$5,帮助!$BR:$BS,2,FALSE)&\":\"&VLOOKUP(Sheet1!$F$5,帮助!$BR:$BS,2,FALSE)),0))","v":{"$error":"#N/A"}},{"$f":"INDEX(Sheet1!K:K,MATCH(姓名查!$A11,INDIRECT(\"sheet1!\"&VLOOKUP(Sheet1!$F$5,帮助!$BR:$BS,2,FALSE)&\":\"&VLOOKUP(Sheet1!$F$5,帮助!$BR:$BS,2,FALSE)),0))","v":{"$error":"#N/A"}},{"$f":"INDEX(Sheet1!L:L,MATCH(姓名查!$A11,INDIRECT(\"sheet1!\"&VLOOKUP(Sheet1!$F$5,帮助!$BR:$BS,2,FALSE)&\":\"&VLOOKUP(Sheet1!$F$5,帮助!$BR:$BS,2,FALSE)),0))","v":{"$error":"#N/A"}},{"$f":"INDEX(Sheet1!M:M,MATCH(姓名查!$A11,INDIRECT(\"sheet1!\"&VLOOKUP(Sheet1!$F$5,帮助!$BR:$BS,2,FALSE)&\":\"&VLOOKUP(Sheet1!$F$5,帮助!$BR:$BS,2,FALSE)),0))","v":{"$error":"#N/A"}},{"$f":"INDEX(Sheet1!N:N,MATCH(姓名查!$A11,INDIRECT(\"sheet1!\"&VLOOKUP(Sheet1!$F$5,帮助!$BR:$BS,2,FALSE)&\":\"&VLOOKUP(Sheet1!$F$5,帮助!$BR:$BS,2,FALSE)),0))","v":{"$error":"#N/A"}},{"$f":"INDEX(Sheet1!O:O,MATCH(姓名查!$A11,INDIRECT(\"sheet1!\"&VLOOKUP(Sheet1!$F$5,帮助!$BR:$BS,2,FALSE)&\":\"&VLOOKUP(Sheet1!$F$5,帮助!$BR:$BS,2,FALSE)),0))","v":{"$error":"#N/A"}},{"$f":"INDEX(Sheet1!P:P,MATCH(姓名查!$A11,INDIRECT(\"sheet1!\"&VLOOKUP(Sheet1!$F$5,帮助!$BR:$BS,2,FALSE)&\":\"&VLOOKUP(Sheet1!$F$5,帮助!$BR:$BS,2,FALSE)),0))","v":{"$error":"#N/A"}},{"$f":"INDEX(Sheet1!Q:Q,MATCH(姓名查!$A11,INDIRECT(\"sheet1!\"&VLOOKUP(Sheet1!$F$5,帮助!$BR:$BS,2,FALSE)&\":\"&VLOOKUP(Sheet1!$F$5,帮助!$BR:$BS,2,FALSE)),0))","v":{"$error":"#N/A"}},{"$f":"INDEX(Sheet1!R:R,MATCH(姓名查!$A11,INDIRECT(\"sheet1!\"&VLOOKUP(Sheet1!$F$5,帮助!$BR:$BS,2,FALSE)&\":\"&VLOOKUP(Sheet1!$F$5,帮助!$BR:$BS,2,FALSE)),0))","v":{"$error":"#N/A"}},{"$f":"INDEX(Sheet1!S:S,MATCH(姓名查!$A11,INDIRECT(\"sheet1!\"&VLOOKUP(Sheet1!$F$5,帮助!$BR:$BS,2,FALSE)&\":\"&VLOOKUP(Sheet1!$F$5,帮助!$BR:$BS,2,FALSE)),0))","v":{"$error":"#N/A"}},{"$f":"INDEX(Sheet1!T:T,MATCH(姓名查!$A11,INDIRECT(\"sheet1!\"&VLOOKUP(Sheet1!$F$5,帮助!$BR:$BS,2,FALSE)&\":\"&VLOOKUP(Sheet1!$F$5,帮助!$BR:$BS,2,FALSE)),0))","v":{"$error":"#N/A"}}]
[null,{"$f":"INDEX(Sheet1!A:A,MATCH(姓名查!$A12,INDIRECT(\"sheet1!\"&VLOOKUP(Sheet1!$F$5,帮助!$BR:$BS,2,FALSE)&\":\"&VLOOKUP(Sheet1!$F$5,帮助!$BR:$BS,2,FALSE)),0))","v":{"$error":"#N/A"}},{"$f":"INDEX(Sheet1!B:B,MATCH(姓名查!$A12,INDIRECT(\"sheet1!\"&VLOOKUP(Sheet1!$F$5,帮助!$BR:$BS,2,FALSE)&\":\"&VLOOKUP(Sheet1!$F$5,帮助!$BR:$BS,2,FALSE)),0))","v":{"$error":"#N/A"}},{"$f":"INDEX(Sheet1!C:C,MATCH(姓名查!$A12,INDIRECT(\"sheet1!\"&VLOOKUP(Sheet1!$F$5,帮助!$BR:$BS,2,FALSE)&\":\"&VLOOKUP(Sheet1!$F$5,帮助!$BR:$BS,2,FALSE)),0))","v":{"$error":"#N/A"}},{"$f":"INDEX(Sheet1!D:D,MATCH(姓名查!$A12,INDIRECT(\"sheet1!\"&VLOOKUP(Sheet1!$F$5,帮助!$BR:$BS,2,FALSE)&\":\"&VLOOKUP(Sheet1!$F$5,帮助!$BR:$BS,2,FALSE)),0))","v":{"$error":"#N/A"}},{"$f":"INDEX(Sheet1!E:E,MATCH(姓名查!$A12,INDIRECT(\"sheet1!\"&VLOOKUP(Sheet1!$F$5,帮助!$BR:$BS,2,FALSE)&\":\"&VLOOKUP(Sheet1!$F$5,帮助!$BR:$BS,2,FALSE)),0))","v":{"$error":"#N/A"}},{"$f":"INDEX(Sheet1!F:F,MATCH(姓名查!$A12,INDIRECT(\"sheet1!\"&VLOOKUP(Sheet1!$F$5,帮助!$BR:$BS,2,FALSE)&\":\"&VLOOKUP(Sheet1!$F$5,帮助!$BR:$BS,2,FALSE)),0))","v":{"$error":"#N/A"}},{"$f":"INDEX(Sheet1!G:G,MATCH(姓名查!$A12,INDIRECT(\"sheet1!\"&VLOOKUP(Sheet1!$F$5,帮助!$BR:$BS,2,FALSE)&\":\"&VLOOKUP(Sheet1!$F$5,帮助!$BR:$BS,2,FALSE)),0))","v":{"$error":"#N/A"}},{"$f":"INDEX(Sheet1!H:H,MATCH(姓名查!$A12,INDIRECT(\"sheet1!\"&VLOOKUP(Sheet1!$F$5,帮助!$BR:$BS,2,FALSE)&\":\"&VLOOKUP(Sheet1!$F$5,帮助!$BR:$BS,2,FALSE)),0))","v":{"$error":"#N/A"}},{"$f":"INDEX(Sheet1!I:I,MATCH(姓名查!$A12,INDIRECT(\"sheet1!\"&VLOOKUP(Sheet1!$F$5,帮助!$BR:$BS,2,FALSE)&\":\"&VLOOKUP(Sheet1!$F$5,帮助!$BR:$BS,2,FALSE)),0))","v":{"$error":"#N/A"}},{"$f":"INDEX(Sheet1!J:J,MATCH(姓名查!$A12,INDIRECT(\"sheet1!\"&VLOOKUP(Sheet1!$F$5,帮助!$BR:$BS,2,FALSE)&\":\"&VLOOKUP(Sheet1!$F$5,帮助!$BR:$BS,2,FALSE)),0))","v":{"$error":"#N/A"}},{"$f":"INDEX(Sheet1!K:K,MATCH(姓名查!$A12,INDIRECT(\"sheet1!\"&VLOOKUP(Sheet1!$F$5,帮助!$BR:$BS,2,FALSE)&\":\"&VLOOKUP(Sheet1!$F$5,帮助!$BR:$BS,2,FALSE)),0))","v":{"$error":"#N/A"}},{"$f":"INDEX(Sheet1!L:L,MATCH(姓名查!$A12,INDIRECT(\"sheet1!\"&VLOOKUP(Sheet1!$F$5,帮助!$BR:$BS,2,FALSE)&\":\"&VLOOKUP(Sheet1!$F$5,帮助!$BR:$BS,2,FALSE)),0))","v":{"$error":"#N/A"}},{"$f":"INDEX(Sheet1!M:M,MATCH(姓名查!$A12,INDIRECT(\"sheet1!\"&VLOOKUP(Sheet1!$F$5,帮助!$BR:$BS,2,FALSE)&\":\"&VLOOKUP(Sheet1!$F$5,帮助!$BR:$BS,2,FALSE)),0))","v":{"$error":"#N/A"}},{"$f":"INDEX(Sheet1!N:N,MATCH(姓名查!$A12,INDIRECT(\"sheet1!\"&VLOOKUP(Sheet1!$F$5,帮助!$BR:$BS,2,FALSE)&\":\"&VLOOKUP(Sheet1!$F$5,帮助!$BR:$BS,2,FALSE)),0))","v":{"$error":"#N/A"}},{"$f":"INDEX(Sheet1!O:O,MATCH(姓名查!$A12,INDIRECT(\"sheet1!\"&VLOOKUP(Sheet1!$F$5,帮助!$BR:$BS,2,FALSE)&\":\"&VLOOKUP(Sheet1!$F$5,帮助!$BR:$BS,2,FALSE)),0))","v":{"$error":"#N/A"}},{"$f":"INDEX(Sheet1!P:P,MATCH(姓名查!$A12,INDIRECT(\"sheet1!\"&VLOOKUP(Sheet1!$F$5,帮助!$BR:$BS,2,FALSE)&\":\"&VLOOKUP(Sheet1!$F$5,帮助!$BR:$BS,2,FALSE)),0))","v":{"$error":"#N/A"}},{"$f":"INDEX(Sheet1!Q:Q,MATCH(姓名查!$A12,INDIRECT(\"sheet1!\"&VLOOKUP(Sheet1!$F$5,帮助!$BR:$BS,2,FALSE)&\":\"&VLOOKUP(Sheet1!$F$5,帮助!$BR:$BS,2,FALSE)),0))","v":{"$error":"#N/A"}},{"$f":"INDEX(Sheet1!R:R,MATCH(姓名查!$A12,INDIRECT(\"sheet1!\"&VLOOKUP(Sheet1!$F$5,帮助!$BR:$BS,2,FALSE)&\":\"&VLOOKUP(Sheet1!$F$5,帮助!$BR:$BS,2,FALSE)),0))","v":{"$error":"#N/A"}},{"$f":"INDEX(Sheet1!S:S,MATCH(姓名查!$A12,INDIRECT(\"sheet1!\"&VLOOKUP(Sheet1!$F$5,帮助!$BR:$BS,2,FALSE)&\":\"&VLOOKUP(Sheet1!$F$5,帮助!$BR:$BS,2,FALSE)),0))","v":{"$error":"#N/A"}},{"$f":"INDEX(Sheet1!T:T,MATCH(姓名查!$A12,INDIRECT(\"sheet1!\"&VLOOKUP(Sheet1!$F$5,帮助!$BR:$BS,2,FALSE)&\":\"&VLOOKUP(Sheet1!$F$5,帮助!$BR:$BS,2,FALSE)),0))","v":{"$error":"#N/A"}}]
[null,{"$f":"INDEX(Sheet1!A:A,MATCH(姓名查!$A13,INDIRECT(\"sheet1!\"&VLOOKUP(Sheet1!$F$5,帮助!$BR:$BS,2,FALSE)&\":\"&VLOOKUP(Sheet1!$F$5,帮助!$BR:$BS,2,FALSE)),0))","v":{"$error":"#N/A"}},{"$f":"INDEX(Sheet1!B:B,MATCH(姓名查!$A13,INDIRECT(\"sheet1!\"&VLOOKUP(Sheet1!$F$5,帮助!$BR:$BS,2,FALSE)&\":\"&VLOOKUP(Sheet1!$F$5,帮助!$BR:$BS,2,FALSE)),0))","v":{"$error":"#N/A"}},{"$f":"INDEX(Sheet1!C:C,MATCH(姓名查!$A13,INDIRECT(\"sheet1!\"&VLOOKUP(Sheet1!$F$5,帮助!$BR:$BS,2,FALSE)&\":\"&VLOOKUP(Sheet1!$F$5,帮助!$BR:$BS,2,FALSE)),0))","v":{"$error":"#N/A"}},{"$f":"INDEX(Sheet1!D:D,MATCH(姓名查!$A13,INDIRECT(\"sheet1!\"&VLOOKUP(Sheet1!$F$5,帮助!$BR:$BS,2,FALSE)&\":\"&VLOOKUP(Sheet1!$F$5,帮助!$BR:$BS,2,FALSE)),0))","v":{"$error":"#N/A"}},{"$f":"INDEX(Sheet1!E:E,MATCH(姓名查!$A13,INDIRECT(\"sheet1!\"&VLOOKUP(Sheet1!$F$5,帮助!$BR:$BS,2,FALSE)&\":\"&VLOOKUP(Sheet1!$F$5,帮助!$BR:$BS,2,FALSE)),0))","v":{"$error":"#N/A"}},{"$f":"INDEX(Sheet1!F:F,MATCH(姓名查!$A13,INDIRECT(\"sheet1!\"&VLOOKUP(Sheet1!$F$5,帮助!$BR:$BS,2,FALSE)&\":\"&VLOOKUP(Sheet1!$F$5,帮助!$BR:$BS,2,FALSE)),0))","v":{"$error":"#N/A"}},{"$f":"INDEX(Sheet1!G:G,MATCH(姓名查!$A13,INDIRECT(\"sheet1!\"&VLOOKUP(Sheet1!$F$5,帮助!$BR:$BS,2,FALSE)&\":\"&VLOOKUP(Sheet1!$F$5,帮助!$BR:$BS,2,FALSE)),0))","v":{"$error":"#N/A"}},{"$f":"INDEX(Sheet1!H:H,MATCH(姓名查!$A13,INDIRECT(\"sheet1!\"&VLOOKUP(Sheet1!$F$5,帮助!$BR:$BS,2,FALSE)&\":\"&VLOOKUP(Sheet1!$F$5,帮助!$BR:$BS,2,FALSE)),0))","v":{"$error":"#N/A"}},{"$f":"INDEX(Sheet1!I:I,MATCH(姓名查!$A13,INDIRECT(\"sheet1!\"&VLOOKUP(Sheet1!$F$5,帮助!$BR:$BS,2,FALSE)&\":\"&VLOOKUP(Sheet1!$F$5,帮助!$BR:$BS,2,FALSE)),0))","v":{"$error":"#N/A"}},{"$f":"INDEX(Sheet1!J:J,MATCH(姓名查!$A13,INDIRECT(\"sheet1!\"&VLOOKUP(Sheet1!$F$5,帮助!$BR:$BS,2,FALSE)&\":\"&VLOOKUP(Sheet1!$F$5,帮助!$BR:$BS,2,FALSE)),0))","v":{"$error":"#N/A"}},{"$f":"INDEX(Sheet1!K:K,MATCH(姓名查!$A13,INDIRECT(\"sheet1!\"&VLOOKUP(Sheet1!$F$5,帮助!$BR:$BS,2,FALSE)&\":\"&VLOOKUP(Sheet1!$F$5,帮助!$BR:$BS,2,FALSE)),0))","v":{"$error":"#N/A"}},{"$f":"INDEX(Sheet1!L:L,MATCH(姓名查!$A13,INDIRECT(\"sheet1!\"&VLOOKUP(Sheet1!$F$5,帮助!$BR:$BS,2,FALSE)&\":\"&VLOOKUP(Sheet1!$F$5,帮助!$BR:$BS,2,FALSE)),0))","v":{"$error":"#N/A"}},{"$f":"INDEX(Sheet1!M:M,MATCH(姓名查!$A13,INDIRECT(\"sheet1!\"&VLOOKUP(Sheet1!$F$5,帮助!$BR:$BS,2,FALSE)&\":\"&VLOOKUP(Sheet1!$F$5,帮助!$BR:$BS,2,FALSE)),0))","v":{"$error":"#N/A"}},{"$f":"INDEX(Sheet1!N:N,MATCH(姓名查!$A13,INDIRECT(\"sheet1!\"&VLOOKUP(Sheet1!$F$5,帮助!$BR:$BS,2,FALSE)&\":\"&VLOOKUP(Sheet1!$F$5,帮助!$BR:$BS,2,FALSE)),0))","v":{"$error":"#N/A"}},{"$f":"INDEX(Sheet1!O:O,MATCH(姓名查!$A13,INDIRECT(\"sheet1!\"&VLOOKUP(Sheet1!$F$5,帮助!$BR:$BS,2,FALSE)&\":\"&VLOOKUP(Sheet1!$F$5,帮助!$BR:$BS,2,FALSE)),0))","v":{"$error":"#N/A"}},{"$f":"INDEX(Sheet1!P:P,MATCH(姓名查!$A13,INDIRECT(\"sheet1!\"&VLOOKUP(Sheet1!$F$5,帮助!$BR:$BS,2,FALSE)&\":\"&VLOOKUP(Sheet1!$F$5,帮助!$BR:$BS,2,FALSE)),0))","v":{"$error":"#N/A"}},{"$f":"INDEX(Sheet1!Q:Q,MATCH(姓名查!$A13,INDIRECT(\"sheet1!\"&VLOOKUP(Sheet1!$F$5,帮助!$BR:$BS,2,FALSE)&\":\"&VLOOKUP(Sheet1!$F$5,帮助!$BR:$BS,2,FALSE)),0))","v":{"$error":"#N/A"}},{"$f":"INDEX(Sheet1!R:R,MATCH(姓名查!$A13,INDIRECT(\"sheet1!\"&VLOOKUP(Sheet1!$F$5,帮助!$BR:$BS,2,FALSE)&\":\"&VLOOKUP(Sheet1!$F$5,帮助!$BR:$BS,2,FALSE)),0))","v":{"$error":"#N/A"}},{"$f":"INDEX(Sheet1!S:S,MATCH(姓名查!$A13,INDIRECT(\"sheet1!\"&VLOOKUP(Sheet1!$F$5,帮助!$BR:$BS,2,FALSE)&\":\"&VLOOKUP(Sheet1!$F$5,帮助!$BR:$BS,2,FALSE)),0))","v":{"$error":"#N/A"}},{"$f":"INDEX(Sheet1!T:T,MATCH(姓名查!$A13,INDIRECT(\"sheet1!\"&VLOOKUP(Sheet1!$F$5,帮助!$BR:$BS,2,FALSE)&\":\"&VLOOKUP(Sheet1!$F$5,帮助!$BR:$BS,2,FALSE)),0))","v":{"$error":"#N/A"}}]
[null,{"$f":"INDEX(Sheet1!A:A,MATCH(姓名查!$A14,INDIRECT(\"sheet1!\"&VLOOKUP(Sheet1!$F$5,帮助!$BR:$BS,2,FALSE)&\":\"&VLOOKUP(Sheet1!$F$5,帮助!$BR:$BS,2,FALSE)),0))","v":{"$error":"#N/A"}},{"$f":"INDEX(Sheet1!B:B,MATCH(姓名查!$A14,INDIRECT(\"sheet1!\"&VLOOKUP(Sheet1!$F$5,帮助!$BR:$BS,2,FALSE)&\":\"&VLOOKUP(Sheet1!$F$5,帮助!$BR:$BS,2,FALSE)),0))","v":{"$error":"#N/A"}},{"$f":"INDEX(Sheet1!C:C,MATCH(姓名查!$A14,INDIRECT(\"sheet1!\"&VLOOKUP(Sheet1!$F$5,帮助!$BR:$BS,2,FALSE)&\":\"&VLOOKUP(Sheet1!$F$5,帮助!$BR:$BS,2,FALSE)),0))","v":{"$error":"#N/A"}},{"$f":"INDEX(Sheet1!D:D,MATCH(姓名查!$A14,INDIRECT(\"sheet1!\"&VLOOKUP(Sheet1!$F$5,帮助!$BR:$BS,2,FALSE)&\":\"&VLOOKUP(Sheet1!$F$5,帮助!$BR:$BS,2,FALSE)),0))","v":{"$error":"#N/A"}},{"$f":"INDEX(Sheet1!E:E,MATCH(姓名查!$A14,INDIRECT(\"sheet1!\"&VLOOKUP(Sheet1!$F$5,帮助!$BR:$BS,2,FALSE)&\":\"&VLOOKUP(Sheet1!$F$5,帮助!$BR:$BS,2,FALSE)),0))","v":{"$error":"#N/A"}},{"$f":"INDEX(Sheet1!F:F,MATCH(姓名查!$A14,INDIRECT(\"sheet1!\"&VLOOKUP(Sheet1!$F$5,帮助!$BR:$BS,2,FALSE)&\":\"&VLOOKUP(Sheet1!$F$5,帮助!$BR:$BS,2,FALSE)),0))","v":{"$error":"#N/A"}},{"$f":"INDEX(Sheet1!G:G,MATCH(姓名查!$A14,INDIRECT(\"sheet1!\"&VLOOKUP(Sheet1!$F$5,帮助!$BR:$BS,2,FALSE)&\":\"&VLOOKUP(Sheet1!$F$5,帮助!$BR:$BS,2,FALSE)),0))","v":{"$error":"#N/A"}},{"$f":"INDEX(Sheet1!H:H,MATCH(姓名查!$A14,INDIRECT(\"sheet1!\"&VLOOKUP(Sheet1!$F$5,帮助!$BR:$BS,2,FALSE)&\":\"&VLOOKUP(Sheet1!$F$5,帮助!$BR:$BS,2,FALSE)),0))","v":{"$error":"#N/A"}},{"$f":"INDEX(Sheet1!I:I,MATCH(姓名查!$A14,INDIRECT(\"sheet1!\"&VLOOKUP(Sheet1!$F$5,帮助!$BR:$BS,2,FALSE)&\":\"&VLOOKUP(Sheet1!$F$5,帮助!$BR:$BS,2,FALSE)),0))","v":{"$error":"#N/A"}},{"$f":"INDEX(Sheet1!J:J,MATCH(姓名查!$A14,INDIRECT(\"sheet1!\"&VLOOKUP(Sheet1!$F$5,帮助!$BR:$BS,2,FALSE)&\":\"&VLOOKUP(Sheet1!$F$5,帮助!$BR:$BS,2,FALSE)),0))","v":{"$error":"#N/A"}},{"$f":"INDEX(Sheet1!K:K,MATCH(姓名查!$A14,INDIRECT(\"sheet1!\"&VLOOKUP(Sheet1!$F$5,帮助!$BR:$BS,2,FALSE)&\":\"&VLOOKUP(Sheet1!$F$5,帮助!$BR:$BS,2,FALSE)),0))","v":{"$error":"#N/A"}},{"$f":"INDEX(Sheet1!L:L,MATCH(姓名查!$A14,INDIRECT(\"sheet1!\"&VLOOKUP(Sheet1!$F$5,帮助!$BR:$BS,2,FALSE)&\":\"&VLOOKUP(Sheet1!$F$5,帮助!$BR:$BS,2,FALSE)),0))","v":{"$error":"#N/A"}},{"$f":"INDEX(Sheet1!M:M,MATCH(姓名查!$A14,INDIRECT(\"sheet1!\"&VLOOKUP(Sheet1!$F$5,帮助!$BR:$BS,2,FALSE)&\":\"&VLOOKUP(Sheet1!$F$5,帮助!$BR:$BS,2,FALSE)),0))","v":{"$error":"#N/A"}},{"$f":"INDEX(Sheet1!N:N,MATCH(姓名查!$A14,INDIRECT(\"sheet1!\"&VLOOKUP(Sheet1!$F$5,帮助!$BR:$BS,2,FALSE)&\":\"&VLOOKUP(Sheet1!$F$5,帮助!$BR:$BS,2,FALSE)),0))","v":{"$error":"#N/A"}},{"$f":"INDEX(Sheet1!O:O,MATCH(姓名查!$A14,INDIRECT(\"sheet1!\"&VLOOKUP(Sheet1!$F$5,帮助!$BR:$BS,2,FALSE)&\":\"&VLOOKUP(Sheet1!$F$5,帮助!$BR:$BS,2,FALSE)),0))","v":{"$error":"#N/A"}},{"$f":"INDEX(Sheet1!P:P,MATCH(姓名查!$A14,INDIRECT(\"sheet1!\"&VLOOKUP(Sheet1!$F$5,帮助!$BR:$BS,2,FALSE)&\":\"&VLOOKUP(Sheet1!$F$5,帮助!$BR:$BS,2,FALSE)),0))","v":{"$error":"#N/A"}},{"$f":"INDEX(Sheet1!Q:Q,MATCH(姓名查!$A14,INDIRECT(\"sheet1!\"&VLOOKUP(Sheet1!$F$5,帮助!$BR:$BS,2,FALSE)&\":\"&VLOOKUP(Sheet1!$F$5,帮助!$BR:$BS,2,FALSE)),0))","v":{"$error":"#N/A"}},{"$f":"INDEX(Sheet1!R:R,MATCH(姓名查!$A14,INDIRECT(\"sheet1!\"&VLOOKUP(Sheet1!$F$5,帮助!$BR:$BS,2,FALSE)&\":\"&VLOOKUP(Sheet1!$F$5,帮助!$BR:$BS,2,FALSE)),0))","v":{"$error":"#N/A"}},{"$f":"INDEX(Sheet1!S:S,MATCH(姓名查!$A14,INDIRECT(\"sheet1!\"&VLOOKUP(Sheet1!$F$5,帮助!$BR:$BS,2,FALSE)&\":\"&VLOOKUP(Sheet1!$F$5,帮助!$BR:$BS,2,FALSE)),0))","v":{"$error":"#N/A"}},{"$f":"INDEX(Sheet1!T:T,MATCH(姓名查!$A14,INDIRECT(\"sheet1!\"&VLOOKUP(Sheet1!$F$5,帮助!$BR:$BS,2,FALSE)&\":\"&VLOOKUP(Sheet1!$F$5,帮助!$BR:$BS,2,FALSE)),0))","v":{"$error":"#N/A"}}]
[null,{"$f":"INDEX(Sheet1!A:A,MATCH(姓名查!$A15,INDIRECT(\"sheet1!\"&VLOOKUP(Sheet1!$F$5,帮助!$BR:$BS,2,FALSE)&\":\"&VLOOKUP(Sheet1!$F$5,帮助!$BR:$BS,2,FALSE)),0))","v":{"$error":"#N/A"}},{"$f":"INDEX(Sheet1!B:B,MATCH(姓名查!$A15,INDIRECT(\"sheet1!\"&VLOOKUP(Sheet1!$F$5,帮助!$BR:$BS,2,FALSE)&\":\"&VLOOKUP(Sheet1!$F$5,帮助!$BR:$BS,2,FALSE)),0))","v":{"$error":"#N/A"}},{"$f":"INDEX(Sheet1!C:C,MATCH(姓名查!$A15,INDIRECT(\"sheet1!\"&VLOOKUP(Sheet1!$F$5,帮助!$BR:$BS,2,FALSE)&\":\"&VLOOKUP(Sheet1!$F$5,帮助!$BR:$BS,2,FALSE)),0))","v":{"$error":"#N/A"}},{"$f":"INDEX(Sheet1!D:D,MATCH(姓名查!$A15,INDIRECT(\"sheet1!\"&VLOOKUP(Sheet1!$F$5,帮助!$BR:$BS,2,FALSE)&\":\"&VLOOKUP(Sheet1!$F$5,帮助!$BR:$BS,2,FALSE)),0))","v":{"$error":"#N/A"}},{"$f":"INDEX(Sheet1!E:E,MATCH(姓名查!$A15,INDIRECT(\"sheet1!\"&VLOOKUP(Sheet1!$F$5,帮助!$BR:$BS,2,FALSE)&\":\"&VLOOKUP(Sheet1!$F$5,帮助!$BR:$BS,2,FALSE)),0))","v":{"$error":"#N/A"}},{"$f":"INDEX(Sheet1!F:F,MATCH(姓名查!$A15,INDIRECT(\"sheet1!\"&VLOOKUP(Sheet1!$F$5,帮助!$BR:$BS,2,FALSE)&\":\"&VLOOKUP(Sheet1!$F$5,帮助!$BR:$BS,2,FALSE)),0))","v":{"$error":"#N/A"}},{"$f":"INDEX(Sheet1!G:G,MATCH(姓名查!$A15,INDIRECT(\"sheet1!\"&VLOOKUP(Sheet1!$F$5,帮助!$BR:$BS,2,FALSE)&\":\"&VLOOKUP(Sheet1!$F$5,帮助!$BR:$BS,2,FALSE)),0))","v":{"$error":"#N/A"}},{"$f":"INDEX(Sheet1!H:H,MATCH(姓名查!$A15,INDIRECT(\"sheet1!\"&VLOOKUP(Sheet1!$F$5,帮助!$BR:$BS,2,FALSE)&\":\"&VLOOKUP(Sheet1!$F$5,帮助!$BR:$BS,2,FALSE)),0))","v":{"$error":"#N/A"}},{"$f":"INDEX(Sheet1!I:I,MATCH(姓名查!$A15,INDIRECT(\"sheet1!\"&VLOOKUP(Sheet1!$F$5,帮助!$BR:$BS,2,FALSE)&\":\"&VLOOKUP(Sheet1!$F$5,帮助!$BR:$BS,2,FALSE)),0))","v":{"$error":"#N/A"}},{"$f":"INDEX(Sheet1!J:J,MATCH(姓名查!$A15,INDIRECT(\"sheet1!\"&VLOOKUP(Sheet1!$F$5,帮助!$BR:$BS,2,FALSE)&\":\"&VLOOKUP(Sheet1!$F$5,帮助!$BR:$BS,2,FALSE)),0))","v":{"$error":"#N/A"}},{"$f":"INDEX(Sheet1!K:K,MATCH(姓名查!$A15,INDIRECT(\"sheet1!\"&VLOOKUP(Sheet1!$F$5,帮助!$BR:$BS,2,FALSE)&\":\"&VLOOKUP(Sheet1!$F$5,帮助!$BR:$BS,2,FALSE)),0))","v":{"$error":"#N/A"}},{"$f":"INDEX(Sheet1!L:L,MATCH(姓名查!$A15,INDIRECT(\"sheet1!\"&VLOOKUP(Sheet1!$F$5,帮助!$BR:$BS,2,FALSE)&\":\"&VLOOKUP(Sheet1!$F$5,帮助!$BR:$BS,2,FALSE)),0))","v":{"$error":"#N/A"}},{"$f":"INDEX(Sheet1!M:M,MATCH(姓名查!$A15,INDIRECT(\"sheet1!\"&VLOOKUP(Sheet1!$F$5,帮助!$BR:$BS,2,FALSE)&\":\"&VLOOKUP(Sheet1!$F$5,帮助!$BR:$BS,2,FALSE)),0))","v":{"$error":"#N/A"}},{"$f":"INDEX(Sheet1!N:N,MATCH(姓名查!$A15,INDIRECT(\"sheet1!\"&VLOOKUP(Sheet1!$F$5,帮助!$BR:$BS,2,FALSE)&\":\"&VLOOKUP(Sheet1!$F$5,帮助!$BR:$BS,2,FALSE)),0))","v":{"$error":"#N/A"}},{"$f":"INDEX(Sheet1!O:O,MATCH(姓名查!$A15,INDIRECT(\"sheet1!\"&VLOOKUP(Sheet1!$F$5,帮助!$BR:$BS,2,FALSE)&\":\"&VLOOKUP(Sheet1!$F$5,帮助!$BR:$BS,2,FALSE)),0))","v":{"$error":"#N/A"}},{"$f":"INDEX(Sheet1!P:P,MATCH(姓名查!$A15,INDIRECT(\"sheet1!\"&VLOOKUP(Sheet1!$F$5,帮助!$BR:$BS,2,FALSE)&\":\"&VLOOKUP(Sheet1!$F$5,帮助!$BR:$BS,2,FALSE)),0))","v":{"$error":"#N/A"}},{"$f":"INDEX(Sheet1!Q:Q,MATCH(姓名查!$A15,INDIRECT(\"sheet1!\"&VLOOKUP(Sheet1!$F$5,帮助!$BR:$BS,2,FALSE)&\":\"&VLOOKUP(Sheet1!$F$5,帮助!$BR:$BS,2,FALSE)),0))","v":{"$error":"#N/A"}},{"$f":"INDEX(Sheet1!R:R,MATCH(姓名查!$A15,INDIRECT(\"sheet1!\"&VLOOKUP(Sheet1!$F$5,帮助!$BR:$BS,2,FALSE)&\":\"&VLOOKUP(Sheet1!$F$5,帮助!$BR:$BS,2,FALSE)),0))","v":{"$error":"#N/A"}},{"$f":"INDEX(Sheet1!S:S,MATCH(姓名查!$A15,INDIRECT(\"sheet1!\"&VLOOKUP(Sheet1!$F$5,帮助!$BR:$BS,2,FALSE)&\":\"&VLOOKUP(Sheet1!$F$5,帮助!$BR:$BS,2,FALSE)),0))","v":{"$error":"#N/A"}},{"$f":"INDEX(Sheet1!T:T,MATCH(姓名查!$A15,INDIRECT(\"sheet1!\"&VLOOKUP(Sheet1!$F$5,帮助!$BR:$BS,2,FALSE)&\":\"&VLOOKUP(Sheet1!$F$5,帮助!$BR:$BS,2,FALSE)),0))","v":{"$error":"#N/A"}}]
[null,{"$f":"INDEX(Sheet1!A:A,MATCH(姓名查!$A16,INDIRECT(\"sheet1!\"&VLOOKUP(Sheet1!$F$5,帮助!$BR:$BS,2,FALSE)&\":\"&VLOOKUP(Sheet1!$F$5,帮助!$BR:$BS,2,FALSE)),0))","v":{"$error":"#N/A"}},{"$f":"INDEX(Sheet1!B:B,MATCH(姓名查!$A16,INDIRECT(\"sheet1!\"&VLOOKUP(Sheet1!$F$5,帮助!$BR:$BS,2,FALSE)&\":\"&VLOOKUP(Sheet1!$F$5,帮助!$BR:$BS,2,FALSE)),0))","v":{"$error":"#N/A"}},{"$f":"INDEX(Sheet1!C:C,MATCH(姓名查!$A16,INDIRECT(\"sheet1!\"&VLOOKUP(Sheet1!$F$5,帮助!$BR:$BS,2,FALSE)&\":\"&VLOOKUP(Sheet1!$F$5,帮助!$BR:$BS,2,FALSE)),0))","v":{"$error":"#N/A"}},{"$f":"INDEX(Sheet1!D:D,MATCH(姓名查!$A16,INDIRECT(\"sheet1!\"&VLOOKUP(Sheet1!$F$5,帮助!$BR:$BS,2,FALSE)&\":\"&VLOOKUP(Sheet1!$F$5,帮助!$BR:$BS,2,FALSE)),0))","v":{"$error":"#N/A"}},{"$f":"INDEX(Sheet1!E:E,MATCH(姓名查!$A16,INDIRECT(\"sheet1!\"&VLOOKUP(Sheet1!$F$5,帮助!$BR:$BS,2,FALSE)&\":\"&VLOOKUP(Sheet1!$F$5,帮助!$BR:$BS,2,FALSE)),0))","v":{"$error":"#N/A"}},{"$f":"INDEX(Sheet1!F:F,MATCH(姓名查!$A16,INDIRECT(\"sheet1!\"&VLOOKUP(Sheet1!$F$5,帮助!$BR:$BS,2,FALSE)&\":\"&VLOOKUP(Sheet1!$F$5,帮助!$BR:$BS,2,FALSE)),0))","v":{"$error":"#N/A"}},{"$f":"INDEX(Sheet1!G:G,MATCH(姓名查!$A16,INDIRECT(\"sheet1!\"&VLOOKUP(Sheet1!$F$5,帮助!$BR:$BS,2,FALSE)&\":\"&VLOOKUP(Sheet1!$F$5,帮助!$BR:$BS,2,FALSE)),0))","v":{"$error":"#N/A"}},{"$f":"INDEX(Sheet1!H:H,MATCH(姓名查!$A16,INDIRECT(\"sheet1!\"&VLOOKUP(Sheet1!$F$5,帮助!$BR:$BS,2,FALSE)&\":\"&VLOOKUP(Sheet1!$F$5,帮助!$BR:$BS,2,FALSE)),0))","v":{"$error":"#N/A"}},{"$f":"INDEX(Sheet1!I:I,MATCH(姓名查!$A16,INDIRECT(\"sheet1!\"&VLOOKUP(Sheet1!$F$5,帮助!$BR:$BS,2,FALSE)&\":\"&VLOOKUP(Sheet1!$F$5,帮助!$BR:$BS,2,FALSE)),0))","v":{"$error":"#N/A"}},{"$f":"INDEX(Sheet1!J:J,MATCH(姓名查!$A16,INDIRECT(\"sheet1!\"&VLOOKUP(Sheet1!$F$5,帮助!$BR:$BS,2,FALSE)&\":\"&VLOOKUP(Sheet1!$F$5,帮助!$BR:$BS,2,FALSE)),0))","v":{"$error":"#N/A"}},{"$f":"INDEX(Sheet1!K:K,MATCH(姓名查!$A16,INDIRECT(\"sheet1!\"&VLOOKUP(Sheet1!$F$5,帮助!$BR:$BS,2,FALSE)&\":\"&VLOOKUP(Sheet1!$F$5,帮助!$BR:$BS,2,FALSE)),0))","v":{"$error":"#N/A"}},{"$f":"INDEX(Sheet1!L:L,MATCH(姓名查!$A16,INDIRECT(\"sheet1!\"&VLOOKUP(Sheet1!$F$5,帮助!$BR:$BS,2,FALSE)&\":\"&VLOOKUP(Sheet1!$F$5,帮助!$BR:$BS,2,FALSE)),0))","v":{"$error":"#N/A"}},{"$f":"INDEX(Sheet1!M:M,MATCH(姓名查!$A16,INDIRECT(\"sheet1!\"&VLOOKUP(Sheet1!$F$5,帮助!$BR:$BS,2,FALSE)&\":\"&VLOOKUP(Sheet1!$F$5,帮助!$BR:$BS,2,FALSE)),0))","v":{"$error":"#N/A"}},{"$f":"INDEX(Sheet1!N:N,MATCH(姓名查!$A16,INDIRECT(\"sheet1!\"&VLOOKUP(Sheet1!$F$5,帮助!$BR:$BS,2,FALSE)&\":\"&VLOOKUP(Sheet1!$F$5,帮助!$BR:$BS,2,FALSE)),0))","v":{"$error":"#N/A"}},{"$f":"INDEX(Sheet1!O:O,MATCH(姓名查!$A16,INDIRECT(\"sheet1!\"&VLOOKUP(Sheet1!$F$5,帮助!$BR:$BS,2,FALSE)&\":\"&VLOOKUP(Sheet1!$F$5,帮助!$BR:$BS,2,FALSE)),0))","v":{"$error":"#N/A"}},{"$f":"INDEX(Sheet1!P:P,MATCH(姓名查!$A16,INDIRECT(\"sheet1!\"&VLOOKUP(Sheet1!$F$5,帮助!$BR:$BS,2,FALSE)&\":\"&VLOOKUP(Sheet1!$F$5,帮助!$BR:$BS,2,FALSE)),0))","v":{"$error":"#N/A"}},{"$f":"INDEX(Sheet1!Q:Q,MATCH(姓名查!$A16,INDIRECT(\"sheet1!\"&VLOOKUP(Sheet1!$F$5,帮助!$BR:$BS,2,FALSE)&\":\"&VLOOKUP(Sheet1!$F$5,帮助!$BR:$BS,2,FALSE)),0))","v":{"$error":"#N/A"}},{"$f":"INDEX(Sheet1!R:R,MATCH(姓名查!$A16,INDIRECT(\"sheet1!\"&VLOOKUP(Sheet1!$F$5,帮助!$BR:$BS,2,FALSE)&\":\"&VLOOKUP(Sheet1!$F$5,帮助!$BR:$BS,2,FALSE)),0))","v":{"$error":"#N/A"}},{"$f":"INDEX(Sheet1!S:S,MATCH(姓名查!$A16,INDIRECT(\"sheet1!\"&VLOOKUP(Sheet1!$F$5,帮助!$BR:$BS,2,FALSE)&\":\"&VLOOKUP(Sheet1!$F$5,帮助!$BR:$BS,2,FALSE)),0))","v":{"$error":"#N/A"}},{"$f":"INDEX(Sheet1!T:T,MATCH(姓名查!$A16,INDIRECT(\"sheet1!\"&VLOOKUP(Sheet1!$F$5,帮助!$BR:$BS,2,FALSE)&\":\"&VLOOKUP(Sheet1!$F$5,帮助!$BR:$BS,2,FALSE)),0))","v":{"$error":"#N/A"}}]

{"sheet":"帮助","index":4,"n_rows":58,"n_cols":72,"rows_kept":58,"cut":false,"hidden":true,"merged":[]}
[null,null,null,"参","数",null,null,null,null,null,"等于",null,"维护人","数据表名","学号/工号","姓名","显示字段","不显字段",null,"d1","d2","d3","d4","d5","d6","d7","d8","d9","d10","d11","d12","d13","d14","d15","d16","d17","d18","d19","d20","d21","d22","d23","d24","d25","d26","d27","d28","d29","d30","d31","d32","d33","d34","d35","d36","d37","d38","d39","d40","d41","d42","d43","d44","d45","d46","d47","d48","d49","d50"]
[null,null,null,null,"查看密码",660205,null,null,null,null,"包含"]
[null,null,null,null,null,null,null,null,null,null,"IN"]
[]
[]
[null,null,null,null,null,null,null,null,"注意："]
[null,null,null,null,"本地更新",{"$f":"J4&\"index.php/Qwadmin/Rwxy/echosheetname?\"","v":"index.php/Qwadmin/Rwxy/echosheetname?"},null,null,"1. 一定要填入密码，无密码无法更新"]
["现有数据库"]
["学生体测测试",null,null,null,null,null,null,null,null,null,null,null,null,null,null,null,null,null,null,null,null,null,null,null,null,null,null,null,null,null,null,null,null,null,null,null,null,null,null,null,null,null,null,null,null,null,null,null,null,null,null,null,null,null,null,null,null,null,null,null,null,null,null,null,null,null,null,null,null,"d1","A"]
[null,null,null,null,null,null,null,null,null,null,null,null,null,null,null,null,null,null,null,null,null,null,null,null,null,null,null,null,null,null,null,null,null,null,null,null,null,null,null,null,null,null,null,null,null,null,null,null,null,null,null,null,null,null,null,null,null,null,null,null,null,null,null,null,null,null,null,null,null,"d2","B"]
[null,null,null,null,null,null,null,null,null,null,null,null,null,null,null,null,null,null,null,null,null,null,null,null,null,null,null,null,null,null,null,null,null,null,null,null,null,null,null,null,null,null,null,null,null,null,null,null,null,null,null,null,null,null,null,null,null,null,null,null,null,null,null,null,null,null,null,null,null,"d3","C"]
[null,null,null,null,null,null,null,null,null,null,null,null,null,null,null,null,null,null,null,null,null,null,null,null,null,null,null,null,null,null,null,null,null,null,null,null,null,null,null,null,null,null,null,null,null,null,null,null,null,null,null,null,null,null,null,null,null,null,null,null,null,null,null,null,null,null,null,null,null,"d4","D"]
[null,null,null,null,null,null,null,null,null,null,null,null,null,null,null,null,null,null,null,null,null,null,null,null,null,null,null,null,null,null,null,null,null,null,null,null,null,null,null,null,null,null,null,null,null,null,null,null,null,null,null,null,null,null,null,null,null,null,null,null,null,null,null,null,null,null,null,null,null,"d5","E"]
[null,null,null,null,null,null,null,null,null,null,null,null,null,null,null,null,null,null,null,null,null,null,null,null,null,null,null,null,null,null,null,null,null,null,null,null,null,null,null,null,null,null,null,null,null,null,null,null,null,null,null,null,null,null,null,null,null,null,null,null,null,null,null,null,null,null,null,null,null,"d6","F"]
[null,null,null,null,null,null,null,null,null,null,null,null,null,null,null,null,null,null,null,null,null,null,null,null,null,null,null,null,null,null,null,null,null,null,null,null,null,null,null,null,null,null,null,null,null,null,null,null,null,null,null,null,null,null,null,null,null,null,null,null,null,null,null,null,null,null,null,null,null,"d7","G"]
[null,null,null,null,null,null,null,null,null,null,null,null,null,null,null,null,null,null,null,null,null,null,null,null,null,null,null,null,null,null,null,null,null,null,null,null,null,null,null,null,null,null,null,null,null,null,null,null,null,null,null,null,null,null,null,null,null,null,null,null,null,null,null,null,null,null,null,null,null,"d8","H"]
[null,null,null,null,null,null,null,null,null,null,null,null,null,null,null,null,null,null,null,null,null,null,null,null,null,null,null,null,null,null,null,null,null,null,null,null,null,null,null,null,null,null,null,null,null,null,null,null,null,null,null,null,null,null,null,null,null,null,null,null,null,null,null,null,null,null,null,null,null,"d9","I"]
[null,null,null,null,null,null,null,null,null,null,null,null,null,null,null,null,null,null,null,null,null,null,null,null,null,null,null,null,null,null,null,null,null,null,null,null,null,null,null,null,null,null,null,null,null,null,null,null,null,null,null,null,null,null,null,null,null,null,null,null,null,null,null,null,null,null,null,null,null,"d10","J"]
[null,null,null,null,null,null,null,null,null,null,null,null,null,null,null,null,null,null,null,null,null,null,null,null,null,null,null,null,null,null,null,null,null,null,null,null,null,null,null,null,null,null,null,null,null,null,null,null,null,null,null,null,null,null,null,null,null,null,null,null,null,null,null,null,null,null,null,null,null,"d11","K"]
[null,null,null,null,null,null,null,null,null,null,null,null,null,null,null,null,null,null,null,null,null,null,null,null,null,null,null,null,null,null,null,null,null,null,null,null,null,null,null,null,null,null,null,null,null,null,null,null,null,null,null,null,null,null,null,null,null,null,null,null,null,null,null,null,null,null,null,null,null,"d12","L"]
[null,null,null,null,null,null,null,null,null,null,null,null,null,null,null,null,null,null,null,null,null,null,null,null,null,null,null,null,null,null,null,null,null,null,null,null,null,null,null,null,null,null,null,null,null,null,null,null,null,null,null,null,null,null,null,null,null,null,null,null,null,null,null,null,null,null,null,null,null,"d13","M"]
[null,null,null,null,null,null,null,null,null,null,null,null,null,null,null,null,null,null,null,null,null,null,null,null,null,null,null,null,null,null,null,null,null,null,null,null,null,null,null,null,null,null,null,null,null,null,null,null,null,null,null,null,null,null,null,null,null,null,null,null,null,null,null,null,null,null,null,null,null,"d14","N"]
[null,null,null,null,null,null,null,null,null,null,null,null,null,null,null,null,null,null,null,null,null,null,null,null,null,null,null,null,null,null,null,null,null,null,null,null,null,null,null,null,null,null,null,null,null,null,null,null,null,null,null,null,null,null,null,null,null,null,null,null,null,null,null,null,null,null,null,null,null,"d15","O"]
[null,null,null,null,null,null,null,null,null,null,null,null,null,null,null,null,null,null,null,null,null,null,null,null,null,null,null,null,null,null,null,null,null,null,null,null,null,null,null,null,null,null,null,null,null,null,null,null,null,null,null,null,null,null,null,null,null,null,null,null,null,null,null,null,null,null,null,null,null,"d16","P"]
[null,null,null,null,null,null,null,null,null,null,null,null,null,null,null,null,null,null,null,null,null,null,null,null,null,null,null,null,null,null,null,null,null,null,null,null,null,null,null,null,null,null,null,null,null,null,null,null,null,null,null,null,null,null,null,null,null,null,null,null,null,null,null,null,null,null,null,null,null,"d17","Q"]
[null,null,null,null,null,null,null,null,null,null,null,null,null,null,null,null,null,null,null,null,null,null,null,null,null,null,null,null,null,null,null,null,null,null,null,null,null,null,null,null,null,null,null,null,null,null,null,null,null,null,null,null,null,null,null,null,null,null,null,null,null,null,null,null,null,null,null,null,null,"d18","R"]
[null,null,null,null,null,null,null,null,null,null,null,null,null,null,null,null,null,null,null,null,null,null,null,null,null,null,null,null,null,null,null,null,null,null,null,null,null,null,null,null,null,null,null,null,null,null,null,null,null,null,null,null,null,null,null,null,null,null,null,null,null,null,null,null,null,null,null,null,null,"d19","S"]
[null,null,null,null,null,null,null,null,null,null,null,null,null,null,null,null,null,null,null,null,null,null,null,null,null,null,null,null,null,null,null,null,null,null,null,null,null,null,null,null,null,null,null,null,null,null,null,null,null,null,null,null,null,null,null,null,null,null,null,null,null,null,null,null,null,null,null,null,null,"d20","T"]
[null,null,null,null,null,null,null,null,null,null,null,null,null,null,null,null,null,null,null,null,null,null,null,null,null,null,null,null,null,null,null,null,null,null,null,null,null,null,null,null,null,null,null,null,null,null,null,null,null,null,null,null,null,null,null,null,null,null,null,null,null,null,null,null,null,null,null,null,null,"d21","U"]
[null,null,null,null,null,null,null,null,null,null,null,null,null,null,null,null,null,null,null,null,null,null,null,null,null,null,null,null,null,null,null,null,null,null,null,null,null,null,null,null,null,null,null,null,null,null,null,null,null,null,null,null,null,null,null,null,null,null,null,null,null,null,null,null,null,null,null,null,null,"d22","V"]
[null,null,null,null,null,null,null,null,null,null,null,null,null,null,null,null,null,null,null,null,null,null,null,null,null,null,null,null,null,null,null,null,null,null,null,null,null,null,null,null,null,null,null,null,null,null,null,null,null,null,null,null,null,null,null,null,null,null,null,null,null,null,null,null,null,null,null,null,null,"d23","W"]
[null,null,null,null,null,null,null,null,null,null,null,null,null,null,null,null,null,null,null,null,null,null,null,null,null,null,null,null,null,null,null,null,null,null,null,null,null,null,null,null,null,null,null,null,null,null,null,null,null,null,null,null,null,null,null,null,null,null,null,null,null,null,null,null,null,null,null,null,null,"d24","X"]
[null,null,null,null,null,null,null,null,null,null,null,null,null,null,null,null,null,null,null,null,null,null,null,null,null,null,null,null,null,null,null,null,null,null,null,null,null,null,null,null,null,null,null,null,null,null,null,null,null,null,null,null,null,null,null,null,null,null,null,null,null,null,null,null,null,null,null,null,null,"d25","Y"]
[null,null,null,null,null,null,null,null,null,null,null,null,null,null,null,null,null,null,null,null,null,null,null,null,null,null,null,null,null,null,null,null,null,null,null,null,null,null,null,null,null,null,null,null,null,null,null,null,null,null,null,null,null,null,null,null,null,null,null,null,null,null,null,null,null,null,null,null,null,"d26","Z"]
[null,null,null,null,null,null,null,null,null,null,null,null,null,null,null,null,null,null,null,null,null,null,null,null,null,null,null,null,null,null,null,null,null,null,null,null,null,null,null,null,null,null,null,null,null,null,null,null,null,null,null,null,null,null,null,null,null,null,null,null,null,null,null,null,null,null,null,null,null,"d27","AA",{"$f":"\"A\"&BS35","v":"AAA"}]
[null,null,null,null,null,null,null,null,null,null,null,null,null,null,null,null,null,null,null,null,null,null,null,null,null,null,null,null,null,null,null,null,null,null,null,null,null,null,null,null,null,null,null,null,null,null,null,null,null,null,null,null,null,null,null,null,null,null,null,null,null,null,null,null,null,null,null,null,null,"d28","AB",{"$f":"\"A\"&BS36","v":"AAB"}]
[null,null,null,null,null,null,null,null,null,null,null,null,null,null,null,null,null,null,null,null,null,null,null,null,null,null,null,null,null,null,null,null,null,null,null,null,null,null,null,null,null,null,null,null,null,null,null,null,null,null,null,null,null,null,null,null,null,null,null,null,null,null,null,null,null,null,null,null,null,"d29","AC","AAC"]
[null,null,null,null,null,null,null,null,null,null,null,null,null,null,null,null,null,null,null,null,null,null,null,null,null,null,null,null,null,null,null,null,null,null,null,null,null,null,null,null,null,null,null,null,null,null,null,null,null,null,null,null,null,null,null,null,null,null,null,null,null,null,null,null,null,null,null,null,null,"d30","AD","AAD"]
[null,null,null,null,null,null,null,null,null,null,null,null,null,null,null,null,null,null,null,null,null,null,null,null,null,null,null,null,null,null,null,null,null,null,null,null,null,null,null,null,null,null,null,null,null,null,null,null,null,null,null,null,null,null,null,null,null,null,null,null,null,null,null,null,null,null,null,null,null,"d31","AE","AAE"]
[null,null,null,null,null,null,null,null,null,null,null,null,null,null,null,null,null,null,null,null,null,null,null,null,null,null,null,null,null,null,null,null,null,null,null,null,null,null,null,null,null,null,null,null,null,null,null,null,null,null,null,null,null,null,null,null,null,null,null,null,null,null,null,null,null,null,null,null,null,"d32","AF","AAF"]
[null,null,null,null,null,null,null,null,null,null,null,null,null,null,null,null,null,null,null,null,null,null,null,null,null,null,null,null,null,null,null,null,null,null,null,null,null,null,null,null,null,null,null,null,null,null,null,null,null,null,null,null,null,null,null,null,null,null,null,null,null,null,null,null,null,null,null,null,null,"d33","AG","AAG"]
[null,null,null,null,null,null,null,null,null,null,null,null,null,null,null,null,null,null,null,null,null,null,null,null,null,null,null,null,null,null,null,null,null,null,null,null,null,null,null,null,null,null,null,null,null,null,null,null,null,null,null,null,null,null,null,null,null,null,null,null,null,null,null,null,null,null,null,null,null,"d34","AH","AAH"]
[null,null,null,null,null,null,null,null,null,null,null,null,null,null,null,null,null,null,null,null,null,null,null,null,null,null,null,null,null,null,null,null,null,null,null,null,null,null,null,null,null,null,null,null,null,null,null,null,null,null,null,null,null,null,null,null,null,null,null,null,null,null,null,null,null,null,null,null,null,"d35","AI","AAI"]
[null,null,null,null,null,null,null,null,null,null,null,null,null,null,null,null,null,null,null,null,null,null,null,null,null,null,null,null,null,null,null,null,null,null,null,null,null,null,null,null,null,null,null,null,null,null,null,null,null,null,null,null,null,null,null,null,null,null,null,null,null,null,null,null,null,null,null,null,null,"d36","AJ","AAJ"]
[null,null,null,null,null,null,null,null,null,null,null,null,null,null,null,null,null,null,null,null,null,null,null,null,null,null,null,null,null,null,null,null,null,null,null,null,null,null,null,null,null,null,null,null,null,null,null,null,null,null,null,null,null,null,null,null,null,null,null,null,null,null,null,null,null,null,null,null,null,"d37","AK","AAK"]
[null,null,null,null,null,null,null,null,null,null,null,null,null,null,null,null,null,null,null,null,null,null,null,null,null,null,null,null,null,null,null,null,null,null,null,null,null,null,null,null,null,null,null,null,null,null,null,null,null,null,null,null,null,null,null,null,null,null,null,null,null,null,null,null,null,null,null,null,null,"d38","AL","AAL"]
[null,null,null,null,null,null,null,null,null,null,null,null,null,null,null,null,null,null,null,null,null,null,null,null,null,null,null,null,null,null,null,null,null,null,null,null,null,null,null,null,null,null,null,null,null,null,null,null,null,null,null,null,null,null,null,null,null,null,null,null,null,null,null,null,null,null,null,null,null,"d39","AM","AAM"]
[null,null,null,null,null,null,null,null,null,null,null,null,null,null,null,null,null,null,null,null,null,null,null,null,null,null,null,null,null,null,null,null,null,null,null,null,null,null,null,null,null,null,null,null,null,null,null,null,null,null,null,null,null,null,null,null,null,null,null,null,null,null,null,null,null,null,null,null,null,"d40","AN","AAN"]
[null,null,null,null,null,null,null,null,null,null,null,null,null,null,null,null,null,null,null,null,null,null,null,null,null,null,null,null,null,null,null,null,null,null,null,null,null,null,null,null,null,null,null,null,null,null,null,null,null,null,null,null,null,null,null,null,null,null,null,null,null,null,null,null,null,null,null,null,null,"d41","AO","AAO"]
[null,null,null,null,null,null,null,null,null,null,null,null,null,null,null,null,null,null,null,null,null,null,null,null,null,null,null,null,null,null,null,null,null,null,null,null,null,null,null,null,null,null,null,null,null,null,null,null,null,null,null,null,null,null,null,null,null,null,null,null,null,null,null,null,null,null,null,null,null,"d42","AP","AAP"]
[null,null,null,null,null,null,null,null,null,null,null,null,null,null,null,null,null,null,null,null,null,null,null,null,null,null,null,null,null,null,null,null,null,null,null,null,null,null,null,null,null,null,null,null,null,null,null,null,null,null,null,null,null,null,null,null,null,null,null,null,null,null,null,null,null,null,null,null,null,"d43","AQ","AAQ"]
[null,null,null,null,null,null,null,null,null,null,null,null,null,null,null,null,null,null,null,null,null,null,null,null,null,null,null,null,null,null,null,null,null,null,null,null,null,null,null,null,null,null,null,null,null,null,null,null,null,null,null,null,null,null,null,null,null,null,null,null,null,null,null,null,null,null,null,null,null,"d44","AR","AAR"]
[null,null,null,null,null,null,null,null,null,null,null,null,null,null,null,null,null,null,null,null,null,null,null,null,null,null,null,null,null,null,null,null,null,null,null,null,null,null,null,null,null,null,null,null,null,null,null,null,null,null,null,null,null,null,null,null,null,null,null,null,null,null,null,null,null,null,null,null,null,"d45","AS","AAS"]
[null,null,null,null,null,null,null,null,null,null,null,null,null,null,null,null,null,null,null,null,null,null,null,null,null,null,null,null,null,null,null,null,null,null,null,null,null,null,null,null,null,null,null,null,null,null,null,null,null,null,null,null,null,null,null,null,null,null,null,null,null,null,null,null,null,null,null,null,null,"d46","AT","AAT"]
[null,null,null,null,null,null,null,null,null,null,null,null,null,null,null,null,null,null,null,null,null,null,null,null,null,null,null,null,null,null,null,null,null,null,null,null,null,null,null,null,null,null,null,null,null,null,null,null,null,null,null,null,null,null,null,null,null,null,null,null,null,null,null,null,null,null,null,null,null,"d47","AU","AAU"]
[null,null,null,null,null,null,null,null,null,null,null,null,null,null,null,null,null,null,null,null,null,null,null,null,null,null,null,null,null,null,null,null,null,null,null,null,null,null,null,null,null,null,null,null,null,null,null,null,null,null,null,null,null,null,null,null,null,null,null,null,null,null,null,null,null,null,null,null,null,"d48","AV","AAV"]
[null,null,null,null,null,null,null,null,null,null,null,null,null,null,null,null,null,null,null,null,null,null,null,null,null,null,null,null,null,null,null,null,null,null,null,null,null,null,null,null,null,null,null,null,null,null,null,null,null,null,null,null,null,null,null,null,null,null,null,null,null,null,null,null,null,null,null,null,null,"d49","AW","AAW"]
[null,null,null,null,null,null,null,null,null,null,null,null,null,null,null,null,null,null,null,null,null,null,null,null,null,null,null,null,null,null,null,null,null,null,null,null,null,null,null,null,null,null,null,null,null,null,null,null,null,null,null,null,null,null,null,null,null,null,null,null,null,null,null,null,null,null,null,null,null,"d50","AX","AAX"]